Workbook

Sheet Instructions
A1: Instructions - Highway Revenue Assessment Tool
B2: ="Version " & TEXT(MAX(Version[Version]), "#,##0.00") -> Version 1.81
B3: ="Last Updated: " & TEXT(MAX(Version[Date]), "m/d/yyyy") -> Last Updated: 1/2/2026
A5: Input Definitions | E5: Model Overview
C7: User-entered inputs
C9: Default assumptions that can be overwritten by user
C11: Default custom scenario that can be overwritten by user
C13: Calculations or assumptions that cannot be altered

Sheet Tool
A1: Highway Revenue Assessment Tool | D1: ** DEFAULT INPUTS ** | E1: ** DEFAULT INPUTS **
D2: Market & Vehicle | E2: Revenue
A3: User Input
A4: Select fields from the Required Input section to determine what state or scenario to analyze over a set period. Use Optional Market and Vehicle Settings to customize the analysis on fuel use and other market factors, like inflation. Use Optional Revenue Settings to explore ways to change how revenue is collected and the state gasoline tax is set. Note, changing the number of EVs will change the number of gasoline vehicles; the model assumes the absolute number of vehicles is the same as the default settings. Vehicle Type: The light truck category includes pickups, vans (full-size and mini), utility-type vehicles, as well as other vehicles (panel trucks and delivery vans generally of 10,000 pounds or less gross vehicle weight).
A5: Required Input | F5: Optional Market and Vehicle Settings | K5: Optional Revenue Settings
A6: State | B6: U.S. Total | D6: =AVERAGE(Calculations!E96:AJ96) -> 0.01699862407 | E6: =SUMIFS(Motor_Fuel_Taxes[Gasoline Tax ($/gallon)],Motor_Fuel_Taxes[State], Input_State_Modeled, Motor_Fuel_Taxes[Year], "1/1/" & Input_Base_Year_Modeled) -> 0.184 | F6: Annual Inflation Rate (%) | I6: 0.01699862407 | K6: Baseline Gasoline Tax ($/gallon) | N6: 0.184
A7: Vehicle Type | B7: Light-Duty Vehicles | D7: =Calculations!E157 -> 0.6989108914 | E7: =SUMIFS(Motor_Fuel_Taxes[Diesel Tax ($/gallon)],Motor_Fuel_Taxes[State], Input_State_Modeled, Motor_Fuel_Taxes[Year], "1/1/" & Input_Base_Year_Modeled) -> 0.244 | F7: Share of Motor Fuel Tax Revenue from Gasoline Tax (%) | I7: 0.6989108914 | K7: Baseline Diesel Tax ($/gallon) | N7: 0.244
A8: Scenario from U.S. EIA Annual Energy Outlook | B8: Reference case | D8: =Calculations!E97/Calculations!E122*Calculations!E127 -> 5263436.175 | E8: =AVERAGE(Calculations!E79:OFFSET(Calculations!E79, 0,Input_End_Year_Modeled-Input_Baseline_Year_Modeled)) -> 25.38385948 | F8: Baseline Battery Electric Vehicles | I8: 5263436.175 | K8: Fuel Economy of Vehicle that EV is Replacing (MPG) | N8: 25.38385948
A9: Inflation Index | B9: CPI | D9: =(Calculations!E99)/Calculations!E122*Calculations!E127 -> 1142212.549 | E9: No | F9: Baseline Plug-in 20 Gasoline Hybrid Vehicles | I9: 1142212.549 | K9: Index Motor Fuel Tax to Inflation (Yes/No) | N9: No
A10: End Year for Analysis | B10: 2035 | D10: =(Calculations!E101)/Calculations!E122*Calculations!E127 -> 421952.9603 | E10: No | F10: Baseline Plug-in 50 Gasoline Hybrid Vehicles | I10: 421952.9603 | K10: Index Motor Fuel Tax to Fuel Use (Yes/No) | N10: No
A11: Baseline Year for Analysis | B11: 2024 | D11: =Calculations!E103/Calculations!E122*Calculations!E127 -> 8532978.918 | F11: Baseline Hybrid Electric Vehicles | I11: 8532978.918
D12: =AVERAGE(Calculations!E98:OFFSET(Calculations!E98, 0,Input_End_Year_Modeled-Input_Baseline_Year_Modeled)) -> 0.2444566482 | F12: Annual Battery Electric Vehicle Growth Rate (%) | I12: 0.2444566482 | K12: Electric Vehicle Annual Fee | N12: None
D13: =AVERAGE(Calculations!E100:OFFSET(Calculations!E100, 0,Input_End_Year_Modeled-Input_Baseline_Year_Modeled)) -> 0.1362796186 | E13: None | F13: Annual Plug-in 20 Gasoline Hybrid Vehicle Growth Rate (%) | I13: 0.1362796186 | K13: Battery Electric Vehicle Fee | N13: 0
D14: =AVERAGE(Calculations!E102:AJ102) -> 0.1233407014 | E14: 0 | F14: Annual Plug-in 50 Gasoline Hybrid Vehicle Growth Rate (%) | I14: 0.1233407014 | K14: Plug-In Hybrid Electric Vehicle Fee | N14: 0
D15: =AVERAGE(Calculations!E104:OFFSET(Calculations!E104, 0,Input_End_Year_Modeled-Input_Baseline_Year_Modeled)) -> 0.06605988138 | E15: 0 | F15: Annual Hybrid Electric Vehicle Growth Rate (%) | I15: 0.06605988138 | K15: Hybrid Electric Vehicle Fee | N15: 0
D16: 0.23 | E16: 0 | F16: Plug-in 20 Gasoline Hybrid Share of Electric Miles (%) | I16: 0.23
D17: 0.63 | F17: Plug-in 50 Gasoline Hybrid Share of Electric Miles (%) | I17: 0.63
D18: =AVERAGE(Calculations!E116:AJ116) -> 0.0212811365 | F18: Annual Change in Vehicle Stock Fuel Economy (MPG) (%) | I18: 0.0212811365
D19: =AVERAGE(Calculations!E118:AJ118) -> 0.0005898071672 | F19: Annual Change in VMT (%) | I19: 0.0005898071672
A21: Tool Results
A22: Results are shown in summary statstics and three graphs. See the Calculations tab for detailed results.
A24: Revenue Summary and Mechanisms
B26: =Input_Baseline_Year_Modeled+1 -> 2025 | C26: =Input_End_Year_Modeled -> 2035 | K26: Total Change | L26: Absolute Change in % | M26: Average Annual Change in %
A28: Baseline Revenue (Motor Fuel Tax only) does not include any Optional Settings
A29: ="Baseline Motor Fuel Tax Revenue (Nominal), "& Input_Baseline_Year_Modeled+1 &"-" & Input_End_Year_Modeled &" ($)" -> Baseline Motor Fuel Tax Revenue (Nominal), 2025-2035 ($) | B29: =(INDEX(Calculations!$E$154:$AJ$193,MATCH(Calculations!$A$159,Calculations!$A$154:$A$193,0),Input_Baseline_Year_Modeled+1-Calculations!$E$154+1)) -> 2.831412606e+10 | C29: =(INDEX(Calculations!$E$154:$AJ$193,MATCH(Calculations!$A$159,Calculations!$A$154:$A$193,0),Input_End_Year_Modeled-Calculations!$E$154+1)) -> 1.579056745e+10 | G29: ="Change in Baseline Motor Fuel Tax Revenue (Nominal), "& Input_Baseline_Year_Modeled+1&"-"&Input_End_Year_Modeled& " ($), (%)" -> Change in Baseline Motor Fuel Tax Revenue (Nominal), 2025-2035 ($), (%) | K29: =C29-B29 -> -1.252355861e+10 | L29: =IFERROR((C29-B29)/B29, 0) -> -0.4423077931 | M29: =IFERROR(AVERAGE(Calculations!F160:AJ160), 0) -> -0.05654340141
A32: Revenue Breakdown (Motor Fuel Tax and Advanced Vehicle Fees) considering Optional Settings
A33: Motor Fuel Tax Revenue ($) | B33: =(INDEX(Calculations!$E$154:$AJ$193,MATCH(Calculations!$A$167,Calculations!$A$154:$A$193,0),Input_Baseline_Year_Modeled+1-Calculations!$E$154+1)) -> 2.881293115e+10 | C33: =(INDEX(Calculations!$E$154:$AJ$193,MATCH(Calculations!$A$167,Calculations!$A$154:$A$193,0),Input_End_Year_Modeled-Calculations!$E$154+1)) -> 1.611237104e+10 | G33: ="Change in Motor Fuel Tax Revenue, "& Input_Baseline_Year_Modeled+1&"-"&Input_End_Year_Modeled&" ($), (%)" -> Change in Motor Fuel Tax Revenue, 2025-2035 ($), (%) | K33: =C33-B33 -> -1.27005601e+10 | L33: =IFERROR((C33-B33)/B33, 0) -> -0.4407937547 | M33: =IFERROR(AVERAGE(Calculations!F168:AJ168), 0) -> -0.05468015925
A34: Advanced Vehicle Fee Revenue (Nominal) ($) | B34: =(INDEX(Calculations!$E$154:$AJ$193,MATCH(Calculations!$A$173,Calculations!$A$154:$A$193,0),Input_Baseline_Year_Modeled+1-Calculations!$E$154+1)) -> 0 | C34: =(INDEX(Calculations!$E$154:$AJ$193,MATCH(Calculations!$A$173,Calculations!$A$154:$A$193,0),Input_End_Year_Modeled-Calculations!$E$154+1)) -> 0 | G34: ="Change in Electric Vehicle Fee Revenue (Nominal), "& Input_Baseline_Year_Modeled+1&"-"&Input_End_Year_Modeled&" ($), (%)" -> Change in Electric Vehicle Fee Revenue (Nominal), 2025-2035 ($), (%) | K34: =C34-B34 -> 0 | L34: =IFERROR((C34-B34)/B34, 0) -> 0 | M34: =IFERROR(AVERAGE(Calculations!F174:AJ174), 0) -> 0
A36: Revenue Mechanisms
A37: Gasoline Tax ($/gallon) | B37: =(INDEX(Calculations!$E$154:$AJ$196,MATCH(Calculations!$A$189,Calculations!$A$154:$A$196,0),Input_Baseline_Year_Modeled+1-Calculations!$E$154+1)) -> 0.184 | C37: =(INDEX(Calculations!$E$154:$AJ$196,MATCH(Calculations!$A$189,Calculations!$A$154:$A$196,0),Input_End_Year_Modeled-Calculations!$E$154+1)) -> 0.184 | G37: ="Change in Gasoline Tax, "& Input_Baseline_Year_Modeled+1&"-"&Input_End_Year_Modeled&" ($), (%)" -> Change in Gasoline Tax, 2025-2035 ($), (%) | K37: =C37-B37 -> 0 | L37: =IFERROR((C37-B37)/B37, 0) -> 0 | M37: =IFERROR(AVERAGE(Calculations!F190:AJ190), 0) -> 0
A38: =IF(Input_Electric_Vehicle_Revenue_Option_Modeled="One-Time Fixed", "One-Time ", "Fixed ") & "Battery Electric Vehicle Fee (Nominal) ($/vehicle)" -> Fixed Battery Electric Vehicle Fee (Nominal) ($/vehicle) | B38: =(INDEX(Calculations!$E$154:$AJ$196,MATCH(Calculations!$A$191,Calculations!$A$154:$A$196,0),Input_Baseline_Year_Modeled+1-Calculations!$E$154+1)) -> 0 | C38: =(INDEX(Calculations!$E$154:$AJ$196,MATCH(Calculations!$A$191,Calculations!$A$154:$A$196,0),Input_End_Year_Modeled-Calculations!$E$154+1)) -> 0 | G38: ="Change in Annual Battery Electric Vehicle Fee (Nominal), "& Input_Baseline_Year_Modeled+1&"-"&Input_End_Year_Modeled&" ($), (%)" -> Change in Annual Battery Electric Vehicle Fee (Nominal), 2025-2035 ($), (%) | K38: =C38-B38 -> 0 | L38: =IFERROR((C38-B38)/B38, 0) -> 0 | M38: =IFERROR(AVERAGE(Calculations!F192:AJ192), 0) -> 0
A39: =IF(Input_Electric_Vehicle_Revenue_Option_Modeled="One-Time Fixed", "One-Time ", "Fixed ") & "Plug-In Hybrid Electric Vehicle Fee (Nominal) ($/vehicle)" -> Fixed Plug-In Hybrid Electric Vehicle Fee (Nominal) ($/vehicle) | B39: =(INDEX(Calculations!$E$154:$AJ$196,MATCH(Calculations!$A$193,Calculations!$A$154:$A$196,0),Input_Baseline_Year_Modeled+1-Calculations!$E$154+1)) -> 0 | C39: =(INDEX(Calculations!$E$154:$AJ$196,MATCH(Calculations!$A$193,Calculations!$A$154:$A$196,0),Input_End_Year_Modeled-Calculations!$E$154+1)) -> 0 | G39: ="Change in Annual Plug-in Hybrid Electric Vehicle Fee (Nominal), "& Input_Baseline_Year_Modeled+1&"-"&Input_End_Year_Modeled&" ($), (%)" -> Change in Annual Plug-in Hybrid Electric Vehicle Fee (Nominal), 2025-2035 ($), (%) | K39: =C39-B39 -> 0 | L39: =IFERROR((C39-B39)/B39, 0) -> 0 | M39: =IFERROR(AVERAGE(Calculations!F194:AJ194), 0) -> 0
A40: =IF(Input_Electric_Vehicle_Revenue_Option_Modeled="One-Time Fixed", "One-Time ", "Fixed ") & "Hybrid Electric Vehicle Fee (Nominal) ($/vehicle)" -> Fixed Hybrid Electric Vehicle Fee (Nominal) ($/vehicle) | B40: =(INDEX(Calculations!$E$154:$AJ$196,MATCH(Calculations!$A$195,Calculations!$A$154:$A$196,0),Input_Baseline_Year_Modeled+1-Calculations!$E$154+1)) -> 0 | C40: =(INDEX(Calculations!$E$154:$AJ$196,MATCH(Calculations!$A$195,Calculations!$A$154:$A$196,0),Input_End_Year_Modeled-Calculations!$E$154+1)) -> 0 | G40: ="Change in Annual Hybrid Electric Vehicle Fee (Nominal), "& Input_Baseline_Year_Modeled+1&"-"&Input_End_Year_Modeled&" ($), (%)" -> Change in Annual Hybrid Electric Vehicle Fee (Nominal), 2025-2035 ($), (%) | K40: =C40-B40 -> 0 | L40: =IFERROR((C40-B40)/B40, 0) -> 0 | M40: =IFERROR(AVERAGE(Calculations!F196:AJ196), 0) -> 0
A42: Vehicle Market, Travel, and Fuel Use
A43: Inflation | B43: =(INDEX(Calculations!$E$119:$AJ$196,MATCH(Calculations!$A$119,Calculations!$A$119:$A$196,0),Input_Baseline_Year_Modeled+1-Calculations!$E$154+1)) -> 0.01761682795 | C43: =(INDEX(Calculations!$E$119:$AJ$196,MATCH(Calculations!$A$119,Calculations!$A$119:$A$196,0),Input_End_Year_Modeled-Calculations!$E$154+1)) -> 0.02037948262 | G43: ="Change in Inflation, "& Input_Baseline_Year_Modeled+1&"-"&Input_End_Year_Modeled&" (%)" -> Change in Inflation, 2025-2035 (%) | K43: =C43-B43 -> 0.002762654669 | L43: =IFERROR((C43-B43)/B43, 0) -> 0.1568190753 | M43: =IFERROR(AVERAGE(Calculations!F120:AJ120), 0) -> 0.01345438508
A44: Gasoline Consumption (gallons) | B44: =(INDEX(Calculations!$E$119:$AJ$196,MATCH(Calculations!$A$150,Calculations!$A$119:$A$196,0),Input_Baseline_Year_Modeled+1-Calculations!$E$154+1)) -> 1.538811199e+11 | C44: =(INDEX(Calculations!$E$119:$AJ$196,MATCH(Calculations!$A$150,Calculations!$A$119:$A$196,0),Input_End_Year_Modeled-Calculations!$E$154+1)) -> 8.581830135e+10 | G44: ="Change in Gasoline Consumption, "& Input_Baseline_Year_Modeled+1&"-"&Input_End_Year_Modeled&" (gallons), (%)" -> Change in Gasoline Consumption, 2025-2035 (gallons), (%) | K44: =C44-B44 -> -6.806281854e+10 | L44: =IFERROR((C44-B44)/B44, 0) -> -0.4423077931 | M44: =IFERROR(AVERAGE(Calculations!F151:AJ151), 0) -> -0.05654340141
A45: Gasoline Vehicle Stock (vehicles) | B45: =(INDEX(Calculations!$E$119:$AJ$196,MATCH(Calculations!$A$127,Calculations!$A$119:$A$196,0),Input_Baseline_Year_Modeled+1-Calculations!$E$154+1)) -> 273579162 | C45: =(INDEX(Calculations!$E$119:$AJ$196,MATCH(Calculations!$A$127,Calculations!$A$119:$A$196,0),Input_End_Year_Modeled-Calculations!$E$154+1)) -> 202625453 | G45: ="Change in Gasoline Vehicle Stock, "& Input_Baseline_Year_Modeled+1&"-"&Input_End_Year_Modeled & " (vehicles), (%)" -> Change in Gasoline Vehicle Stock, 2025-2035 (vehicles), (%) | K45: -70953709 | L45: -0.2593534847 | M45: =IFERROR(AVERAGE(Calculations!#REF!), 0) -> 0
A46: Gasoline Vehicle Stock Fuel Economy (MPG) | B46: =(INDEX(Calculations!$E$119:$AJ$196,MATCH(Calculations!$A$146,Calculations!$A$119:$A$196,0),Input_Baseline_Year_Modeled+1-Calculations!$E$154+1)) -> 22.57356834 | C46: =(INDEX(Calculations!$E$119:$AJ$196,MATCH(Calculations!$A$146,Calculations!$A$119:$A$196,0),Input_End_Year_Modeled-Calculations!$E$154+1)) -> 29.76769447 | G46: ="Change in Vehicle Fuel Economy, "& Input_Baseline_Year_Modeled+1&"-"&Input_End_Year_Modeled & " (MPG), (%)" -> Change in Vehicle Fuel Economy, 2025-2035 (MPG), (%) | K46: 7.194126129 | L46: 0.3186968945 | M46: =IFERROR(AVERAGE(Calculations!F147:AJ147), 0) -> 0.02619889224
A47: Electric Vehicle Stock (vehicles) | B47: =(INDEX(Calculations!$E$119:$AJ$196,MATCH(Calculations!$A$132,Calculations!$A$119:$A$196,0),Input_Baseline_Year_Modeled+1-Calculations!$E$154+1)) -> 6879233 | C47: =(INDEX(Calculations!$E$119:$AJ$196,MATCH(Calculations!$A$132,Calculations!$A$119:$A$196,0),Input_End_Year_Modeled-Calculations!$E$154+1)) -> 55257575 | G47: ="Change in Advanced Vehicle Stock, "& Input_Baseline_Year_Modeled+1&"-"&Input_End_Year_Modeled & " (vehicles), (%)" -> Change in Advanced Vehicle Stock, 2025-2035 (vehicles), (%) | K47: =C47-B47 -> 48378342 | L47: =IFERROR((C47-B47)/B47, 0) -> 7.032519759 | M47: =IFERROR(AVERAGE(Calculations!F133:AJ133), 0) -> 0.1956483052
A48: Advanced Vehicle Stock (vehicles) | B48: =(INDEX(Calculations!$E$119:$AJ$196,MATCH(Calculations!$A$134,Calculations!$A$119:$A$196,0),Input_Baseline_Year_Modeled+1-Calculations!$E$154+1)) -> 14759867 | C48: =(INDEX(Calculations!$E$119:$AJ$196,MATCH(Calculations!$A$134,Calculations!$A$119:$A$196,0),Input_End_Year_Modeled-Calculations!$E$154+1)) -> 70198487 | G48: ="Change in Advanced Vehicle Stock, "& Input_Baseline_Year_Modeled+1&"-"&Input_End_Year_Modeled & " (vehicles), (%)" -> Change in Advanced Vehicle Stock, 2025-2035 (vehicles), (%) | K48: 55438620 | L48: 3.75603791 | M48: =IFERROR(AVERAGE(Calculations!F135:AJ135), 0) -> 0.1462272478
A49: Annual VMT (miles) | B49: =(INDEX(Calculations!$E$119:$AJ$196,MATCH(Calculations!$A$148,Calculations!$A$119:$A$196,0),Input_Baseline_Year_Modeled+1-Calculations!$E$154+1)) -> 12697.04151 | C49: =(INDEX(Calculations!$E$119:$AJ$196,MATCH(Calculations!$A$148,Calculations!$A$119:$A$196,0),Input_End_Year_Modeled-Calculations!$E$154+1)) -> 12607.56207 | G49: ="Change in Annual VMT, "& Input_Baseline_Year_Modeled+1&"-"&Input_End_Year_Modeled & " (miles), (%)" -> Change in Annual VMT, 2025-2035 (miles), (%) | K49: -89.47944641 | L49: -0.007047267376 | M49: =IFERROR(AVERAGE(Calculations!F149:AJ149), 0) -> -0.0001842261669
A52: This graph estimates revenue losses compared to the baseline (first year) from several factors (negative losses are revenue increases); this graph is not affected by changes to Optional Revenue Settings. That is, this graph is intended to model business as usual if no revenue changes are made (i.e., the gasoline tax stays constant and no electric vehicle fees are implemented). | H52: ="This graph shows the changes in a number of factors scaled to " & Input_Baseline_Year_Modeled & " levels allowing for an apples-to-apples comparison of factors with different units of measurement." -> This graph shows the changes in a number of factors scaled to 2024 levels allowing for an apples-to-apples comparison of factors with different units of measurement.
A76: This graph shows total revenue and revenue losses/gains considering all inputs, including Optional Revenue Settings. When an Advanced Vehicle fee is selected, the revenue shown will be broken down by fuel tax revenue and Advanced Vehicle fee revenue. | H76: This graph shows the deployment of electric and conventional vehicles over time.

Sheet Calculations
A1: Calculations - Highway Revenue Assessment Tool
A2: Model Input
A3: Vehicle Stock (millions)
A4: Vehicle Type | B4: Technology Type | C4: Fuel | D4: Type | E4: =MIN(Vehicle_Stock_Projections[Year]) -> 2024 | F4: =MIN(E4+1, 2050) -> 2025 | G4: 2026 | H4: 2027 | I4: 2028 | J4: 2029 | K4: 2030 | L4: 2031 | M4: 2032 | N4: 2033 | O4: 2034 | P4: 2035 | Q4: 2036 | R4: 2037 | S4: 2038 | T4: 2039 | U4: 2040 | V4: 2041 | W4: 2042 | X4: 2043 | Y4: 2044 | Z4: 2045 | AA4: 2046 | AB4: 2047 | AC4: 2048 | AD4: 2049 | AE4: 2050 | AF4: 2050 | AG4: =MIN(AF4+1, 2050) -> 2050 | AH4: =MIN(AG4+1, 2050) -> 2050 | AI4: =MIN(AH4+1, 2050) -> 2050 | AJ4: =MIN(AI4+1, 2050) -> 2050
A5: Passenger Cars | B5: Gasoline ICE Vehicles | C5: Gasoline | D5: Stock | E5: =IF(Input_Scenario_Modeled="Custom", SUMIFS(Custom_Stock_MPG[Vehicle Stock],Custom_Stock_MPG[Year],Calculations!E$4, Custom_Stock_MPG[[ Technology Type]], $B5, Custom_Stock_MPG[Vehicle Type], $A5, Custom_Stock_MPG[Scenario], Input_Scenario_Modeled), SUMIFS(Vehicle_Stock_Projections[Vehicle Stock],Vehicle_Stock_Projections[Year],Calculations!E$4,Vehicle_Stock_Projections[Technology Type], $B5, Vehicle_Stock_Projections[Vehicle Type], $A5, Vehicle_Stock_Projections[Scenario], Input_Scenario_Modeled)) -> 108.7363815 | F5: =IF(Input_Scenario_Modeled="Custom", SUMIFS(Custom_Stock_MPG[Vehicle Stock],Custom_Stock_MPG[Year],Calculations!F$4, Custom_Stock_MPG[[ Technology Type]], $B5, Custom_Stock_MPG[Vehicle Type], $A5, Custom_Stock_MPG[Scenario], Input_Scenario_Modeled), SUMIFS(Vehicle_Stock_Projections[Vehicle Stock],Vehicle_Stock_Projections[Year],Calculations!F$4,Vehicle_Stock_Projections[Technology Type], $B5, Vehicle_Stock_Projections[Vehicle Type], $A5, Vehicle_Stock_Projections[Scenario], Input_Scenario_Modeled)) -> 105.8558502 | G5: =IF(Input_Scenario_Modeled="Custom", SUMIFS(Custom_Stock_MPG[Vehicle Stock],Custom_Stock_MPG[Year],Calculations!G$4, Custom_Stock_MPG[[ Technology Type]], $B5, Custom_Stock_MPG[Vehicle Type], $A5, Custom_Stock_MPG[Scenario], Input_Scenario_Modeled), SUMIFS(Vehicle_Stock_Projections[Vehicle Stock],Vehicle_Stock_Projections[Year],Calculations!G$4,Vehicle_Stock_Projections[Technology Type], $B5, Vehicle_Stock_Projections[Vehicle Type], $A5, Vehicle_Stock_Projections[Scenario], Input_Scenario_Modeled)) -> 102.6097946 | H5: =IF(Input_Scenario_Modeled="Custom", SUMIFS(Custom_Stock_MPG[Vehicle Stock],Custom_Stock_MPG[Year],Calculations!H$4, Custom_Stock_MPG[[ Technology Type]], $B5, Custom_Stock_MPG[Vehicle Type], $A5, Custom_Stock_MPG[Scenario], Input_Scenario_Modeled), SUMIFS(Vehicle_Stock_Projections[Vehicle Stock],Vehicle_Stock_Projections[Year],Calculations!H$4,Vehicle_Stock_Projections[Technology Type], $B5, Vehicle_Stock_Projections[Vehicle Type], $A5, Vehicle_Stock_Projections[Scenario], Input_Scenario_Modeled)) -> 98.99171448 | I5: =IF(Input_Scenario_Modeled="Custom", SUMIFS(Custom_Stock_MPG[Vehicle Stock],Custom_Stock_MPG[Year],Calculations!I$4, Custom_Stock_MPG[[ Technology Type]], $B5, Custom_Stock_MPG[Vehicle Type], $A5, Custom_Stock_MPG[Scenario], Input_Scenario_Modeled), SUMIFS(Vehicle_Stock_Projections[Vehicle Stock],Vehicle_Stock_Projections[Year],Calculations!I$4,Vehicle_Stock_Projections[Technology Type], $B5, Vehicle_Stock_Projections[Vehicle Type], $A5, Vehicle_Stock_Projections[Scenario], Input_Scenario_Modeled)) -> 95.06412506 | J5: =IF(Input_Scenario_Modeled="Custom", SUMIFS(Custom_Stock_MPG[Vehicle Stock],Custom_Stock_MPG[Year],Calculations!J$4, Custom_Stock_MPG[[ Technology Type]], $B5, Custom_Stock_MPG[Vehicle Type], $A5, Custom_Stock_MPG[Scenario], Input_Scenario_Modeled), SUMIFS(Vehicle_Stock_Projections[Vehicle Stock],Vehicle_Stock_Projections[Year],Calculations!J$4,Vehicle_Stock_Projections[Technology Type], $B5, Vehicle_Stock_Projections[Vehicle Type], $A5, Vehicle_Stock_Projections[Scenario], Input_Scenario_Modeled)) -> 91.07402802 | K5: =IF(Input_Scenario_Modeled="Custom", SUMIFS(Custom_Stock_MPG[Vehicle Stock],Custom_Stock_MPG[Year],Calculations!K$4, Custom_Stock_MPG[[ Technology Type]], $B5, Custom_Stock_MPG[Vehicle Type], $A5, Custom_Stock_MPG[Scenario], Input_Scenario_Modeled), SUMIFS(Vehicle_Stock_Projections[Vehicle Stock],Vehicle_Stock_Projections[Year],Calculations!K$4,Vehicle_Stock_Projections[Technology Type], $B5, Vehicle_Stock_Projections[Vehicle Type], $A5, Vehicle_Stock_Projections[Scenario], Input_Scenario_Modeled)) -> 87.0582428 | L5: =IF(Input_Scenario_Modeled="Custom", SUMIFS(Custom_Stock_MPG[Vehicle Stock],Custom_Stock_MPG[Year],Calculations!L$4, Custom_Stock_MPG[[ Technology Type]], $B5, Custom_Stock_MPG[Vehicle Type], $A5, Custom_Stock_MPG[Scenario], Input_Scenario_Modeled), SUMIFS(Vehicle_Stock_Projections[Vehicle Stock],Vehicle_Stock_Projections[Year],Calculations!L$4,Vehicle_Stock_Projections[Technology Type], $B5, Vehicle_Stock_Projections[Vehicle Type], $A5, Vehicle_Stock_Projections[Scenario], Input_Scenario_Modeled)) -> 82.95050812 | M5: =IF(Input_Scenario_Modeled="Custom", SUMIFS(Custom_Stock_MPG[Vehicle Stock],Custom_Stock_MPG[Year],Calculations!M$4, Custom_Stock_MPG[[ Technology Type]], $B5, Custom_Stock_MPG[Vehicle Type], $A5, Custom_Stock_MPG[Scenario], Input_Scenario_Modeled), SUMIFS(Vehicle_Stock_Projections[Vehicle Stock],Vehicle_Stock_Projections[Year],Calculations!M$4,Vehicle_Stock_Projections[Technology Type], $B5, Vehicle_Stock_Projections[Vehicle Type], $A5, Vehicle_Stock_Projections[Scenario], Input_Scenario_Modeled)) -> 78.64263916 | N5: =IF(Input_Scenario_Modeled="Custom", SUMIFS(Custom_Stock_MPG[Vehicle Stock],Custom_Stock_MPG[Year],Calculations!N$4, Custom_Stock_MPG[[ Technology Type]], $B5, Custom_Stock_MPG[Vehicle Type], $A5, Custom_Stock_MPG[Scenario], Input_Scenario_Modeled), SUMIFS(Vehicle_Stock_Projections[Vehicle Stock],Vehicle_Stock_Projections[Year],Calculations!N$4,Vehicle_Stock_Projections[Technology Type], $B5, Vehicle_Stock_Projections[Vehicle Type], $A5, Vehicle_Stock_Projections[Scenario], Input_Scenario_Modeled)) -> 74.39025116 | O5: =IF(Input_Scenario_Modeled="Custom", SUMIFS(Custom_Stock_MPG[Vehicle Stock],Custom_Stock_MPG[Year],Calculations!O$4, Custom_Stock_MPG[[ Technology Type]], $B5, Custom_Stock_MPG[Vehicle Type], $A5, Custom_Stock_MPG[Scenario], Input_Scenario_Modeled), SUMIFS(Vehicle_Stock_Projections[Vehicle Stock],Vehicle_Stock_Projections[Year],Calculations!O$4,Vehicle_Stock_Projections[Technology Type], $B5, Vehicle_Stock_Projections[Vehicle Type], $A5, Vehicle_Stock_Projections[Scenario], Input_Scenario_Modeled)) -> 70.35700226 | P5: =IF(Input_Scenario_Modeled="Custom", SUMIFS(Custom_Stock_MPG[Vehicle Stock],Custom_Stock_MPG[Year],Calculations!P$4, Custom_Stock_MPG[[ Technology Type]], $B5, Custom_Stock_MPG[Vehicle Type], $A5, Custom_Stock_MPG[Scenario], Input_Scenario_Modeled), SUMIFS(Vehicle_Stock_Projections[Vehicle Stock],Vehicle_Stock_Projections[Year],Calculations!P$4,Vehicle_Stock_Projections[Technology Type], $B5, Vehicle_Stock_Projections[Vehicle Type], $A5, Vehicle_Stock_Projections[Scenario], Input_Scenario_Modeled)) -> 66.53948212 | Q5: =IF(Input_Scenario_Modeled="Custom", SUMIFS(Custom_Stock_MPG[Vehicle Stock],Custom_Stock_MPG[Year],Calculations!Q$4, Custom_Stock_MPG[[ Technology Type]], $B5, Custom_Stock_MPG[Vehicle Type], $A5, Custom_Stock_MPG[Scenario], Input_Scenario_Modeled), SUMIFS(Vehicle_Stock_Projections[Vehicle Stock],Vehicle_Stock_Projections[Year],Calculations!Q$4,Vehicle_Stock_Projections[Technology Type], $B5, Vehicle_Stock_Projections[Vehicle Type], $A5, Vehicle_Stock_Projections[Scenario], Input_Scenario_Modeled)) -> 62.97356415 | R5: =IF(Input_Scenario_Modeled="Custom", SUMIFS(Custom_Stock_MPG[Vehicle Stock],Custom_Stock_MPG[Year],Calculations!R$4, Custom_Stock_MPG[[ Technology Type]], $B5, Custom_Stock_MPG[Vehicle Type], $A5, Custom_Stock_MPG[Scenario], Input_Scenario_Modeled), SUMIFS(Vehicle_Stock_Projections[Vehicle Stock],Vehicle_Stock_Projections[Year],Calculations!R$4,Vehicle_Stock_Projections[Technology Type], $B5, Vehicle_Stock_Projections[Vehicle Type], $A5, Vehicle_Stock_Projections[Scenario], Input_Scenario_Modeled)) -> 59.69340897 | S5: =IF(Input_Scenario_Modeled="Custom", SUMIFS(Custom_Stock_MPG[Vehicle Stock],Custom_Stock_MPG[Year],Calculations!S$4, Custom_Stock_MPG[[ Technology Type]], $B5, Custom_Stock_MPG[Vehicle Type], $A5, Custom_Stock_MPG[Scenario], Input_Scenario_Modeled), SUMIFS(Vehicle_Stock_Projections[Vehicle Stock],Vehicle_Stock_Projections[Year],Calculations!S$4,Vehicle_Stock_Projections[Technology Type], $B5, Vehicle_Stock_Projections[Vehicle Type], $A5, Vehicle_Stock_Projections[Scenario], Input_Scenario_Modeled)) -> 56.71731186 | T5: =IF(Input_Scenario_Modeled="Custom", SUMIFS(Custom_Stock_MPG[Vehicle Stock],Custom_Stock_MPG[Year],Calculations!T$4, Custom_Stock_MPG[[ Technology Type]], $B5, Custom_Stock_MPG[Vehicle Type], $A5, Custom_Stock_MPG[Scenario], Input_Scenario_Modeled), SUMIFS(Vehicle_Stock_Projections[Vehicle Stock],Vehicle_Stock_Projections[Year],Calculations!T$4,Vehicle_Stock_Projections[Technology Type], $B5, Vehicle_Stock_Projections[Vehicle Type], $A5, Vehicle_Stock_Projections[Scenario], Input_Scenario_Modeled)) -> 54.03501129 | U5: =IF(Input_Scenario_Modeled="Custom", SUMIFS(Custom_Stock_MPG[Vehicle Stock],Custom_Stock_MPG[Year],Calculations!U$4, Custom_Stock_MPG[[ Technology Type]], $B5, Custom_Stock_MPG[Vehicle Type], $A5, Custom_Stock_MPG[Scenario], Input_Scenario_Modeled), SUMIFS(Vehicle_Stock_Projections[Vehicle Stock],Vehicle_Stock_Projections[Year],Calculations!U$4,Vehicle_Stock_Projections[Technology Type], $B5, Vehicle_Stock_Projections[Vehicle Type], $A5, Vehicle_Stock_Projections[Scenario], Input_Scenario_Modeled)) -> 51.6340065 | V5: =IF(Input_Scenario_Modeled="Custom", SUMIFS(Custom_Stock_MPG[Vehicle Stock],Custom_Stock_MPG[Year],Calculations!V$4, Custom_Stock_MPG[[ Technology Type]], $B5, Custom_Stock_MPG[Vehicle Type], $A5, Custom_Stock_MPG[Scenario], Input_Scenario_Modeled), SUMIFS(Vehicle_Stock_Projections[Vehicle Stock],Vehicle_Stock_Projections[Year],Calculations!V$4,Vehicle_Stock_Projections[Technology Type], $B5, Vehicle_Stock_Projections[Vehicle Type], $A5, Vehicle_Stock_Projections[Scenario], Input_Scenario_Modeled)) -> 49.47192383 | W5: =IF(Input_Scenario_Modeled="Custom", SUMIFS(Custom_Stock_MPG[Vehicle Stock],Custom_Stock_MPG[Year],Calculations!W$4, Custom_Stock_MPG[[ Technology Type]], $B5, Custom_Stock_MPG[Vehicle Type], $A5, Custom_Stock_MPG[Scenario], Input_Scenario_Modeled), SUMIFS(Vehicle_Stock_Projections[Vehicle Stock],Vehicle_Stock_Projections[Year],Calculations!W$4,Vehicle_Stock_Projections[Technology Type], $B5, Vehicle_Stock_Projections[Vehicle Type], $A5, Vehicle_Stock_Projections[Scenario], Input_Scenario_Modeled)) -> 47.55127335 | X5: =IF(Input_Scenario_Modeled="Custom", SUMIFS(Custom_Stock_MPG[Vehicle Stock],Custom_Stock_MPG[Year],Calculations!X$4, Custom_Stock_MPG[[ Technology Type]], $B5, Custom_Stock_MPG[Vehicle Type], $A5, Custom_Stock_MPG[Scenario], Input_Scenario_Modeled), SUMIFS(Vehicle_Stock_Projections[Vehicle Stock],Vehicle_Stock_Projections[Year],Calculations!X$4,Vehicle_Stock_Projections[Technology Type], $B5, Vehicle_Stock_Projections[Vehicle Type], $A5, Vehicle_Stock_Projections[Scenario], Input_Scenario_Modeled)) -> 45.82813644 | Y5: =IF(Input_Scenario_Modeled="Custom", SUMIFS(Custom_Stock_MPG[Vehicle Stock],Custom_Stock_MPG[Year],Calculations!Y$4, Custom_Stock_MPG[[ Technology Type]], $B5, Custom_Stock_MPG[Vehicle Type], $A5, Custom_Stock_MPG[Scenario], Input_Scenario_Modeled), SUMIFS(Vehicle_Stock_Projections[Vehicle Stock],Vehicle_Stock_Projections[Year],Calculations!Y$4,Vehicle_Stock_Projections[Technology Type], $B5, Vehicle_Stock_Projections[Vehicle Type], $A5, Vehicle_Stock_Projections[Scenario], Input_Scenario_Modeled)) -> 44.24188995 | Z5: =IF(Input_Scenario_Modeled="Custom", SUMIFS(Custom_Stock_MPG[Vehicle Stock],Custom_Stock_MPG[Year],Calculations!Z$4, Custom_Stock_MPG[[ Technology Type]], $B5, Custom_Stock_MPG[Vehicle Type], $A5, Custom_Stock_MPG[Scenario], Input_Scenario_Modeled), SUMIFS(Vehicle_Stock_Projections[Vehicle Stock],Vehicle_Stock_Projections[Year],Calculations!Z$4,Vehicle_Stock_Projections[Technology Type], $B5, Vehicle_Stock_Projections[Vehicle Type], $A5, Vehicle_Stock_Projections[Scenario], Input_Scenario_Modeled)) -> 42.83256912 | AA5: =IF(Input_Scenario_Modeled="Custom", SUMIFS(Custom_Stock_MPG[Vehicle Stock],Custom_Stock_MPG[Year],Calculations!AA$4, Custom_Stock_MPG[[ Technology Type]], $B5, Custom_Stock_MPG[Vehicle Type], $A5, Custom_Stock_MPG[Scenario], Input_Scenario_Modeled), SUMIFS(Vehicle_Stock_Projections[Vehicle Stock],Vehicle_Stock_Projections[Year],Calculations!AA$4,Vehicle_Stock_Projections[Technology Type], $B5, Vehicle_Stock_Projections[Vehicle Type], $A5, Vehicle_Stock_Projections[Scenario], Input_Scenario_Modeled)) -> 41.53406143 | AB5: =IF(Input_Scenario_Modeled="Custom", SUMIFS(Custom_Stock_MPG[Vehicle Stock],Custom_Stock_MPG[Year],Calculations!AB$4, Custom_Stock_MPG[[ Technology Type]], $B5, Custom_Stock_MPG[Vehicle Type], $A5, Custom_Stock_MPG[Scenario], Input_Scenario_Modeled), SUMIFS(Vehicle_Stock_Projections[Vehicle Stock],Vehicle_Stock_Projections[Year],Calculations!AB$4,Vehicle_Stock_Projections[Technology Type], $B5, Vehicle_Stock_Projections[Vehicle Type], $A5, Vehicle_Stock_Projections[Scenario], Input_Scenario_Modeled)) -> 40.36782837 | AC5: =IF(Input_Scenario_Modeled="Custom", SUMIFS(Custom_Stock_MPG[Vehicle Stock],Custom_Stock_MPG[Year],Calculations!AC$4, Custom_Stock_MPG[[ Technology Type]], $B5, Custom_Stock_MPG[Vehicle Type], $A5, Custom_Stock_MPG[Scenario], Input_Scenario_Modeled), SUMIFS(Vehicle_Stock_Projections[Vehicle Stock],Vehicle_Stock_Projections[Year],Calculations!AC$4,Vehicle_Stock_Projections[Technology Type], $B5, Vehicle_Stock_Projections[Vehicle Type], $A5, Vehicle_Stock_Projections[Scenario], Input_Scenario_Modeled)) -> 39.30760956 | AD5: =IF(Input_Scenario_Modeled="Custom", SUMIFS(Custom_Stock_MPG[Vehicle Stock],Custom_Stock_MPG[Year],Calculations!AD$4, Custom_Stock_MPG[[ Technology Type]], $B5, Custom_Stock_MPG[Vehicle Type], $A5, Custom_Stock_MPG[Scenario], Input_Scenario_Modeled), SUMIFS(Vehicle_Stock_Projections[Vehicle Stock],Vehicle_Stock_Projections[Year],Calculations!AD$4,Vehicle_Stock_Projections[Technology Type], $B5, Vehicle_Stock_Projections[Vehicle Type], $A5, Vehicle_Stock_Projections[Scenario], Input_Scenario_Modeled)) -> 38.3444519 | AE5: =IF(Input_Scenario_Modeled="Custom", SUMIFS(Custom_Stock_MPG[Vehicle Stock],Custom_Stock_MPG[Year],Calculations!AE$4, Custom_Stock_MPG[[ Technology Type]], $B5, Custom_Stock_MPG[Vehicle Type], $A5, Custom_Stock_MPG[Scenario], Input_Scenario_Modeled), SUMIFS(Vehicle_Stock_Projections[Vehicle Stock],Vehicle_Stock_Projections[Year],Calculations!AE$4,Vehicle_Stock_Projections[Technology Type], $B5, Vehicle_Stock_Projections[Vehicle Type], $A5, Vehicle_Stock_Projections[Scenario], Input_Scenario_Modeled)) -> 37.4737587 | AF5: =IF(Input_Scenario_Modeled="Custom", SUMIFS(Custom_Stock_MPG[Vehicle Stock],Custom_Stock_MPG[Year],Calculations!AF$4, Custom_Stock_MPG[[ Technology Type]], $B5, Custom_Stock_MPG[Vehicle Type], $A5, Custom_Stock_MPG[Scenario], Input_Scenario_Modeled), SUMIFS(Vehicle_Stock_Projections[Vehicle Stock],Vehicle_Stock_Projections[Year],Calculations!AF$4,Vehicle_Stock_Projections[Technology Type], $B5, Vehicle_Stock_Projections[Vehicle Type], $A5, Vehicle_Stock_Projections[Scenario], Input_Scenario_Modeled)) -> 37.4737587 | AG5: =IF(Input_Scenario_Modeled="Custom", SUMIFS(Custom_Stock_MPG[Vehicle Stock],Custom_Stock_MPG[Year],Calculations!AG$4, Custom_Stock_MPG[[ Technology Type]], $B5, Custom_Stock_MPG[Vehicle Type], $A5, Custom_Stock_MPG[Scenario], Input_Scenario_Modeled), SUMIFS(Vehicle_Stock_Projections[Vehicle Stock],Vehicle_Stock_Projections[Year],Calculations!AG$4,Vehicle_Stock_Projections[Technology Type], $B5, Vehicle_Stock_Projections[Vehicle Type], $A5, Vehicle_Stock_Projections[Scenario], Input_Scenario_Modeled)) -> 37.4737587 | AH5: =IF(Input_Scenario_Modeled="Custom", SUMIFS(Custom_Stock_MPG[Vehicle Stock],Custom_Stock_MPG[Year],Calculations!AH$4, Custom_Stock_MPG[[ Technology Type]], $B5, Custom_Stock_MPG[Vehicle Type], $A5, Custom_Stock_MPG[Scenario], Input_Scenario_Modeled), SUMIFS(Vehicle_Stock_Projections[Vehicle Stock],Vehicle_Stock_Projections[Year],Calculations!AH$4,Vehicle_Stock_Projections[Technology Type], $B5, Vehicle_Stock_Projections[Vehicle Type], $A5, Vehicle_Stock_Projections[Scenario], Input_Scenario_Modeled)) -> 37.4737587 | AI5: =IF(Input_Scenario_Modeled="Custom", SUMIFS(Custom_Stock_MPG[Vehicle Stock],Custom_Stock_MPG[Year],Calculations!AI$4, Custom_Stock_MPG[[ Technology Type]], $B5, Custom_Stock_MPG[Vehicle Type], $A5, Custom_Stock_MPG[Scenario], Input_Scenario_Modeled), SUMIFS(Vehicle_Stock_Projections[Vehicle Stock],Vehicle_Stock_Projections[Year],Calculations!AI$4,Vehicle_Stock_Projections[Technology Type], $B5, Vehicle_Stock_Projections[Vehicle Type], $A5, Vehicle_Stock_Projections[Scenario], Input_Scenario_Modeled)) -> 37.4737587 | AJ5: =IF(Input_Scenario_Modeled="Custom", SUMIFS(Custom_Stock_MPG[Vehicle Stock],Custom_Stock_MPG[Year],Calculations!AJ$4, Custom_Stock_MPG[[ Technology Type]], $B5, Custom_Stock_MPG[Vehicle Type], $A5, Custom_Stock_MPG[Scenario], Input_Scenario_Modeled), SUMIFS(Vehicle_Stock_Projections[Vehicle Stock],Vehicle_Stock_Projections[Year],Calculations!AJ$4,Vehicle_Stock_Projections[Technology Type], $B5, Vehicle_Stock_Projections[Vehicle Type], $A5, Vehicle_Stock_Projections[Scenario], Input_Scenario_Modeled)) -> 37.4737587
A6: Passenger Cars | B6: Ethanol-Flex Fuel ICE | C6: Gasoline | D6: Stock | E6: =IF(Input_Scenario_Modeled="Custom", SUMIFS(Custom_Stock_MPG[Vehicle Stock],Custom_Stock_MPG[Year],Calculations!E$4, Custom_Stock_MPG[[ Technology Type]], $B6, Custom_Stock_MPG[Vehicle Type], $A6, Custom_Stock_MPG[Scenario], Input_Scenario_Modeled), SUMIFS(Vehicle_Stock_Projections[Vehicle Stock],Vehicle_Stock_Projections[Year],Calculations!E$4,Vehicle_Stock_Projections[Technology Type], $B6, Vehicle_Stock_Projections[Vehicle Type], $A6, Vehicle_Stock_Projections[Scenario], Input_Scenario_Modeled)) -> 3.77803421 | F6: =IF(Input_Scenario_Modeled="Custom", SUMIFS(Custom_Stock_MPG[Vehicle Stock],Custom_Stock_MPG[Year],Calculations!F$4, Custom_Stock_MPG[[ Technology Type]], $B6, Custom_Stock_MPG[Vehicle Type], $A6, Custom_Stock_MPG[Scenario], Input_Scenario_Modeled), SUMIFS(Vehicle_Stock_Projections[Vehicle Stock],Vehicle_Stock_Projections[Year],Calculations!F$4,Vehicle_Stock_Projections[Technology Type], $B6, Vehicle_Stock_Projections[Vehicle Type], $A6, Vehicle_Stock_Projections[Scenario], Input_Scenario_Modeled)) -> 3.543272257 | G6: =IF(Input_Scenario_Modeled="Custom", SUMIFS(Custom_Stock_MPG[Vehicle Stock],Custom_Stock_MPG[Year],Calculations!G$4, Custom_Stock_MPG[[ Technology Type]], $B6, Custom_Stock_MPG[Vehicle Type], $A6, Custom_Stock_MPG[Scenario], Input_Scenario_Modeled), SUMIFS(Vehicle_Stock_Projections[Vehicle Stock],Vehicle_Stock_Projections[Year],Calculations!G$4,Vehicle_Stock_Projections[Technology Type], $B6, Vehicle_Stock_Projections[Vehicle Type], $A6, Vehicle_Stock_Projections[Scenario], Input_Scenario_Modeled)) -> 3.29513216 | H6: =IF(Input_Scenario_Modeled="Custom", SUMIFS(Custom_Stock_MPG[Vehicle Stock],Custom_Stock_MPG[Year],Calculations!H$4, Custom_Stock_MPG[[ Technology Type]], $B6, Custom_Stock_MPG[Vehicle Type], $A6, Custom_Stock_MPG[Scenario], Input_Scenario_Modeled), SUMIFS(Vehicle_Stock_Projections[Vehicle Stock],Vehicle_Stock_Projections[Year],Calculations!H$4,Vehicle_Stock_Projections[Technology Type], $B6, Vehicle_Stock_Projections[Vehicle Type], $A6, Vehicle_Stock_Projections[Scenario], Input_Scenario_Modeled)) -> 3.034462214 | I6: =IF(Input_Scenario_Modeled="Custom", SUMIFS(Custom_Stock_MPG[Vehicle Stock],Custom_Stock_MPG[Year],Calculations!I$4, Custom_Stock_MPG[[ Technology Type]], $B6, Custom_Stock_MPG[Vehicle Type], $A6, Custom_Stock_MPG[Scenario], Input_Scenario_Modeled), SUMIFS(Vehicle_Stock_Projections[Vehicle Stock],Vehicle_Stock_Projections[Year],Calculations!I$4,Vehicle_Stock_Projections[Technology Type], $B6, Vehicle_Stock_Projections[Vehicle Type], $A6, Vehicle_Stock_Projections[Scenario], Input_Scenario_Modeled)) -> 2.766137123 | J6: =IF(Input_Scenario_Modeled="Custom", SUMIFS(Custom_Stock_MPG[Vehicle Stock],Custom_Stock_MPG[Year],Calculations!J$4, Custom_Stock_MPG[[ Technology Type]], $B6, Custom_Stock_MPG[Vehicle Type], $A6, Custom_Stock_MPG[Scenario], Input_Scenario_Modeled), SUMIFS(Vehicle_Stock_Projections[Vehicle Stock],Vehicle_Stock_Projections[Year],Calculations!J$4,Vehicle_Stock_Projections[Technology Type], $B6, Vehicle_Stock_Projections[Vehicle Type], $A6, Vehicle_Stock_Projections[Scenario], Input_Scenario_Modeled)) -> 2.494815111 | K6: =IF(Input_Scenario_Modeled="Custom", SUMIFS(Custom_Stock_MPG[Vehicle Stock],Custom_Stock_MPG[Year],Calculations!K$4, Custom_Stock_MPG[[ Technology Type]], $B6, Custom_Stock_MPG[Vehicle Type], $A6, Custom_Stock_MPG[Scenario], Input_Scenario_Modeled), SUMIFS(Vehicle_Stock_Projections[Vehicle Stock],Vehicle_Stock_Projections[Year],Calculations!K$4,Vehicle_Stock_Projections[Technology Type], $B6, Vehicle_Stock_Projections[Vehicle Type], $A6, Vehicle_Stock_Projections[Scenario], Input_Scenario_Modeled)) -> 2.226089716 | L6: =IF(Input_Scenario_Modeled="Custom", SUMIFS(Custom_Stock_MPG[Vehicle Stock],Custom_Stock_MPG[Year],Calculations!L$4, Custom_Stock_MPG[[ Technology Type]], $B6, Custom_Stock_MPG[Vehicle Type], $A6, Custom_Stock_MPG[Scenario], Input_Scenario_Modeled), SUMIFS(Vehicle_Stock_Projections[Vehicle Stock],Vehicle_Stock_Projections[Year],Calculations!L$4,Vehicle_Stock_Projections[Technology Type], $B6, Vehicle_Stock_Projections[Vehicle Type], $A6, Vehicle_Stock_Projections[Scenario], Input_Scenario_Modeled)) -> 1.967611909 | M6: =IF(Input_Scenario_Modeled="Custom", SUMIFS(Custom_Stock_MPG[Vehicle Stock],Custom_Stock_MPG[Year],Calculations!M$4, Custom_Stock_MPG[[ Technology Type]], $B6, Custom_Stock_MPG[Vehicle Type], $A6, Custom_Stock_MPG[Scenario], Input_Scenario_Modeled), SUMIFS(Vehicle_Stock_Projections[Vehicle Stock],Vehicle_Stock_Projections[Year],Calculations!M$4,Vehicle_Stock_Projections[Technology Type], $B6, Vehicle_Stock_Projections[Vehicle Type], $A6, Vehicle_Stock_Projections[Scenario], Input_Scenario_Modeled)) -> 1.724783897 | N6: =IF(Input_Scenario_Modeled="Custom", SUMIFS(Custom_Stock_MPG[Vehicle Stock],Custom_Stock_MPG[Year],Calculations!N$4, Custom_Stock_MPG[[ Technology Type]], $B6, Custom_Stock_MPG[Vehicle Type], $A6, Custom_Stock_MPG[Scenario], Input_Scenario_Modeled), SUMIFS(Vehicle_Stock_Projections[Vehicle Stock],Vehicle_Stock_Projections[Year],Calculations!N$4,Vehicle_Stock_Projections[Technology Type], $B6, Vehicle_Stock_Projections[Vehicle Type], $A6, Vehicle_Stock_Projections[Scenario], Input_Scenario_Modeled)) -> 1.502344608 | O6: =IF(Input_Scenario_Modeled="Custom", SUMIFS(Custom_Stock_MPG[Vehicle Stock],Custom_Stock_MPG[Year],Calculations!O$4, Custom_Stock_MPG[[ Technology Type]], $B6, Custom_Stock_MPG[Vehicle Type], $A6, Custom_Stock_MPG[Scenario], Input_Scenario_Modeled), SUMIFS(Vehicle_Stock_Projections[Vehicle Stock],Vehicle_Stock_Projections[Year],Calculations!O$4,Vehicle_Stock_Projections[Technology Type], $B6, Vehicle_Stock_Projections[Vehicle Type], $A6, Vehicle_Stock_Projections[Scenario], Input_Scenario_Modeled)) -> 1.301275849 | P6: =IF(Input_Scenario_Modeled="Custom", SUMIFS(Custom_Stock_MPG[Vehicle Stock],Custom_Stock_MPG[Year],Calculations!P$4, Custom_Stock_MPG[[ Technology Type]], $B6, Custom_Stock_MPG[Vehicle Type], $A6, Custom_Stock_MPG[Scenario], Input_Scenario_Modeled), SUMIFS(Vehicle_Stock_Projections[Vehicle Stock],Vehicle_Stock_Projections[Year],Calculations!P$4,Vehicle_Stock_Projections[Technology Type], $B6, Vehicle_Stock_Projections[Vehicle Type], $A6, Vehicle_Stock_Projections[Scenario], Input_Scenario_Modeled)) -> 1.124358058 | Q6: =IF(Input_Scenario_Modeled="Custom", SUMIFS(Custom_Stock_MPG[Vehicle Stock],Custom_Stock_MPG[Year],Calculations!Q$4, Custom_Stock_MPG[[ Technology Type]], $B6, Custom_Stock_MPG[Vehicle Type], $A6, Custom_Stock_MPG[Scenario], Input_Scenario_Modeled), SUMIFS(Vehicle_Stock_Projections[Vehicle Stock],Vehicle_Stock_Projections[Year],Calculations!Q$4,Vehicle_Stock_Projections[Technology Type], $B6, Vehicle_Stock_Projections[Vehicle Type], $A6, Vehicle_Stock_Projections[Scenario], Input_Scenario_Modeled)) -> 0.9758914113 | R6: =IF(Input_Scenario_Modeled="Custom", SUMIFS(Custom_Stock_MPG[Vehicle Stock],Custom_Stock_MPG[Year],Calculations!R$4, Custom_Stock_MPG[[ Technology Type]], $B6, Custom_Stock_MPG[Vehicle Type], $A6, Custom_Stock_MPG[Scenario], Input_Scenario_Modeled), SUMIFS(Vehicle_Stock_Projections[Vehicle Stock],Vehicle_Stock_Projections[Year],Calculations!R$4,Vehicle_Stock_Projections[Technology Type], $B6, Vehicle_Stock_Projections[Vehicle Type], $A6, Vehicle_Stock_Projections[Scenario], Input_Scenario_Modeled)) -> 0.8563540578 | S6: =IF(Input_Scenario_Modeled="Custom", SUMIFS(Custom_Stock_MPG[Vehicle Stock],Custom_Stock_MPG[Year],Calculations!S$4, Custom_Stock_MPG[[ Technology Type]], $B6, Custom_Stock_MPG[Vehicle Type], $A6, Custom_Stock_MPG[Scenario], Input_Scenario_Modeled), SUMIFS(Vehicle_Stock_Projections[Vehicle Stock],Vehicle_Stock_Projections[Year],Calculations!S$4,Vehicle_Stock_Projections[Technology Type], $B6, Vehicle_Stock_Projections[Vehicle Type], $A6, Vehicle_Stock_Projections[Scenario], Input_Scenario_Modeled)) -> 0.7585682273 | T6: =IF(Input_Scenario_Modeled="Custom", SUMIFS(Custom_Stock_MPG[Vehicle Stock],Custom_Stock_MPG[Year],Calculations!T$4, Custom_Stock_MPG[[ Technology Type]], $B6, Custom_Stock_MPG[Vehicle Type], $A6, Custom_Stock_MPG[Scenario], Input_Scenario_Modeled), SUMIFS(Vehicle_Stock_Projections[Vehicle Stock],Vehicle_Stock_Projections[Year],Calculations!T$4,Vehicle_Stock_Projections[Technology Type], $B6, Vehicle_Stock_Projections[Vehicle Type], $A6, Vehicle_Stock_Projections[Scenario], Input_Scenario_Modeled)) -> 0.6820280552 | U6: =IF(Input_Scenario_Modeled="Custom", SUMIFS(Custom_Stock_MPG[Vehicle Stock],Custom_Stock_MPG[Year],Calculations!U$4, Custom_Stock_MPG[[ Technology Type]], $B6, Custom_Stock_MPG[Vehicle Type], $A6, Custom_Stock_MPG[Scenario], Input_Scenario_Modeled), SUMIFS(Vehicle_Stock_Projections[Vehicle Stock],Vehicle_Stock_Projections[Year],Calculations!U$4,Vehicle_Stock_Projections[Technology Type], $B6, Vehicle_Stock_Projections[Vehicle Type], $A6, Vehicle_Stock_Projections[Scenario], Input_Scenario_Modeled)) -> 0.6228913665 | V6: =IF(Input_Scenario_Modeled="Custom", SUMIFS(Custom_Stock_MPG[Vehicle Stock],Custom_Stock_MPG[Year],Calculations!V$4, Custom_Stock_MPG[[ Technology Type]], $B6, Custom_Stock_MPG[Vehicle Type], $A6, Custom_Stock_MPG[Scenario], Input_Scenario_Modeled), SUMIFS(Vehicle_Stock_Projections[Vehicle Stock],Vehicle_Stock_Projections[Year],Calculations!V$4,Vehicle_Stock_Projections[Technology Type], $B6, Vehicle_Stock_Projections[Vehicle Type], $A6, Vehicle_Stock_Projections[Scenario], Input_Scenario_Modeled)) -> 0.5741344094 | W6: =IF(Input_Scenario_Modeled="Custom", SUMIFS(Custom_Stock_MPG[Vehicle Stock],Custom_Stock_MPG[Year],Calculations!W$4, Custom_Stock_MPG[[ Technology Type]], $B6, Custom_Stock_MPG[Vehicle Type], $A6, Custom_Stock_MPG[Scenario], Input_Scenario_Modeled), SUMIFS(Vehicle_Stock_Projections[Vehicle Stock],Vehicle_Stock_Projections[Year],Calculations!W$4,Vehicle_Stock_Projections[Technology Type], $B6, Vehicle_Stock_Projections[Vehicle Type], $A6, Vehicle_Stock_Projections[Scenario], Input_Scenario_Modeled)) -> 0.5328629613 | X6: =IF(Input_Scenario_Modeled="Custom", SUMIFS(Custom_Stock_MPG[Vehicle Stock],Custom_Stock_MPG[Year],Calculations!X$4, Custom_Stock_MPG[[ Technology Type]], $B6, Custom_Stock_MPG[Vehicle Type], $A6, Custom_Stock_MPG[Scenario], Input_Scenario_Modeled), SUMIFS(Vehicle_Stock_Projections[Vehicle Stock],Vehicle_Stock_Projections[Year],Calculations!X$4,Vehicle_Stock_Projections[Technology Type], $B6, Vehicle_Stock_Projections[Vehicle Type], $A6, Vehicle_Stock_Projections[Scenario], Input_Scenario_Modeled)) -> 0.4973705411 | Y6: =IF(Input_Scenario_Modeled="Custom", SUMIFS(Custom_Stock_MPG[Vehicle Stock],Custom_Stock_MPG[Year],Calculations!Y$4, Custom_Stock_MPG[[ Technology Type]], $B6, Custom_Stock_MPG[Vehicle Type], $A6, Custom_Stock_MPG[Scenario], Input_Scenario_Modeled), SUMIFS(Vehicle_Stock_Projections[Vehicle Stock],Vehicle_Stock_Projections[Year],Calculations!Y$4,Vehicle_Stock_Projections[Technology Type], $B6, Vehicle_Stock_Projections[Vehicle Type], $A6, Vehicle_Stock_Projections[Scenario], Input_Scenario_Modeled)) -> 0.4670760632 | Z6: =IF(Input_Scenario_Modeled="Custom", SUMIFS(Custom_Stock_MPG[Vehicle Stock],Custom_Stock_MPG[Year],Calculations!Z$4, Custom_Stock_MPG[[ Technology Type]], $B6, Custom_Stock_MPG[Vehicle Type], $A6, Custom_Stock_MPG[Scenario], Input_Scenario_Modeled), SUMIFS(Vehicle_Stock_Projections[Vehicle Stock],Vehicle_Stock_Projections[Year],Calculations!Z$4,Vehicle_Stock_Projections[Technology Type], $B6, Vehicle_Stock_Projections[Vehicle Type], $A6, Vehicle_Stock_Projections[Scenario], Input_Scenario_Modeled)) -> 0.4399467409 | AA6: =IF(Input_Scenario_Modeled="Custom", SUMIFS(Custom_Stock_MPG[Vehicle Stock],Custom_Stock_MPG[Year],Calculations!AA$4, Custom_Stock_MPG[[ Technology Type]], $B6, Custom_Stock_MPG[Vehicle Type], $A6, Custom_Stock_MPG[Scenario], Input_Scenario_Modeled), SUMIFS(Vehicle_Stock_Projections[Vehicle Stock],Vehicle_Stock_Projections[Year],Calculations!AA$4,Vehicle_Stock_Projections[Technology Type], $B6, Vehicle_Stock_Projections[Vehicle Type], $A6, Vehicle_Stock_Projections[Scenario], Input_Scenario_Modeled)) -> 0.4144776762 | AB6: =IF(Input_Scenario_Modeled="Custom", SUMIFS(Custom_Stock_MPG[Vehicle Stock],Custom_Stock_MPG[Year],Calculations!AB$4, Custom_Stock_MPG[[ Technology Type]], $B6, Custom_Stock_MPG[Vehicle Type], $A6, Custom_Stock_MPG[Scenario], Input_Scenario_Modeled), SUMIFS(Vehicle_Stock_Projections[Vehicle Stock],Vehicle_Stock_Projections[Year],Calculations!AB$4,Vehicle_Stock_Projections[Technology Type], $B6, Vehicle_Stock_Projections[Vehicle Type], $A6, Vehicle_Stock_Projections[Scenario], Input_Scenario_Modeled)) -> 0.3905728459 | AC6: =IF(Input_Scenario_Modeled="Custom", SUMIFS(Custom_Stock_MPG[Vehicle Stock],Custom_Stock_MPG[Year],Calculations!AC$4, Custom_Stock_MPG[[ Technology Type]], $B6, Custom_Stock_MPG[Vehicle Type], $A6, Custom_Stock_MPG[Scenario], Input_Scenario_Modeled), SUMIFS(Vehicle_Stock_Projections[Vehicle Stock],Vehicle_Stock_Projections[Year],Calculations!AC$4,Vehicle_Stock_Projections[Technology Type], $B6, Vehicle_Stock_Projections[Vehicle Type], $A6, Vehicle_Stock_Projections[Scenario], Input_Scenario_Modeled)) -> 0.3681797087 | AD6: =IF(Input_Scenario_Modeled="Custom", SUMIFS(Custom_Stock_MPG[Vehicle Stock],Custom_Stock_MPG[Year],Calculations!AD$4, Custom_Stock_MPG[[ Technology Type]], $B6, Custom_Stock_MPG[Vehicle Type], $A6, Custom_Stock_MPG[Scenario], Input_Scenario_Modeled), SUMIFS(Vehicle_Stock_Projections[Vehicle Stock],Vehicle_Stock_Projections[Year],Calculations!AD$4,Vehicle_Stock_Projections[Technology Type], $B6, Vehicle_Stock_Projections[Vehicle Type], $A6, Vehicle_Stock_Projections[Scenario], Input_Scenario_Modeled)) -> 0.3471907377 | AE6: =IF(Input_Scenario_Modeled="Custom", SUMIFS(Custom_Stock_MPG[Vehicle Stock],Custom_Stock_MPG[Year],Calculations!AE$4, Custom_Stock_MPG[[ Technology Type]], $B6, Custom_Stock_MPG[Vehicle Type], $A6, Custom_Stock_MPG[Scenario], Input_Scenario_Modeled), SUMIFS(Vehicle_Stock_Projections[Vehicle Stock],Vehicle_Stock_Projections[Year],Calculations!AE$4,Vehicle_Stock_Projections[Technology Type], $B6, Vehicle_Stock_Projections[Vehicle Type], $A6, Vehicle_Stock_Projections[Scenario], Input_Scenario_Modeled)) -> 0.3275008798 | AF6: =IF(Input_Scenario_Modeled="Custom", SUMIFS(Custom_Stock_MPG[Vehicle Stock],Custom_Stock_MPG[Year],Calculations!AF$4, Custom_Stock_MPG[[ Technology Type]], $B6, Custom_Stock_MPG[Vehicle Type], $A6, Custom_Stock_MPG[Scenario], Input_Scenario_Modeled), SUMIFS(Vehicle_Stock_Projections[Vehicle Stock],Vehicle_Stock_Projections[Year],Calculations!AF$4,Vehicle_Stock_Projections[Technology Type], $B6, Vehicle_Stock_Projections[Vehicle Type], $A6, Vehicle_Stock_Projections[Scenario], Input_Scenario_Modeled)) -> 0.3275008798 | AG6: =IF(Input_Scenario_Modeled="Custom", SUMIFS(Custom_Stock_MPG[Vehicle Stock],Custom_Stock_MPG[Year],Calculations!AG$4, Custom_Stock_MPG[[ Technology Type]], $B6, Custom_Stock_MPG[Vehicle Type], $A6, Custom_Stock_MPG[Scenario], Input_Scenario_Modeled), SUMIFS(Vehicle_Stock_Projections[Vehicle Stock],Vehicle_Stock_Projections[Year],Calculations!AG$4,Vehicle_Stock_Projections[Technology Type], $B6, Vehicle_Stock_Projections[Vehicle Type], $A6, Vehicle_Stock_Projections[Scenario], Input_Scenario_Modeled)) -> 0.3275008798 | AH6: =IF(Input_Scenario_Modeled="Custom", SUMIFS(Custom_Stock_MPG[Vehicle Stock],Custom_Stock_MPG[Year],Calculations!AH$4, Custom_Stock_MPG[[ Technology Type]], $B6, Custom_Stock_MPG[Vehicle Type], $A6, Custom_Stock_MPG[Scenario], Input_Scenario_Modeled), SUMIFS(Vehicle_Stock_Projections[Vehicle Stock],Vehicle_Stock_Projections[Year],Calculations!AH$4,Vehicle_Stock_Projections[Technology Type], $B6, Vehicle_Stock_Projections[Vehicle Type], $A6, Vehicle_Stock_Projections[Scenario], Input_Scenario_Modeled)) -> 0.3275008798 | AI6: =IF(Input_Scenario_Modeled="Custom", SUMIFS(Custom_Stock_MPG[Vehicle Stock],Custom_Stock_MPG[Year],Calculations!AI$4, Custom_Stock_MPG[[ Technology Type]], $B6, Custom_Stock_MPG[Vehicle Type], $A6, Custom_Stock_MPG[Scenario], Input_Scenario_Modeled), SUMIFS(Vehicle_Stock_Projections[Vehicle Stock],Vehicle_Stock_Projections[Year],Calculations!AI$4,Vehicle_Stock_Projections[Technology Type], $B6, Vehicle_Stock_Projections[Vehicle Type], $A6, Vehicle_Stock_Projections[Scenario], Input_Scenario_Modeled)) -> 0.3275008798 | AJ6: =IF(Input_Scenario_Modeled="Custom", SUMIFS(Custom_Stock_MPG[Vehicle Stock],Custom_Stock_MPG[Year],Calculations!AJ$4, Custom_Stock_MPG[[ Technology Type]], $B6, Custom_Stock_MPG[Vehicle Type], $A6, Custom_Stock_MPG[Scenario], Input_Scenario_Modeled), SUMIFS(Vehicle_Stock_Projections[Vehicle Stock],Vehicle_Stock_Projections[Year],Calculations!AJ$4,Vehicle_Stock_Projections[Technology Type], $B6, Vehicle_Stock_Projections[Vehicle Type], $A6, Vehicle_Stock_Projections[Scenario], Input_Scenario_Modeled)) -> 0.3275008798
A7: Passenger Cars | B7: Electric-Gasoline Hybrid | C7: Gasoline | D7: Stock | E7: =IF(Input_Scenario_Modeled="Custom", SUMIFS(Custom_Stock_MPG[Vehicle Stock],Custom_Stock_MPG[Year],Calculations!E$4, Custom_Stock_MPG[[ Technology Type]], $B7, Custom_Stock_MPG[Vehicle Type], $A7, Custom_Stock_MPG[Scenario], Input_Scenario_Modeled), SUMIFS(Vehicle_Stock_Projections[Vehicle Stock],Vehicle_Stock_Projections[Year],Calculations!E$4,Vehicle_Stock_Projections[Technology Type], $B7, Vehicle_Stock_Projections[Vehicle Type], $A7, Vehicle_Stock_Projections[Scenario], Input_Scenario_Modeled)) -> 4.383683681 | F7: =IF(Input_Scenario_Modeled="Custom", SUMIFS(Custom_Stock_MPG[Vehicle Stock],Custom_Stock_MPG[Year],Calculations!F$4, Custom_Stock_MPG[[ Technology Type]], $B7, Custom_Stock_MPG[Vehicle Type], $A7, Custom_Stock_MPG[Scenario], Input_Scenario_Modeled), SUMIFS(Vehicle_Stock_Projections[Vehicle Stock],Vehicle_Stock_Projections[Year],Calculations!F$4,Vehicle_Stock_Projections[Technology Type], $B7, Vehicle_Stock_Projections[Vehicle Type], $A7, Vehicle_Stock_Projections[Scenario], Input_Scenario_Modeled)) -> 4.654545307 | G7: =IF(Input_Scenario_Modeled="Custom", SUMIFS(Custom_Stock_MPG[Vehicle Stock],Custom_Stock_MPG[Year],Calculations!G$4, Custom_Stock_MPG[[ Technology Type]], $B7, Custom_Stock_MPG[Vehicle Type], $A7, Custom_Stock_MPG[Scenario], Input_Scenario_Modeled), SUMIFS(Vehicle_Stock_Projections[Vehicle Stock],Vehicle_Stock_Projections[Year],Calculations!G$4,Vehicle_Stock_Projections[Technology Type], $B7, Vehicle_Stock_Projections[Vehicle Type], $A7, Vehicle_Stock_Projections[Scenario], Input_Scenario_Modeled)) -> 4.838608742 | H7: =IF(Input_Scenario_Modeled="Custom", SUMIFS(Custom_Stock_MPG[Vehicle Stock],Custom_Stock_MPG[Year],Calculations!H$4, Custom_Stock_MPG[[ Technology Type]], $B7, Custom_Stock_MPG[Vehicle Type], $A7, Custom_Stock_MPG[Scenario], Input_Scenario_Modeled), SUMIFS(Vehicle_Stock_Projections[Vehicle Stock],Vehicle_Stock_Projections[Year],Calculations!H$4,Vehicle_Stock_Projections[Technology Type], $B7, Vehicle_Stock_Projections[Vehicle Type], $A7, Vehicle_Stock_Projections[Scenario], Input_Scenario_Modeled)) -> 4.958733559 | I7: =IF(Input_Scenario_Modeled="Custom", SUMIFS(Custom_Stock_MPG[Vehicle Stock],Custom_Stock_MPG[Year],Calculations!I$4, Custom_Stock_MPG[[ Technology Type]], $B7, Custom_Stock_MPG[Vehicle Type], $A7, Custom_Stock_MPG[Scenario], Input_Scenario_Modeled), SUMIFS(Vehicle_Stock_Projections[Vehicle Stock],Vehicle_Stock_Projections[Year],Calculations!I$4,Vehicle_Stock_Projections[Technology Type], $B7, Vehicle_Stock_Projections[Vehicle Type], $A7, Vehicle_Stock_Projections[Scenario], Input_Scenario_Modeled)) -> 5.026490211 | J7: =IF(Input_Scenario_Modeled="Custom", SUMIFS(Custom_Stock_MPG[Vehicle Stock],Custom_Stock_MPG[Year],Calculations!J$4, Custom_Stock_MPG[[ Technology Type]], $B7, Custom_Stock_MPG[Vehicle Type], $A7, Custom_Stock_MPG[Scenario], Input_Scenario_Modeled), SUMIFS(Vehicle_Stock_Projections[Vehicle Stock],Vehicle_Stock_Projections[Year],Calculations!J$4,Vehicle_Stock_Projections[Technology Type], $B7, Vehicle_Stock_Projections[Vehicle Type], $A7, Vehicle_Stock_Projections[Scenario], Input_Scenario_Modeled)) -> 5.071479797 | K7: =IF(Input_Scenario_Modeled="Custom", SUMIFS(Custom_Stock_MPG[Vehicle Stock],Custom_Stock_MPG[Year],Calculations!K$4, Custom_Stock_MPG[[ Technology Type]], $B7, Custom_Stock_MPG[Vehicle Type], $A7, Custom_Stock_MPG[Scenario], Input_Scenario_Modeled), SUMIFS(Vehicle_Stock_Projections[Vehicle Stock],Vehicle_Stock_Projections[Year],Calculations!K$4,Vehicle_Stock_Projections[Technology Type], $B7, Vehicle_Stock_Projections[Vehicle Type], $A7, Vehicle_Stock_Projections[Scenario], Input_Scenario_Modeled)) -> 5.112669945 | L7: =IF(Input_Scenario_Modeled="Custom", SUMIFS(Custom_Stock_MPG[Vehicle Stock],Custom_Stock_MPG[Year],Calculations!L$4, Custom_Stock_MPG[[ Technology Type]], $B7, Custom_Stock_MPG[Vehicle Type], $A7, Custom_Stock_MPG[Scenario], Input_Scenario_Modeled), SUMIFS(Vehicle_Stock_Projections[Vehicle Stock],Vehicle_Stock_Projections[Year],Calculations!L$4,Vehicle_Stock_Projections[Technology Type], $B7, Vehicle_Stock_Projections[Vehicle Type], $A7, Vehicle_Stock_Projections[Scenario], Input_Scenario_Modeled)) -> 5.143247128 | M7: =IF(Input_Scenario_Modeled="Custom", SUMIFS(Custom_Stock_MPG[Vehicle Stock],Custom_Stock_MPG[Year],Calculations!M$4, Custom_Stock_MPG[[ Technology Type]], $B7, Custom_Stock_MPG[Vehicle Type], $A7, Custom_Stock_MPG[Scenario], Input_Scenario_Modeled), SUMIFS(Vehicle_Stock_Projections[Vehicle Stock],Vehicle_Stock_Projections[Year],Calculations!M$4,Vehicle_Stock_Projections[Technology Type], $B7, Vehicle_Stock_Projections[Vehicle Type], $A7, Vehicle_Stock_Projections[Scenario], Input_Scenario_Modeled)) -> 5.166213989 | N7: =IF(Input_Scenario_Modeled="Custom", SUMIFS(Custom_Stock_MPG[Vehicle Stock],Custom_Stock_MPG[Year],Calculations!N$4, Custom_Stock_MPG[[ Technology Type]], $B7, Custom_Stock_MPG[Vehicle Type], $A7, Custom_Stock_MPG[Scenario], Input_Scenario_Modeled), SUMIFS(Vehicle_Stock_Projections[Vehicle Stock],Vehicle_Stock_Projections[Year],Calculations!N$4,Vehicle_Stock_Projections[Technology Type], $B7, Vehicle_Stock_Projections[Vehicle Type], $A7, Vehicle_Stock_Projections[Scenario], Input_Scenario_Modeled)) -> 5.213419914 | O7: =IF(Input_Scenario_Modeled="Custom", SUMIFS(Custom_Stock_MPG[Vehicle Stock],Custom_Stock_MPG[Year],Calculations!O$4, Custom_Stock_MPG[[ Technology Type]], $B7, Custom_Stock_MPG[Vehicle Type], $A7, Custom_Stock_MPG[Scenario], Input_Scenario_Modeled), SUMIFS(Vehicle_Stock_Projections[Vehicle Stock],Vehicle_Stock_Projections[Year],Calculations!O$4,Vehicle_Stock_Projections[Technology Type], $B7, Vehicle_Stock_Projections[Vehicle Type], $A7, Vehicle_Stock_Projections[Scenario], Input_Scenario_Modeled)) -> 5.273012161 | P7: =IF(Input_Scenario_Modeled="Custom", SUMIFS(Custom_Stock_MPG[Vehicle Stock],Custom_Stock_MPG[Year],Calculations!P$4, Custom_Stock_MPG[[ Technology Type]], $B7, Custom_Stock_MPG[Vehicle Type], $A7, Custom_Stock_MPG[Scenario], Input_Scenario_Modeled), SUMIFS(Vehicle_Stock_Projections[Vehicle Stock],Vehicle_Stock_Projections[Year],Calculations!P$4,Vehicle_Stock_Projections[Technology Type], $B7, Vehicle_Stock_Projections[Vehicle Type], $A7, Vehicle_Stock_Projections[Scenario], Input_Scenario_Modeled)) -> 5.343203545 | Q7: =IF(Input_Scenario_Modeled="Custom", SUMIFS(Custom_Stock_MPG[Vehicle Stock],Custom_Stock_MPG[Year],Calculations!Q$4, Custom_Stock_MPG[[ Technology Type]], $B7, Custom_Stock_MPG[Vehicle Type], $A7, Custom_Stock_MPG[Scenario], Input_Scenario_Modeled), SUMIFS(Vehicle_Stock_Projections[Vehicle Stock],Vehicle_Stock_Projections[Year],Calculations!Q$4,Vehicle_Stock_Projections[Technology Type], $B7, Vehicle_Stock_Projections[Vehicle Type], $A7, Vehicle_Stock_Projections[Scenario], Input_Scenario_Modeled)) -> 5.418201923 | R7: =IF(Input_Scenario_Modeled="Custom", SUMIFS(Custom_Stock_MPG[Vehicle Stock],Custom_Stock_MPG[Year],Calculations!R$4, Custom_Stock_MPG[[ Technology Type]], $B7, Custom_Stock_MPG[Vehicle Type], $A7, Custom_Stock_MPG[Scenario], Input_Scenario_Modeled), SUMIFS(Vehicle_Stock_Projections[Vehicle Stock],Vehicle_Stock_Projections[Year],Calculations!R$4,Vehicle_Stock_Projections[Technology Type], $B7, Vehicle_Stock_Projections[Vehicle Type], $A7, Vehicle_Stock_Projections[Scenario], Input_Scenario_Modeled)) -> 5.499933243 | S7: =IF(Input_Scenario_Modeled="Custom", SUMIFS(Custom_Stock_MPG[Vehicle Stock],Custom_Stock_MPG[Year],Calculations!S$4, Custom_Stock_MPG[[ Technology Type]], $B7, Custom_Stock_MPG[Vehicle Type], $A7, Custom_Stock_MPG[Scenario], Input_Scenario_Modeled), SUMIFS(Vehicle_Stock_Projections[Vehicle Stock],Vehicle_Stock_Projections[Year],Calculations!S$4,Vehicle_Stock_Projections[Technology Type], $B7, Vehicle_Stock_Projections[Vehicle Type], $A7, Vehicle_Stock_Projections[Scenario], Input_Scenario_Modeled)) -> 5.586894035 | T7: =IF(Input_Scenario_Modeled="Custom", SUMIFS(Custom_Stock_MPG[Vehicle Stock],Custom_Stock_MPG[Year],Calculations!T$4, Custom_Stock_MPG[[ Technology Type]], $B7, Custom_Stock_MPG[Vehicle Type], $A7, Custom_Stock_MPG[Scenario], Input_Scenario_Modeled), SUMIFS(Vehicle_Stock_Projections[Vehicle Stock],Vehicle_Stock_Projections[Year],Calculations!T$4,Vehicle_Stock_Projections[Technology Type], $B7, Vehicle_Stock_Projections[Vehicle Type], $A7, Vehicle_Stock_Projections[Scenario], Input_Scenario_Modeled)) -> 5.676863194 | U7: =IF(Input_Scenario_Modeled="Custom", SUMIFS(Custom_Stock_MPG[Vehicle Stock],Custom_Stock_MPG[Year],Calculations!U$4, Custom_Stock_MPG[[ Technology Type]], $B7, Custom_Stock_MPG[Vehicle Type], $A7, Custom_Stock_MPG[Scenario], Input_Scenario_Modeled), SUMIFS(Vehicle_Stock_Projections[Vehicle Stock],Vehicle_Stock_Projections[Year],Calculations!U$4,Vehicle_Stock_Projections[Technology Type], $B7, Vehicle_Stock_Projections[Vehicle Type], $A7, Vehicle_Stock_Projections[Scenario], Input_Scenario_Modeled)) -> 5.767464638 | V7: =IF(Input_Scenario_Modeled="Custom", SUMIFS(Custom_Stock_MPG[Vehicle Stock],Custom_Stock_MPG[Year],Calculations!V$4, Custom_Stock_MPG[[ Technology Type]], $B7, Custom_Stock_MPG[Vehicle Type], $A7, Custom_Stock_MPG[Scenario], Input_Scenario_Modeled), SUMIFS(Vehicle_Stock_Projections[Vehicle Stock],Vehicle_Stock_Projections[Year],Calculations!V$4,Vehicle_Stock_Projections[Technology Type], $B7, Vehicle_Stock_Projections[Vehicle Type], $A7, Vehicle_Stock_Projections[Scenario], Input_Scenario_Modeled)) -> 5.851985455 | W7: =IF(Input_Scenario_Modeled="Custom", SUMIFS(Custom_Stock_MPG[Vehicle Stock],Custom_Stock_MPG[Year],Calculations!W$4, Custom_Stock_MPG[[ Technology Type]], $B7, Custom_Stock_MPG[Vehicle Type], $A7, Custom_Stock_MPG[Scenario], Input_Scenario_Modeled), SUMIFS(Vehicle_Stock_Projections[Vehicle Stock],Vehicle_Stock_Projections[Year],Calculations!W$4,Vehicle_Stock_Projections[Technology Type], $B7, Vehicle_Stock_Projections[Vehicle Type], $A7, Vehicle_Stock_Projections[Scenario], Input_Scenario_Modeled)) -> 5.93312645 | X7: =IF(Input_Scenario_Modeled="Custom", SUMIFS(Custom_Stock_MPG[Vehicle Stock],Custom_Stock_MPG[Year],Calculations!X$4, Custom_Stock_MPG[[ Technology Type]], $B7, Custom_Stock_MPG[Vehicle Type], $A7, Custom_Stock_MPG[Scenario], Input_Scenario_Modeled), SUMIFS(Vehicle_Stock_Projections[Vehicle Stock],Vehicle_Stock_Projections[Year],Calculations!X$4,Vehicle_Stock_Projections[Technology Type], $B7, Vehicle_Stock_Projections[Vehicle Type], $A7, Vehicle_Stock_Projections[Scenario], Input_Scenario_Modeled)) -> 6.0103302 | Y7: =IF(Input_Scenario_Modeled="Custom", SUMIFS(Custom_Stock_MPG[Vehicle Stock],Custom_Stock_MPG[Year],Calculations!Y$4, Custom_Stock_MPG[[ Technology Type]], $B7, Custom_Stock_MPG[Vehicle Type], $A7, Custom_Stock_MPG[Scenario], Input_Scenario_Modeled), SUMIFS(Vehicle_Stock_Projections[Vehicle Stock],Vehicle_Stock_Projections[Year],Calculations!Y$4,Vehicle_Stock_Projections[Technology Type], $B7, Vehicle_Stock_Projections[Vehicle Type], $A7, Vehicle_Stock_Projections[Scenario], Input_Scenario_Modeled)) -> 6.08047533 | Z7: =IF(Input_Scenario_Modeled="Custom", SUMIFS(Custom_Stock_MPG[Vehicle Stock],Custom_Stock_MPG[Year],Calculations!Z$4, Custom_Stock_MPG[[ Technology Type]], $B7, Custom_Stock_MPG[Vehicle Type], $A7, Custom_Stock_MPG[Scenario], Input_Scenario_Modeled), SUMIFS(Vehicle_Stock_Projections[Vehicle Stock],Vehicle_Stock_Projections[Year],Calculations!Z$4,Vehicle_Stock_Projections[Technology Type], $B7, Vehicle_Stock_Projections[Vehicle Type], $A7, Vehicle_Stock_Projections[Scenario], Input_Scenario_Modeled)) -> 6.148497105 | AA7: =IF(Input_Scenario_Modeled="Custom", SUMIFS(Custom_Stock_MPG[Vehicle Stock],Custom_Stock_MPG[Year],Calculations!AA$4, Custom_Stock_MPG[[ Technology Type]], $B7, Custom_Stock_MPG[Vehicle Type], $A7, Custom_Stock_MPG[Scenario], Input_Scenario_Modeled), SUMIFS(Vehicle_Stock_Projections[Vehicle Stock],Vehicle_Stock_Projections[Year],Calculations!AA$4,Vehicle_Stock_Projections[Technology Type], $B7, Vehicle_Stock_Projections[Vehicle Type], $A7, Vehicle_Stock_Projections[Scenario], Input_Scenario_Modeled)) -> 6.214594364 | AB7: =IF(Input_Scenario_Modeled="Custom", SUMIFS(Custom_Stock_MPG[Vehicle Stock],Custom_Stock_MPG[Year],Calculations!AB$4, Custom_Stock_MPG[[ Technology Type]], $B7, Custom_Stock_MPG[Vehicle Type], $A7, Custom_Stock_MPG[Scenario], Input_Scenario_Modeled), SUMIFS(Vehicle_Stock_Projections[Vehicle Stock],Vehicle_Stock_Projections[Year],Calculations!AB$4,Vehicle_Stock_Projections[Technology Type], $B7, Vehicle_Stock_Projections[Vehicle Type], $A7, Vehicle_Stock_Projections[Scenario], Input_Scenario_Modeled)) -> 6.28247261 | AC7: =IF(Input_Scenario_Modeled="Custom", SUMIFS(Custom_Stock_MPG[Vehicle Stock],Custom_Stock_MPG[Year],Calculations!AC$4, Custom_Stock_MPG[[ Technology Type]], $B7, Custom_Stock_MPG[Vehicle Type], $A7, Custom_Stock_MPG[Scenario], Input_Scenario_Modeled), SUMIFS(Vehicle_Stock_Projections[Vehicle Stock],Vehicle_Stock_Projections[Year],Calculations!AC$4,Vehicle_Stock_Projections[Technology Type], $B7, Vehicle_Stock_Projections[Vehicle Type], $A7, Vehicle_Stock_Projections[Scenario], Input_Scenario_Modeled)) -> 6.35392952 | AD7: =IF(Input_Scenario_Modeled="Custom", SUMIFS(Custom_Stock_MPG[Vehicle Stock],Custom_Stock_MPG[Year],Calculations!AD$4, Custom_Stock_MPG[[ Technology Type]], $B7, Custom_Stock_MPG[Vehicle Type], $A7, Custom_Stock_MPG[Scenario], Input_Scenario_Modeled), SUMIFS(Vehicle_Stock_Projections[Vehicle Stock],Vehicle_Stock_Projections[Year],Calculations!AD$4,Vehicle_Stock_Projections[Technology Type], $B7, Vehicle_Stock_Projections[Vehicle Type], $A7, Vehicle_Stock_Projections[Scenario], Input_Scenario_Modeled)) -> 6.426953793 | AE7: =IF(Input_Scenario_Modeled="Custom", SUMIFS(Custom_Stock_MPG[Vehicle Stock],Custom_Stock_MPG[Year],Calculations!AE$4, Custom_Stock_MPG[[ Technology Type]], $B7, Custom_Stock_MPG[Vehicle Type], $A7, Custom_Stock_MPG[Scenario], Input_Scenario_Modeled), SUMIFS(Vehicle_Stock_Projections[Vehicle Stock],Vehicle_Stock_Projections[Year],Calculations!AE$4,Vehicle_Stock_Projections[Technology Type], $B7, Vehicle_Stock_Projections[Vehicle Type], $A7, Vehicle_Stock_Projections[Scenario], Input_Scenario_Modeled)) -> 6.502171516 | AF7: =IF(Input_Scenario_Modeled="Custom", SUMIFS(Custom_Stock_MPG[Vehicle Stock],Custom_Stock_MPG[Year],Calculations!AF$4, Custom_Stock_MPG[[ Technology Type]], $B7, Custom_Stock_MPG[Vehicle Type], $A7, Custom_Stock_MPG[Scenario], Input_Scenario_Modeled), SUMIFS(Vehicle_Stock_Projections[Vehicle Stock],Vehicle_Stock_Projections[Year],Calculations!AF$4,Vehicle_Stock_Projections[Technology Type], $B7, Vehicle_Stock_Projections[Vehicle Type], $A7, Vehicle_Stock_Projections[Scenario], Input_Scenario_Modeled)) -> 6.502171516 | AG7: =IF(Input_Scenario_Modeled="Custom", SUMIFS(Custom_Stock_MPG[Vehicle Stock],Custom_Stock_MPG[Year],Calculations!AG$4, Custom_Stock_MPG[[ Technology Type]], $B7, Custom_Stock_MPG[Vehicle Type], $A7, Custom_Stock_MPG[Scenario], Input_Scenario_Modeled), SUMIFS(Vehicle_Stock_Projections[Vehicle Stock],Vehicle_Stock_Projections[Year],Calculations!AG$4,Vehicle_Stock_Projections[Technology Type], $B7, Vehicle_Stock_Projections[Vehicle Type], $A7, Vehicle_Stock_Projections[Scenario], Input_Scenario_Modeled)) -> 6.502171516 | AH7: =IF(Input_Scenario_Modeled="Custom", SUMIFS(Custom_Stock_MPG[Vehicle Stock],Custom_Stock_MPG[Year],Calculations!AH$4, Custom_Stock_MPG[[ Technology Type]], $B7, Custom_Stock_MPG[Vehicle Type], $A7, Custom_Stock_MPG[Scenario], Input_Scenario_Modeled), SUMIFS(Vehicle_Stock_Projections[Vehicle Stock],Vehicle_Stock_Projections[Year],Calculations!AH$4,Vehicle_Stock_Projections[Technology Type], $B7, Vehicle_Stock_Projections[Vehicle Type], $A7, Vehicle_Stock_Projections[Scenario], Input_Scenario_Modeled)) -> 6.502171516 | AI7: =IF(Input_Scenario_Modeled="Custom", SUMIFS(Custom_Stock_MPG[Vehicle Stock],Custom_Stock_MPG[Year],Calculations!AI$4, Custom_Stock_MPG[[ Technology Type]], $B7, Custom_Stock_MPG[Vehicle Type], $A7, Custom_Stock_MPG[Scenario], Input_Scenario_Modeled), SUMIFS(Vehicle_Stock_Projections[Vehicle Stock],Vehicle_Stock_Projections[Year],Calculations!AI$4,Vehicle_Stock_Projections[Technology Type], $B7, Vehicle_Stock_Projections[Vehicle Type], $A7, Vehicle_Stock_Projections[Scenario], Input_Scenario_Modeled)) -> 6.502171516 | AJ7: =IF(Input_Scenario_Modeled="Custom", SUMIFS(Custom_Stock_MPG[Vehicle Stock],Custom_Stock_MPG[Year],Calculations!AJ$4, Custom_Stock_MPG[[ Technology Type]], $B7, Custom_Stock_MPG[Vehicle Type], $A7, Custom_Stock_MPG[Scenario], Input_Scenario_Modeled), SUMIFS(Vehicle_Stock_Projections[Vehicle Stock],Vehicle_Stock_Projections[Year],Calculations!AJ$4,Vehicle_Stock_Projections[Technology Type], $B7, Vehicle_Stock_Projections[Vehicle Type], $A7, Vehicle_Stock_Projections[Scenario], Input_Scenario_Modeled)) -> 6.502171516
A8: Passenger Cars | B8: TDI Diesel ICE | C8: Diesel | D8: Stock | E8: =IF(Input_Scenario_Modeled="Custom", SUMIFS(Custom_Stock_MPG[Vehicle Stock],Custom_Stock_MPG[Year],Calculations!E$4, Custom_Stock_MPG[[ Technology Type]], $B8, Custom_Stock_MPG[Vehicle Type], $A8, Custom_Stock_MPG[Scenario], Input_Scenario_Modeled), SUMIFS(Vehicle_Stock_Projections[Vehicle Stock],Vehicle_Stock_Projections[Year],Calculations!E$4,Vehicle_Stock_Projections[Technology Type], $B8, Vehicle_Stock_Projections[Vehicle Type], $A8, Vehicle_Stock_Projections[Scenario], Input_Scenario_Modeled)) -> 0.4820614755 | F8: =IF(Input_Scenario_Modeled="Custom", SUMIFS(Custom_Stock_MPG[Vehicle Stock],Custom_Stock_MPG[Year],Calculations!F$4, Custom_Stock_MPG[[ Technology Type]], $B8, Custom_Stock_MPG[Vehicle Type], $A8, Custom_Stock_MPG[Scenario], Input_Scenario_Modeled), SUMIFS(Vehicle_Stock_Projections[Vehicle Stock],Vehicle_Stock_Projections[Year],Calculations!F$4,Vehicle_Stock_Projections[Technology Type], $B8, Vehicle_Stock_Projections[Vehicle Type], $A8, Vehicle_Stock_Projections[Scenario], Input_Scenario_Modeled)) -> 0.4485886395 | G8: =IF(Input_Scenario_Modeled="Custom", SUMIFS(Custom_Stock_MPG[Vehicle Stock],Custom_Stock_MPG[Year],Calculations!G$4, Custom_Stock_MPG[[ Technology Type]], $B8, Custom_Stock_MPG[Vehicle Type], $A8, Custom_Stock_MPG[Scenario], Input_Scenario_Modeled), SUMIFS(Vehicle_Stock_Projections[Vehicle Stock],Vehicle_Stock_Projections[Year],Calculations!G$4,Vehicle_Stock_Projections[Technology Type], $B8, Vehicle_Stock_Projections[Vehicle Type], $A8, Vehicle_Stock_Projections[Scenario], Input_Scenario_Modeled)) -> 0.4158264697 | H8: =IF(Input_Scenario_Modeled="Custom", SUMIFS(Custom_Stock_MPG[Vehicle Stock],Custom_Stock_MPG[Year],Calculations!H$4, Custom_Stock_MPG[[ Technology Type]], $B8, Custom_Stock_MPG[Vehicle Type], $A8, Custom_Stock_MPG[Scenario], Input_Scenario_Modeled), SUMIFS(Vehicle_Stock_Projections[Vehicle Stock],Vehicle_Stock_Projections[Year],Calculations!H$4,Vehicle_Stock_Projections[Technology Type], $B8, Vehicle_Stock_Projections[Vehicle Type], $A8, Vehicle_Stock_Projections[Scenario], Input_Scenario_Modeled)) -> 0.3836310506 | I8: =IF(Input_Scenario_Modeled="Custom", SUMIFS(Custom_Stock_MPG[Vehicle Stock],Custom_Stock_MPG[Year],Calculations!I$4, Custom_Stock_MPG[[ Technology Type]], $B8, Custom_Stock_MPG[Vehicle Type], $A8, Custom_Stock_MPG[Scenario], Input_Scenario_Modeled), SUMIFS(Vehicle_Stock_Projections[Vehicle Stock],Vehicle_Stock_Projections[Year],Calculations!I$4,Vehicle_Stock_Projections[Technology Type], $B8, Vehicle_Stock_Projections[Vehicle Type], $A8, Vehicle_Stock_Projections[Scenario], Input_Scenario_Modeled)) -> 0.3517619073 | J8: =IF(Input_Scenario_Modeled="Custom", SUMIFS(Custom_Stock_MPG[Vehicle Stock],Custom_Stock_MPG[Year],Calculations!J$4, Custom_Stock_MPG[[ Technology Type]], $B8, Custom_Stock_MPG[Vehicle Type], $A8, Custom_Stock_MPG[Scenario], Input_Scenario_Modeled), SUMIFS(Vehicle_Stock_Projections[Vehicle Stock],Vehicle_Stock_Projections[Year],Calculations!J$4,Vehicle_Stock_Projections[Technology Type], $B8, Vehicle_Stock_Projections[Vehicle Type], $A8, Vehicle_Stock_Projections[Scenario], Input_Scenario_Modeled)) -> 0.320119679 | K8: =IF(Input_Scenario_Modeled="Custom", SUMIFS(Custom_Stock_MPG[Vehicle Stock],Custom_Stock_MPG[Year],Calculations!K$4, Custom_Stock_MPG[[ Technology Type]], $B8, Custom_Stock_MPG[Vehicle Type], $A8, Custom_Stock_MPG[Scenario], Input_Scenario_Modeled), SUMIFS(Vehicle_Stock_Projections[Vehicle Stock],Vehicle_Stock_Projections[Year],Calculations!K$4,Vehicle_Stock_Projections[Technology Type], $B8, Vehicle_Stock_Projections[Vehicle Type], $A8, Vehicle_Stock_Projections[Scenario], Input_Scenario_Modeled)) -> 0.289234519 | L8: =IF(Input_Scenario_Modeled="Custom", SUMIFS(Custom_Stock_MPG[Vehicle Stock],Custom_Stock_MPG[Year],Calculations!L$4, Custom_Stock_MPG[[ Technology Type]], $B8, Custom_Stock_MPG[Vehicle Type], $A8, Custom_Stock_MPG[Scenario], Input_Scenario_Modeled), SUMIFS(Vehicle_Stock_Projections[Vehicle Stock],Vehicle_Stock_Projections[Year],Calculations!L$4,Vehicle_Stock_Projections[Technology Type], $B8, Vehicle_Stock_Projections[Vehicle Type], $A8, Vehicle_Stock_Projections[Scenario], Input_Scenario_Modeled)) -> 0.2598406971 | M8: =IF(Input_Scenario_Modeled="Custom", SUMIFS(Custom_Stock_MPG[Vehicle Stock],Custom_Stock_MPG[Year],Calculations!M$4, Custom_Stock_MPG[[ Technology Type]], $B8, Custom_Stock_MPG[Vehicle Type], $A8, Custom_Stock_MPG[Scenario], Input_Scenario_Modeled), SUMIFS(Vehicle_Stock_Projections[Vehicle Stock],Vehicle_Stock_Projections[Year],Calculations!M$4,Vehicle_Stock_Projections[Technology Type], $B8, Vehicle_Stock_Projections[Vehicle Type], $A8, Vehicle_Stock_Projections[Scenario], Input_Scenario_Modeled)) -> 0.2315771729 | N8: =IF(Input_Scenario_Modeled="Custom", SUMIFS(Custom_Stock_MPG[Vehicle Stock],Custom_Stock_MPG[Year],Calculations!N$4, Custom_Stock_MPG[[ Technology Type]], $B8, Custom_Stock_MPG[Vehicle Type], $A8, Custom_Stock_MPG[Scenario], Input_Scenario_Modeled), SUMIFS(Vehicle_Stock_Projections[Vehicle Stock],Vehicle_Stock_Projections[Year],Calculations!N$4,Vehicle_Stock_Projections[Technology Type], $B8, Vehicle_Stock_Projections[Vehicle Type], $A8, Vehicle_Stock_Projections[Scenario], Input_Scenario_Modeled)) -> 0.204985559 | O8: =IF(Input_Scenario_Modeled="Custom", SUMIFS(Custom_Stock_MPG[Vehicle Stock],Custom_Stock_MPG[Year],Calculations!O$4, Custom_Stock_MPG[[ Technology Type]], $B8, Custom_Stock_MPG[Vehicle Type], $A8, Custom_Stock_MPG[Scenario], Input_Scenario_Modeled), SUMIFS(Vehicle_Stock_Projections[Vehicle Stock],Vehicle_Stock_Projections[Year],Calculations!O$4,Vehicle_Stock_Projections[Technology Type], $B8, Vehicle_Stock_Projections[Vehicle Type], $A8, Vehicle_Stock_Projections[Scenario], Input_Scenario_Modeled)) -> 0.1806046665 | P8: =IF(Input_Scenario_Modeled="Custom", SUMIFS(Custom_Stock_MPG[Vehicle Stock],Custom_Stock_MPG[Year],Calculations!P$4, Custom_Stock_MPG[[ Technology Type]], $B8, Custom_Stock_MPG[Vehicle Type], $A8, Custom_Stock_MPG[Scenario], Input_Scenario_Modeled), SUMIFS(Vehicle_Stock_Projections[Vehicle Stock],Vehicle_Stock_Projections[Year],Calculations!P$4,Vehicle_Stock_Projections[Technology Type], $B8, Vehicle_Stock_Projections[Vehicle Type], $A8, Vehicle_Stock_Projections[Scenario], Input_Scenario_Modeled)) -> 0.1589478254 | Q8: =IF(Input_Scenario_Modeled="Custom", SUMIFS(Custom_Stock_MPG[Vehicle Stock],Custom_Stock_MPG[Year],Calculations!Q$4, Custom_Stock_MPG[[ Technology Type]], $B8, Custom_Stock_MPG[Vehicle Type], $A8, Custom_Stock_MPG[Scenario], Input_Scenario_Modeled), SUMIFS(Vehicle_Stock_Projections[Vehicle Stock],Vehicle_Stock_Projections[Year],Calculations!Q$4,Vehicle_Stock_Projections[Technology Type], $B8, Vehicle_Stock_Projections[Vehicle Type], $A8, Vehicle_Stock_Projections[Scenario], Input_Scenario_Modeled)) -> 0.1404607594 | R8: =IF(Input_Scenario_Modeled="Custom", SUMIFS(Custom_Stock_MPG[Vehicle Stock],Custom_Stock_MPG[Year],Calculations!R$4, Custom_Stock_MPG[[ Technology Type]], $B8, Custom_Stock_MPG[Vehicle Type], $A8, Custom_Stock_MPG[Scenario], Input_Scenario_Modeled), SUMIFS(Vehicle_Stock_Projections[Vehicle Stock],Vehicle_Stock_Projections[Year],Calculations!R$4,Vehicle_Stock_Projections[Technology Type], $B8, Vehicle_Stock_Projections[Vehicle Type], $A8, Vehicle_Stock_Projections[Scenario], Input_Scenario_Modeled)) -> 0.1251458377 | S8: =IF(Input_Scenario_Modeled="Custom", SUMIFS(Custom_Stock_MPG[Vehicle Stock],Custom_Stock_MPG[Year],Calculations!S$4, Custom_Stock_MPG[[ Technology Type]], $B8, Custom_Stock_MPG[Vehicle Type], $A8, Custom_Stock_MPG[Scenario], Input_Scenario_Modeled), SUMIFS(Vehicle_Stock_Projections[Vehicle Stock],Vehicle_Stock_Projections[Year],Calculations!S$4,Vehicle_Stock_Projections[Technology Type], $B8, Vehicle_Stock_Projections[Vehicle Type], $A8, Vehicle_Stock_Projections[Scenario], Input_Scenario_Modeled)) -> 0.1129697636 | T8: =IF(Input_Scenario_Modeled="Custom", SUMIFS(Custom_Stock_MPG[Vehicle Stock],Custom_Stock_MPG[Year],Calculations!T$4, Custom_Stock_MPG[[ Technology Type]], $B8, Custom_Stock_MPG[Vehicle Type], $A8, Custom_Stock_MPG[Scenario], Input_Scenario_Modeled), SUMIFS(Vehicle_Stock_Projections[Vehicle Stock],Vehicle_Stock_Projections[Year],Calculations!T$4,Vehicle_Stock_Projections[Technology Type], $B8, Vehicle_Stock_Projections[Vehicle Type], $A8, Vehicle_Stock_Projections[Scenario], Input_Scenario_Modeled)) -> 0.1038792506 | U8: =IF(Input_Scenario_Modeled="Custom", SUMIFS(Custom_Stock_MPG[Vehicle Stock],Custom_Stock_MPG[Year],Calculations!U$4, Custom_Stock_MPG[[ Technology Type]], $B8, Custom_Stock_MPG[Vehicle Type], $A8, Custom_Stock_MPG[Scenario], Input_Scenario_Modeled), SUMIFS(Vehicle_Stock_Projections[Vehicle Stock],Vehicle_Stock_Projections[Year],Calculations!U$4,Vehicle_Stock_Projections[Technology Type], $B8, Vehicle_Stock_Projections[Vehicle Type], $A8, Vehicle_Stock_Projections[Scenario], Input_Scenario_Modeled)) -> 0.09694114327 | V8: =IF(Input_Scenario_Modeled="Custom", SUMIFS(Custom_Stock_MPG[Vehicle Stock],Custom_Stock_MPG[Year],Calculations!V$4, Custom_Stock_MPG[[ Technology Type]], $B8, Custom_Stock_MPG[Vehicle Type], $A8, Custom_Stock_MPG[Scenario], Input_Scenario_Modeled), SUMIFS(Vehicle_Stock_Projections[Vehicle Stock],Vehicle_Stock_Projections[Year],Calculations!V$4,Vehicle_Stock_Projections[Technology Type], $B8, Vehicle_Stock_Projections[Vehicle Type], $A8, Vehicle_Stock_Projections[Scenario], Input_Scenario_Modeled)) -> 0.09062876552 | W8: =IF(Input_Scenario_Modeled="Custom", SUMIFS(Custom_Stock_MPG[Vehicle Stock],Custom_Stock_MPG[Year],Calculations!W$4, Custom_Stock_MPG[[ Technology Type]], $B8, Custom_Stock_MPG[Vehicle Type], $A8, Custom_Stock_MPG[Scenario], Input_Scenario_Modeled), SUMIFS(Vehicle_Stock_Projections[Vehicle Stock],Vehicle_Stock_Projections[Year],Calculations!W$4,Vehicle_Stock_Projections[Technology Type], $B8, Vehicle_Stock_Projections[Vehicle Type], $A8, Vehicle_Stock_Projections[Scenario], Input_Scenario_Modeled)) -> 0.08492352813 | X8: =IF(Input_Scenario_Modeled="Custom", SUMIFS(Custom_Stock_MPG[Vehicle Stock],Custom_Stock_MPG[Year],Calculations!X$4, Custom_Stock_MPG[[ Technology Type]], $B8, Custom_Stock_MPG[Vehicle Type], $A8, Custom_Stock_MPG[Scenario], Input_Scenario_Modeled), SUMIFS(Vehicle_Stock_Projections[Vehicle Stock],Vehicle_Stock_Projections[Year],Calculations!X$4,Vehicle_Stock_Projections[Technology Type], $B8, Vehicle_Stock_Projections[Vehicle Type], $A8, Vehicle_Stock_Projections[Scenario], Input_Scenario_Modeled)) -> 0.07974261791 | Y8: =IF(Input_Scenario_Modeled="Custom", SUMIFS(Custom_Stock_MPG[Vehicle Stock],Custom_Stock_MPG[Year],Calculations!Y$4, Custom_Stock_MPG[[ Technology Type]], $B8, Custom_Stock_MPG[Vehicle Type], $A8, Custom_Stock_MPG[Scenario], Input_Scenario_Modeled), SUMIFS(Vehicle_Stock_Projections[Vehicle Stock],Vehicle_Stock_Projections[Year],Calculations!Y$4,Vehicle_Stock_Projections[Technology Type], $B8, Vehicle_Stock_Projections[Vehicle Type], $A8, Vehicle_Stock_Projections[Scenario], Input_Scenario_Modeled)) -> 0.07491589338 | Z8: =IF(Input_Scenario_Modeled="Custom", SUMIFS(Custom_Stock_MPG[Vehicle Stock],Custom_Stock_MPG[Year],Calculations!Z$4, Custom_Stock_MPG[[ Technology Type]], $B8, Custom_Stock_MPG[Vehicle Type], $A8, Custom_Stock_MPG[Scenario], Input_Scenario_Modeled), SUMIFS(Vehicle_Stock_Projections[Vehicle Stock],Vehicle_Stock_Projections[Year],Calculations!Z$4,Vehicle_Stock_Projections[Technology Type], $B8, Vehicle_Stock_Projections[Vehicle Type], $A8, Vehicle_Stock_Projections[Scenario], Input_Scenario_Modeled)) -> 0.07039635628 | AA8: =IF(Input_Scenario_Modeled="Custom", SUMIFS(Custom_Stock_MPG[Vehicle Stock],Custom_Stock_MPG[Year],Calculations!AA$4, Custom_Stock_MPG[[ Technology Type]], $B8, Custom_Stock_MPG[Vehicle Type], $A8, Custom_Stock_MPG[Scenario], Input_Scenario_Modeled), SUMIFS(Vehicle_Stock_Projections[Vehicle Stock],Vehicle_Stock_Projections[Year],Calculations!AA$4,Vehicle_Stock_Projections[Technology Type], $B8, Vehicle_Stock_Projections[Vehicle Type], $A8, Vehicle_Stock_Projections[Scenario], Input_Scenario_Modeled)) -> 0.06616333872 | AB8: =IF(Input_Scenario_Modeled="Custom", SUMIFS(Custom_Stock_MPG[Vehicle Stock],Custom_Stock_MPG[Year],Calculations!AB$4, Custom_Stock_MPG[[ Technology Type]], $B8, Custom_Stock_MPG[Vehicle Type], $A8, Custom_Stock_MPG[Scenario], Input_Scenario_Modeled), SUMIFS(Vehicle_Stock_Projections[Vehicle Stock],Vehicle_Stock_Projections[Year],Calculations!AB$4,Vehicle_Stock_Projections[Technology Type], $B8, Vehicle_Stock_Projections[Vehicle Type], $A8, Vehicle_Stock_Projections[Scenario], Input_Scenario_Modeled)) -> 0.06219770014 | AC8: =IF(Input_Scenario_Modeled="Custom", SUMIFS(Custom_Stock_MPG[Vehicle Stock],Custom_Stock_MPG[Year],Calculations!AC$4, Custom_Stock_MPG[[ Technology Type]], $B8, Custom_Stock_MPG[Vehicle Type], $A8, Custom_Stock_MPG[Scenario], Input_Scenario_Modeled), SUMIFS(Vehicle_Stock_Projections[Vehicle Stock],Vehicle_Stock_Projections[Year],Calculations!AC$4,Vehicle_Stock_Projections[Technology Type], $B8, Vehicle_Stock_Projections[Vehicle Type], $A8, Vehicle_Stock_Projections[Scenario], Input_Scenario_Modeled)) -> 0.05848160014 | AD8: =IF(Input_Scenario_Modeled="Custom", SUMIFS(Custom_Stock_MPG[Vehicle Stock],Custom_Stock_MPG[Year],Calculations!AD$4, Custom_Stock_MPG[[ Technology Type]], $B8, Custom_Stock_MPG[Vehicle Type], $A8, Custom_Stock_MPG[Scenario], Input_Scenario_Modeled), SUMIFS(Vehicle_Stock_Projections[Vehicle Stock],Vehicle_Stock_Projections[Year],Calculations!AD$4,Vehicle_Stock_Projections[Technology Type], $B8, Vehicle_Stock_Projections[Vehicle Type], $A8, Vehicle_Stock_Projections[Scenario], Input_Scenario_Modeled)) -> 0.05499850586 | AE8: =IF(Input_Scenario_Modeled="Custom", SUMIFS(Custom_Stock_MPG[Vehicle Stock],Custom_Stock_MPG[Year],Calculations!AE$4, Custom_Stock_MPG[[ Technology Type]], $B8, Custom_Stock_MPG[Vehicle Type], $A8, Custom_Stock_MPG[Scenario], Input_Scenario_Modeled), SUMIFS(Vehicle_Stock_Projections[Vehicle Stock],Vehicle_Stock_Projections[Year],Calculations!AE$4,Vehicle_Stock_Projections[Technology Type], $B8, Vehicle_Stock_Projections[Vehicle Type], $A8, Vehicle_Stock_Projections[Scenario], Input_Scenario_Modeled)) -> 0.05173300952 | AF8: =IF(Input_Scenario_Modeled="Custom", SUMIFS(Custom_Stock_MPG[Vehicle Stock],Custom_Stock_MPG[Year],Calculations!AF$4, Custom_Stock_MPG[[ Technology Type]], $B8, Custom_Stock_MPG[Vehicle Type], $A8, Custom_Stock_MPG[Scenario], Input_Scenario_Modeled), SUMIFS(Vehicle_Stock_Projections[Vehicle Stock],Vehicle_Stock_Projections[Year],Calculations!AF$4,Vehicle_Stock_Projections[Technology Type], $B8, Vehicle_Stock_Projections[Vehicle Type], $A8, Vehicle_Stock_Projections[Scenario], Input_Scenario_Modeled)) -> 0.05173300952 | AG8: =IF(Input_Scenario_Modeled="Custom", SUMIFS(Custom_Stock_MPG[Vehicle Stock],Custom_Stock_MPG[Year],Calculations!AG$4, Custom_Stock_MPG[[ Technology Type]], $B8, Custom_Stock_MPG[Vehicle Type], $A8, Custom_Stock_MPG[Scenario], Input_Scenario_Modeled), SUMIFS(Vehicle_Stock_Projections[Vehicle Stock],Vehicle_Stock_Projections[Year],Calculations!AG$4,Vehicle_Stock_Projections[Technology Type], $B8, Vehicle_Stock_Projections[Vehicle Type], $A8, Vehicle_Stock_Projections[Scenario], Input_Scenario_Modeled)) -> 0.05173300952 | AH8: =IF(Input_Scenario_Modeled="Custom", SUMIFS(Custom_Stock_MPG[Vehicle Stock],Custom_Stock_MPG[Year],Calculations!AH$4, Custom_Stock_MPG[[ Technology Type]], $B8, Custom_Stock_MPG[Vehicle Type], $A8, Custom_Stock_MPG[Scenario], Input_Scenario_Modeled), SUMIFS(Vehicle_Stock_Projections[Vehicle Stock],Vehicle_Stock_Projections[Year],Calculations!AH$4,Vehicle_Stock_Projections[Technology Type], $B8, Vehicle_Stock_Projections[Vehicle Type], $A8, Vehicle_Stock_Projections[Scenario], Input_Scenario_Modeled)) -> 0.05173300952 | AI8: =IF(Input_Scenario_Modeled="Custom", SUMIFS(Custom_Stock_MPG[Vehicle Stock],Custom_Stock_MPG[Year],Calculations!AI$4, Custom_Stock_MPG[[ Technology Type]], $B8, Custom_Stock_MPG[Vehicle Type], $A8, Custom_Stock_MPG[Scenario], Input_Scenario_Modeled), SUMIFS(Vehicle_Stock_Projections[Vehicle Stock],Vehicle_Stock_Projections[Year],Calculations!AI$4,Vehicle_Stock_Projections[Technology Type], $B8, Vehicle_Stock_Projections[Vehicle Type], $A8, Vehicle_Stock_Projections[Scenario], Input_Scenario_Modeled)) -> 0.05173300952 | AJ8: =IF(Input_Scenario_Modeled="Custom", SUMIFS(Custom_Stock_MPG[Vehicle Stock],Custom_Stock_MPG[Year],Calculations!AJ$4, Custom_Stock_MPG[[ Technology Type]], $B8, Custom_Stock_MPG[Vehicle Type], $A8, Custom_Stock_MPG[Scenario], Input_Scenario_Modeled), SUMIFS(Vehicle_Stock_Projections[Vehicle Stock],Vehicle_Stock_Projections[Year],Calculations!AJ$4,Vehicle_Stock_Projections[Technology Type], $B8, Vehicle_Stock_Projections[Vehicle Type], $A8, Vehicle_Stock_Projections[Scenario], Input_Scenario_Modeled)) -> 0.05173300952
A9: Passenger Cars | B9: Electric-Diesel Hybrid | C9: Diesel | D9: Stock | E9: =IF(Input_Scenario_Modeled="Custom", SUMIFS(Custom_Stock_MPG[Vehicle Stock],Custom_Stock_MPG[Year],Calculations!E$4, Custom_Stock_MPG[[ Technology Type]], $B9, Custom_Stock_MPG[Vehicle Type], $A9, Custom_Stock_MPG[Scenario], Input_Scenario_Modeled), SUMIFS(Vehicle_Stock_Projections[Vehicle Stock],Vehicle_Stock_Projections[Year],Calculations!E$4,Vehicle_Stock_Projections[Technology Type], $B9, Vehicle_Stock_Projections[Vehicle Type], $A9, Vehicle_Stock_Projections[Scenario], Input_Scenario_Modeled)) -> 0 | F9: =IF(Input_Scenario_Modeled="Custom", SUMIFS(Custom_Stock_MPG[Vehicle Stock],Custom_Stock_MPG[Year],Calculations!F$4, Custom_Stock_MPG[[ Technology Type]], $B9, Custom_Stock_MPG[Vehicle Type], $A9, Custom_Stock_MPG[Scenario], Input_Scenario_Modeled), SUMIFS(Vehicle_Stock_Projections[Vehicle Stock],Vehicle_Stock_Projections[Year],Calculations!F$4,Vehicle_Stock_Projections[Technology Type], $B9, Vehicle_Stock_Projections[Vehicle Type], $A9, Vehicle_Stock_Projections[Scenario], Input_Scenario_Modeled)) -> 0 | G9: =IF(Input_Scenario_Modeled="Custom", SUMIFS(Custom_Stock_MPG[Vehicle Stock],Custom_Stock_MPG[Year],Calculations!G$4, Custom_Stock_MPG[[ Technology Type]], $B9, Custom_Stock_MPG[Vehicle Type], $A9, Custom_Stock_MPG[Scenario], Input_Scenario_Modeled), SUMIFS(Vehicle_Stock_Projections[Vehicle Stock],Vehicle_Stock_Projections[Year],Calculations!G$4,Vehicle_Stock_Projections[Technology Type], $B9, Vehicle_Stock_Projections[Vehicle Type], $A9, Vehicle_Stock_Projections[Scenario], Input_Scenario_Modeled)) -> 0 | H9: =IF(Input_Scenario_Modeled="Custom", SUMIFS(Custom_Stock_MPG[Vehicle Stock],Custom_Stock_MPG[Year],Calculations!H$4, Custom_Stock_MPG[[ Technology Type]], $B9, Custom_Stock_MPG[Vehicle Type], $A9, Custom_Stock_MPG[Scenario], Input_Scenario_Modeled), SUMIFS(Vehicle_Stock_Projections[Vehicle Stock],Vehicle_Stock_Projections[Year],Calculations!H$4,Vehicle_Stock_Projections[Technology Type], $B9, Vehicle_Stock_Projections[Vehicle Type], $A9, Vehicle_Stock_Projections[Scenario], Input_Scenario_Modeled)) -> 0 | I9: =IF(Input_Scenario_Modeled="Custom", SUMIFS(Custom_Stock_MPG[Vehicle Stock],Custom_Stock_MPG[Year],Calculations!I$4, Custom_Stock_MPG[[ Technology Type]], $B9, Custom_Stock_MPG[Vehicle Type], $A9, Custom_Stock_MPG[Scenario], Input_Scenario_Modeled), SUMIFS(Vehicle_Stock_Projections[Vehicle Stock],Vehicle_Stock_Projections[Year],Calculations!I$4,Vehicle_Stock_Projections[Technology Type], $B9, Vehicle_Stock_Projections[Vehicle Type], $A9, Vehicle_Stock_Projections[Scenario], Input_Scenario_Modeled)) -> 0 | J9: =IF(Input_Scenario_Modeled="Custom", SUMIFS(Custom_Stock_MPG[Vehicle Stock],Custom_Stock_MPG[Year],Calculations!J$4, Custom_Stock_MPG[[ Technology Type]], $B9, Custom_Stock_MPG[Vehicle Type], $A9, Custom_Stock_MPG[Scenario], Input_Scenario_Modeled), SUMIFS(Vehicle_Stock_Projections[Vehicle Stock],Vehicle_Stock_Projections[Year],Calculations!J$4,Vehicle_Stock_Projections[Technology Type], $B9, Vehicle_Stock_Projections[Vehicle Type], $A9, Vehicle_Stock_Projections[Scenario], Input_Scenario_Modeled)) -> 0 | K9: =IF(Input_Scenario_Modeled="Custom", SUMIFS(Custom_Stock_MPG[Vehicle Stock],Custom_Stock_MPG[Year],Calculations!K$4, Custom_Stock_MPG[[ Technology Type]], $B9, Custom_Stock_MPG[Vehicle Type], $A9, Custom_Stock_MPG[Scenario], Input_Scenario_Modeled), SUMIFS(Vehicle_Stock_Projections[Vehicle Stock],Vehicle_Stock_Projections[Year],Calculations!K$4,Vehicle_Stock_Projections[Technology Type], $B9, Vehicle_Stock_Projections[Vehicle Type], $A9, Vehicle_Stock_Projections[Scenario], Input_Scenario_Modeled)) -> 0 | L9: =IF(Input_Scenario_Modeled="Custom", SUMIFS(Custom_Stock_MPG[Vehicle Stock],Custom_Stock_MPG[Year],Calculations!L$4, Custom_Stock_MPG[[ Technology Type]], $B9, Custom_Stock_MPG[Vehicle Type], $A9, Custom_Stock_MPG[Scenario], Input_Scenario_Modeled), SUMIFS(Vehicle_Stock_Projections[Vehicle Stock],Vehicle_Stock_Projections[Year],Calculations!L$4,Vehicle_Stock_Projections[Technology Type], $B9, Vehicle_Stock_Projections[Vehicle Type], $A9, Vehicle_Stock_Projections[Scenario], Input_Scenario_Modeled)) -> 0 | M9: =IF(Input_Scenario_Modeled="Custom", SUMIFS(Custom_Stock_MPG[Vehicle Stock],Custom_Stock_MPG[Year],Calculations!M$4, Custom_Stock_MPG[[ Technology Type]], $B9, Custom_Stock_MPG[Vehicle Type], $A9, Custom_Stock_MPG[Scenario], Input_Scenario_Modeled), SUMIFS(Vehicle_Stock_Projections[Vehicle Stock],Vehicle_Stock_Projections[Year],Calculations!M$4,Vehicle_Stock_Projections[Technology Type], $B9, Vehicle_Stock_Projections[Vehicle Type], $A9, Vehicle_Stock_Projections[Scenario], Input_Scenario_Modeled)) -> 0 | N9: =IF(Input_Scenario_Modeled="Custom", SUMIFS(Custom_Stock_MPG[Vehicle Stock],Custom_Stock_MPG[Year],Calculations!N$4, Custom_Stock_MPG[[ Technology Type]], $B9, Custom_Stock_MPG[Vehicle Type], $A9, Custom_Stock_MPG[Scenario], Input_Scenario_Modeled), SUMIFS(Vehicle_Stock_Projections[Vehicle Stock],Vehicle_Stock_Projections[Year],Calculations!N$4,Vehicle_Stock_Projections[Technology Type], $B9, Vehicle_Stock_Projections[Vehicle Type], $A9, Vehicle_Stock_Projections[Scenario], Input_Scenario_Modeled)) -> 0 | O9: =IF(Input_Scenario_Modeled="Custom", SUMIFS(Custom_Stock_MPG[Vehicle Stock],Custom_Stock_MPG[Year],Calculations!O$4, Custom_Stock_MPG[[ Technology Type]], $B9, Custom_Stock_MPG[Vehicle Type], $A9, Custom_Stock_MPG[Scenario], Input_Scenario_Modeled), SUMIFS(Vehicle_Stock_Projections[Vehicle Stock],Vehicle_Stock_Projections[Year],Calculations!O$4,Vehicle_Stock_Projections[Technology Type], $B9, Vehicle_Stock_Projections[Vehicle Type], $A9, Vehicle_Stock_Projections[Scenario], Input_Scenario_Modeled)) -> 0 | P9: =IF(Input_Scenario_Modeled="Custom", SUMIFS(Custom_Stock_MPG[Vehicle Stock],Custom_Stock_MPG[Year],Calculations!P$4, Custom_Stock_MPG[[ Technology Type]], $B9, Custom_Stock_MPG[Vehicle Type], $A9, Custom_Stock_MPG[Scenario], Input_Scenario_Modeled), SUMIFS(Vehicle_Stock_Projections[Vehicle Stock],Vehicle_Stock_Projections[Year],Calculations!P$4,Vehicle_Stock_Projections[Technology Type], $B9, Vehicle_Stock_Projections[Vehicle Type], $A9, Vehicle_Stock_Projections[Scenario], Input_Scenario_Modeled)) -> 0 | Q9: =IF(Input_Scenario_Modeled="Custom", SUMIFS(Custom_Stock_MPG[Vehicle Stock],Custom_Stock_MPG[Year],Calculations!Q$4, Custom_Stock_MPG[[ Technology Type]], $B9, Custom_Stock_MPG[Vehicle Type], $A9, Custom_Stock_MPG[Scenario], Input_Scenario_Modeled), SUMIFS(Vehicle_Stock_Projections[Vehicle Stock],Vehicle_Stock_Projections[Year],Calculations!Q$4,Vehicle_Stock_Projections[Technology Type], $B9, Vehicle_Stock_Projections[Vehicle Type], $A9, Vehicle_Stock_Projections[Scenario], Input_Scenario_Modeled)) -> 0 | R9: =IF(Input_Scenario_Modeled="Custom", SUMIFS(Custom_Stock_MPG[Vehicle Stock],Custom_Stock_MPG[Year],Calculations!R$4, Custom_Stock_MPG[[ Technology Type]], $B9, Custom_Stock_MPG[Vehicle Type], $A9, Custom_Stock_MPG[Scenario], Input_Scenario_Modeled), SUMIFS(Vehicle_Stock_Projections[Vehicle Stock],Vehicle_Stock_Projections[Year],Calculations!R$4,Vehicle_Stock_Projections[Technology Type], $B9, Vehicle_Stock_Projections[Vehicle Type], $A9, Vehicle_Stock_Projections[Scenario], Input_Scenario_Modeled)) -> 0 | S9: =IF(Input_Scenario_Modeled="Custom", SUMIFS(Custom_Stock_MPG[Vehicle Stock],Custom_Stock_MPG[Year],Calculations!S$4, Custom_Stock_MPG[[ Technology Type]], $B9, Custom_Stock_MPG[Vehicle Type], $A9, Custom_Stock_MPG[Scenario], Input_Scenario_Modeled), SUMIFS(Vehicle_Stock_Projections[Vehicle Stock],Vehicle_Stock_Projections[Year],Calculations!S$4,Vehicle_Stock_Projections[Technology Type], $B9, Vehicle_Stock_Projections[Vehicle Type], $A9, Vehicle_Stock_Projections[Scenario], Input_Scenario_Modeled)) -> 0 | T9: =IF(Input_Scenario_Modeled="Custom", SUMIFS(Custom_Stock_MPG[Vehicle Stock],Custom_Stock_MPG[Year],Calculations!T$4, Custom_Stock_MPG[[ Technology Type]], $B9, Custom_Stock_MPG[Vehicle Type], $A9, Custom_Stock_MPG[Scenario], Input_Scenario_Modeled), SUMIFS(Vehicle_Stock_Projections[Vehicle Stock],Vehicle_Stock_Projections[Year],Calculations!T$4,Vehicle_Stock_Projections[Technology Type], $B9, Vehicle_Stock_Projections[Vehicle Type], $A9, Vehicle_Stock_Projections[Scenario], Input_Scenario_Modeled)) -> 0 | U9: =IF(Input_Scenario_Modeled="Custom", SUMIFS(Custom_Stock_MPG[Vehicle Stock],Custom_Stock_MPG[Year],Calculations!U$4, Custom_Stock_MPG[[ Technology Type]], $B9, Custom_Stock_MPG[Vehicle Type], $A9, Custom_Stock_MPG[Scenario], Input_Scenario_Modeled), SUMIFS(Vehicle_Stock_Projections[Vehicle Stock],Vehicle_Stock_Projections[Year],Calculations!U$4,Vehicle_Stock_Projections[Technology Type], $B9, Vehicle_Stock_Projections[Vehicle Type], $A9, Vehicle_Stock_Projections[Scenario], Input_Scenario_Modeled)) -> 0 | V9: =IF(Input_Scenario_Modeled="Custom", SUMIFS(Custom_Stock_MPG[Vehicle Stock],Custom_Stock_MPG[Year],Calculations!V$4, Custom_Stock_MPG[[ Technology Type]], $B9, Custom_Stock_MPG[Vehicle Type], $A9, Custom_Stock_MPG[Scenario], Input_Scenario_Modeled), SUMIFS(Vehicle_Stock_Projections[Vehicle Stock],Vehicle_Stock_Projections[Year],Calculations!V$4,Vehicle_Stock_Projections[Technology Type], $B9, Vehicle_Stock_Projections[Vehicle Type], $A9, Vehicle_Stock_Projections[Scenario], Input_Scenario_Modeled)) -> 0 | W9: =IF(Input_Scenario_Modeled="Custom", SUMIFS(Custom_Stock_MPG[Vehicle Stock],Custom_Stock_MPG[Year],Calculations!W$4, Custom_Stock_MPG[[ Technology Type]], $B9, Custom_Stock_MPG[Vehicle Type], $A9, Custom_Stock_MPG[Scenario], Input_Scenario_Modeled), SUMIFS(Vehicle_Stock_Projections[Vehicle Stock],Vehicle_Stock_Projections[Year],Calculations!W$4,Vehicle_Stock_Projections[Technology Type], $B9, Vehicle_Stock_Projections[Vehicle Type], $A9, Vehicle_Stock_Projections[Scenario], Input_Scenario_Modeled)) -> 0 | X9: =IF(Input_Scenario_Modeled="Custom", SUMIFS(Custom_Stock_MPG[Vehicle Stock],Custom_Stock_MPG[Year],Calculations!X$4, Custom_Stock_MPG[[ Technology Type]], $B9, Custom_Stock_MPG[Vehicle Type], $A9, Custom_Stock_MPG[Scenario], Input_Scenario_Modeled), SUMIFS(Vehicle_Stock_Projections[Vehicle Stock],Vehicle_Stock_Projections[Year],Calculations!X$4,Vehicle_Stock_Projections[Technology Type], $B9, Vehicle_Stock_Projections[Vehicle Type], $A9, Vehicle_Stock_Projections[Scenario], Input_Scenario_Modeled)) -> 0 | Y9: =IF(Input_Scenario_Modeled="Custom", SUMIFS(Custom_Stock_MPG[Vehicle Stock],Custom_Stock_MPG[Year],Calculations!Y$4, Custom_Stock_MPG[[ Technology Type]], $B9, Custom_Stock_MPG[Vehicle Type], $A9, Custom_Stock_MPG[Scenario], Input_Scenario_Modeled), SUMIFS(Vehicle_Stock_Projections[Vehicle Stock],Vehicle_Stock_Projections[Year],Calculations!Y$4,Vehicle_Stock_Projections[Technology Type], $B9, Vehicle_Stock_Projections[Vehicle Type], $A9, Vehicle_Stock_Projections[Scenario], Input_Scenario_Modeled)) -> 0 | Z9: =IF(Input_Scenario_Modeled="Custom", SUMIFS(Custom_Stock_MPG[Vehicle Stock],Custom_Stock_MPG[Year],Calculations!Z$4, Custom_Stock_MPG[[ Technology Type]], $B9, Custom_Stock_MPG[Vehicle Type], $A9, Custom_Stock_MPG[Scenario], Input_Scenario_Modeled), SUMIFS(Vehicle_Stock_Projections[Vehicle Stock],Vehicle_Stock_Projections[Year],Calculations!Z$4,Vehicle_Stock_Projections[Technology Type], $B9, Vehicle_Stock_Projections[Vehicle Type], $A9, Vehicle_Stock_Projections[Scenario], Input_Scenario_Modeled)) -> 0 | AA9: =IF(Input_Scenario_Modeled="Custom", SUMIFS(Custom_Stock_MPG[Vehicle Stock],Custom_Stock_MPG[Year],Calculations!AA$4, Custom_Stock_MPG[[ Technology Type]], $B9, Custom_Stock_MPG[Vehicle Type], $A9, Custom_Stock_MPG[Scenario], Input_Scenario_Modeled), SUMIFS(Vehicle_Stock_Projections[Vehicle Stock],Vehicle_Stock_Projections[Year],Calculations!AA$4,Vehicle_Stock_Projections[Technology Type], $B9, Vehicle_Stock_Projections[Vehicle Type], $A9, Vehicle_Stock_Projections[Scenario], Input_Scenario_Modeled)) -> 0 | AB9: =IF(Input_Scenario_Modeled="Custom", SUMIFS(Custom_Stock_MPG[Vehicle Stock],Custom_Stock_MPG[Year],Calculations!AB$4, Custom_Stock_MPG[[ Technology Type]], $B9, Custom_Stock_MPG[Vehicle Type], $A9, Custom_Stock_MPG[Scenario], Input_Scenario_Modeled), SUMIFS(Vehicle_Stock_Projections[Vehicle Stock],Vehicle_Stock_Projections[Year],Calculations!AB$4,Vehicle_Stock_Projections[Technology Type], $B9, Vehicle_Stock_Projections[Vehicle Type], $A9, Vehicle_Stock_Projections[Scenario], Input_Scenario_Modeled)) -> 0 | AC9: =IF(Input_Scenario_Modeled="Custom", SUMIFS(Custom_Stock_MPG[Vehicle Stock],Custom_Stock_MPG[Year],Calculations!AC$4, Custom_Stock_MPG[[ Technology Type]], $B9, Custom_Stock_MPG[Vehicle Type], $A9, Custom_Stock_MPG[Scenario], Input_Scenario_Modeled), SUMIFS(Vehicle_Stock_Projections[Vehicle Stock],Vehicle_Stock_Projections[Year],Calculations!AC$4,Vehicle_Stock_Projections[Technology Type], $B9, Vehicle_Stock_Projections[Vehicle Type], $A9, Vehicle_Stock_Projections[Scenario], Input_Scenario_Modeled)) -> 0 | AD9: =IF(Input_Scenario_Modeled="Custom", SUMIFS(Custom_Stock_MPG[Vehicle Stock],Custom_Stock_MPG[Year],Calculations!AD$4, Custom_Stock_MPG[[ Technology Type]], $B9, Custom_Stock_MPG[Vehicle Type], $A9, Custom_Stock_MPG[Scenario], Input_Scenario_Modeled), SUMIFS(Vehicle_Stock_Projections[Vehicle Stock],Vehicle_Stock_Projections[Year],Calculations!AD$4,Vehicle_Stock_Projections[Technology Type], $B9, Vehicle_Stock_Projections[Vehicle Type], $A9, Vehicle_Stock_Projections[Scenario], Input_Scenario_Modeled)) -> 0 | AE9: =IF(Input_Scenario_Modeled="Custom", SUMIFS(Custom_Stock_MPG[Vehicle Stock],Custom_Stock_MPG[Year],Calculations!AE$4, Custom_Stock_MPG[[ Technology Type]], $B9, Custom_Stock_MPG[Vehicle Type], $A9, Custom_Stock_MPG[Scenario], Input_Scenario_Modeled), SUMIFS(Vehicle_Stock_Projections[Vehicle Stock],Vehicle_Stock_Projections[Year],Calculations!AE$4,Vehicle_Stock_Projections[Technology Type], $B9, Vehicle_Stock_Projections[Vehicle Type], $A9, Vehicle_Stock_Projections[Scenario], Input_Scenario_Modeled)) -> 0 | AF9: =IF(Input_Scenario_Modeled="Custom", SUMIFS(Custom_Stock_MPG[Vehicle Stock],Custom_Stock_MPG[Year],Calculations!AF$4, Custom_Stock_MPG[[ Technology Type]], $B9, Custom_Stock_MPG[Vehicle Type], $A9, Custom_Stock_MPG[Scenario], Input_Scenario_Modeled), SUMIFS(Vehicle_Stock_Projections[Vehicle Stock],Vehicle_Stock_Projections[Year],Calculations!AF$4,Vehicle_Stock_Projections[Technology Type], $B9, Vehicle_Stock_Projections[Vehicle Type], $A9, Vehicle_Stock_Projections[Scenario], Input_Scenario_Modeled)) -> 0 | AG9: =IF(Input_Scenario_Modeled="Custom", SUMIFS(Custom_Stock_MPG[Vehicle Stock],Custom_Stock_MPG[Year],Calculations!AG$4, Custom_Stock_MPG[[ Technology Type]], $B9, Custom_Stock_MPG[Vehicle Type], $A9, Custom_Stock_MPG[Scenario], Input_Scenario_Modeled), SUMIFS(Vehicle_Stock_Projections[Vehicle Stock],Vehicle_Stock_Projections[Year],Calculations!AG$4,Vehicle_Stock_Projections[Technology Type], $B9, Vehicle_Stock_Projections[Vehicle Type], $A9, Vehicle_Stock_Projections[Scenario], Input_Scenario_Modeled)) -> 0 | AH9: =IF(Input_Scenario_Modeled="Custom", SUMIFS(Custom_Stock_MPG[Vehicle Stock],Custom_Stock_MPG[Year],Calculations!AH$4, Custom_Stock_MPG[[ Technology Type]], $B9, Custom_Stock_MPG[Vehicle Type], $A9, Custom_Stock_MPG[Scenario], Input_Scenario_Modeled), SUMIFS(Vehicle_Stock_Projections[Vehicle Stock],Vehicle_Stock_Projections[Year],Calculations!AH$4,Vehicle_Stock_Projections[Technology Type], $B9, Vehicle_Stock_Projections[Vehicle Type], $A9, Vehicle_Stock_Projections[Scenario], Input_Scenario_Modeled)) -> 0 | AI9: =IF(Input_Scenario_Modeled="Custom", SUMIFS(Custom_Stock_MPG[Vehicle Stock],Custom_Stock_MPG[Year],Calculations!AI$4, Custom_Stock_MPG[[ Technology Type]], $B9, Custom_Stock_MPG[Vehicle Type], $A9, Custom_Stock_MPG[Scenario], Input_Scenario_Modeled), SUMIFS(Vehicle_Stock_Projections[Vehicle Stock],Vehicle_Stock_Projections[Year],Calculations!AI$4,Vehicle_Stock_Projections[Technology Type], $B9, Vehicle_Stock_Projections[Vehicle Type], $A9, Vehicle_Stock_Projections[Scenario], Input_Scenario_Modeled)) -> 0 | AJ9: =IF(Input_Scenario_Modeled="Custom", SUMIFS(Custom_Stock_MPG[Vehicle Stock],Custom_Stock_MPG[Year],Calculations!AJ$4, Custom_Stock_MPG[[ Technology Type]], $B9, Custom_Stock_MPG[Vehicle Type], $A9, Custom_Stock_MPG[Scenario], Input_Scenario_Modeled), SUMIFS(Vehicle_Stock_Projections[Vehicle Stock],Vehicle_Stock_Projections[Year],Calculations!AJ$4,Vehicle_Stock_Projections[Technology Type], $B9, Vehicle_Stock_Projections[Vehicle Type], $A9, Vehicle_Stock_Projections[Scenario], Input_Scenario_Modeled)) -> 0
A10: Passenger Cars | B10: 100-Mile Electric Vehicle | C10: Electricity | D10: Stock | E10: =IF(Input_Scenario_Modeled="Custom", SUMIFS(Custom_Stock_MPG[Vehicle Stock],Custom_Stock_MPG[Year],Calculations!E$4, Custom_Stock_MPG[[ Technology Type]], $B10, Custom_Stock_MPG[Vehicle Type], $A10, Custom_Stock_MPG[Scenario], Input_Scenario_Modeled), SUMIFS(Vehicle_Stock_Projections[Vehicle Stock],Vehicle_Stock_Projections[Year],Calculations!E$4,Vehicle_Stock_Projections[Technology Type], $B10, Vehicle_Stock_Projections[Vehicle Type], $A10, Vehicle_Stock_Projections[Scenario], Input_Scenario_Modeled)) -> 0.1894056797 | F10: =IF(Input_Scenario_Modeled="Custom", SUMIFS(Custom_Stock_MPG[Vehicle Stock],Custom_Stock_MPG[Year],Calculations!F$4, Custom_Stock_MPG[[ Technology Type]], $B10, Custom_Stock_MPG[Vehicle Type], $A10, Custom_Stock_MPG[Scenario], Input_Scenario_Modeled), SUMIFS(Vehicle_Stock_Projections[Vehicle Stock],Vehicle_Stock_Projections[Year],Calculations!F$4,Vehicle_Stock_Projections[Technology Type], $B10, Vehicle_Stock_Projections[Vehicle Type], $A10, Vehicle_Stock_Projections[Scenario], Input_Scenario_Modeled)) -> 0.1968947649 | G10: =IF(Input_Scenario_Modeled="Custom", SUMIFS(Custom_Stock_MPG[Vehicle Stock],Custom_Stock_MPG[Year],Calculations!G$4, Custom_Stock_MPG[[ Technology Type]], $B10, Custom_Stock_MPG[Vehicle Type], $A10, Custom_Stock_MPG[Scenario], Input_Scenario_Modeled), SUMIFS(Vehicle_Stock_Projections[Vehicle Stock],Vehicle_Stock_Projections[Year],Calculations!G$4,Vehicle_Stock_Projections[Technology Type], $B10, Vehicle_Stock_Projections[Vehicle Type], $A10, Vehicle_Stock_Projections[Scenario], Input_Scenario_Modeled)) -> 0.2021974325 | H10: =IF(Input_Scenario_Modeled="Custom", SUMIFS(Custom_Stock_MPG[Vehicle Stock],Custom_Stock_MPG[Year],Calculations!H$4, Custom_Stock_MPG[[ Technology Type]], $B10, Custom_Stock_MPG[Vehicle Type], $A10, Custom_Stock_MPG[Scenario], Input_Scenario_Modeled), SUMIFS(Vehicle_Stock_Projections[Vehicle Stock],Vehicle_Stock_Projections[Year],Calculations!H$4,Vehicle_Stock_Projections[Technology Type], $B10, Vehicle_Stock_Projections[Vehicle Type], $A10, Vehicle_Stock_Projections[Scenario], Input_Scenario_Modeled)) -> 0.2137165368 | I10: =IF(Input_Scenario_Modeled="Custom", SUMIFS(Custom_Stock_MPG[Vehicle Stock],Custom_Stock_MPG[Year],Calculations!I$4, Custom_Stock_MPG[[ Technology Type]], $B10, Custom_Stock_MPG[Vehicle Type], $A10, Custom_Stock_MPG[Scenario], Input_Scenario_Modeled), SUMIFS(Vehicle_Stock_Projections[Vehicle Stock],Vehicle_Stock_Projections[Year],Calculations!I$4,Vehicle_Stock_Projections[Technology Type], $B10, Vehicle_Stock_Projections[Vehicle Type], $A10, Vehicle_Stock_Projections[Scenario], Input_Scenario_Modeled)) -> 0.2270916998 | J10: =IF(Input_Scenario_Modeled="Custom", SUMIFS(Custom_Stock_MPG[Vehicle Stock],Custom_Stock_MPG[Year],Calculations!J$4, Custom_Stock_MPG[[ Technology Type]], $B10, Custom_Stock_MPG[Vehicle Type], $A10, Custom_Stock_MPG[Scenario], Input_Scenario_Modeled), SUMIFS(Vehicle_Stock_Projections[Vehicle Stock],Vehicle_Stock_Projections[Year],Calculations!J$4,Vehicle_Stock_Projections[Technology Type], $B10, Vehicle_Stock_Projections[Vehicle Type], $A10, Vehicle_Stock_Projections[Scenario], Input_Scenario_Modeled)) -> 0.2391319126 | K10: =IF(Input_Scenario_Modeled="Custom", SUMIFS(Custom_Stock_MPG[Vehicle Stock],Custom_Stock_MPG[Year],Calculations!K$4, Custom_Stock_MPG[[ Technology Type]], $B10, Custom_Stock_MPG[Vehicle Type], $A10, Custom_Stock_MPG[Scenario], Input_Scenario_Modeled), SUMIFS(Vehicle_Stock_Projections[Vehicle Stock],Vehicle_Stock_Projections[Year],Calculations!K$4,Vehicle_Stock_Projections[Technology Type], $B10, Vehicle_Stock_Projections[Vehicle Type], $A10, Vehicle_Stock_Projections[Scenario], Input_Scenario_Modeled)) -> 0.2508785129 | L10: =IF(Input_Scenario_Modeled="Custom", SUMIFS(Custom_Stock_MPG[Vehicle Stock],Custom_Stock_MPG[Year],Calculations!L$4, Custom_Stock_MPG[[ Technology Type]], $B10, Custom_Stock_MPG[Vehicle Type], $A10, Custom_Stock_MPG[Scenario], Input_Scenario_Modeled), SUMIFS(Vehicle_Stock_Projections[Vehicle Stock],Vehicle_Stock_Projections[Year],Calculations!L$4,Vehicle_Stock_Projections[Technology Type], $B10, Vehicle_Stock_Projections[Vehicle Type], $A10, Vehicle_Stock_Projections[Scenario], Input_Scenario_Modeled)) -> 0.2619153559 | M10: =IF(Input_Scenario_Modeled="Custom", SUMIFS(Custom_Stock_MPG[Vehicle Stock],Custom_Stock_MPG[Year],Calculations!M$4, Custom_Stock_MPG[[ Technology Type]], $B10, Custom_Stock_MPG[Vehicle Type], $A10, Custom_Stock_MPG[Scenario], Input_Scenario_Modeled), SUMIFS(Vehicle_Stock_Projections[Vehicle Stock],Vehicle_Stock_Projections[Year],Calculations!M$4,Vehicle_Stock_Projections[Technology Type], $B10, Vehicle_Stock_Projections[Vehicle Type], $A10, Vehicle_Stock_Projections[Scenario], Input_Scenario_Modeled)) -> 0.2725250125 | N10: =IF(Input_Scenario_Modeled="Custom", SUMIFS(Custom_Stock_MPG[Vehicle Stock],Custom_Stock_MPG[Year],Calculations!N$4, Custom_Stock_MPG[[ Technology Type]], $B10, Custom_Stock_MPG[Vehicle Type], $A10, Custom_Stock_MPG[Scenario], Input_Scenario_Modeled), SUMIFS(Vehicle_Stock_Projections[Vehicle Stock],Vehicle_Stock_Projections[Year],Calculations!N$4,Vehicle_Stock_Projections[Technology Type], $B10, Vehicle_Stock_Projections[Vehicle Type], $A10, Vehicle_Stock_Projections[Scenario], Input_Scenario_Modeled)) -> 0.2815471888 | O10: =IF(Input_Scenario_Modeled="Custom", SUMIFS(Custom_Stock_MPG[Vehicle Stock],Custom_Stock_MPG[Year],Calculations!O$4, Custom_Stock_MPG[[ Technology Type]], $B10, Custom_Stock_MPG[Vehicle Type], $A10, Custom_Stock_MPG[Scenario], Input_Scenario_Modeled), SUMIFS(Vehicle_Stock_Projections[Vehicle Stock],Vehicle_Stock_Projections[Year],Calculations!O$4,Vehicle_Stock_Projections[Technology Type], $B10, Vehicle_Stock_Projections[Vehicle Type], $A10, Vehicle_Stock_Projections[Scenario], Input_Scenario_Modeled)) -> 0.2906684875 | P10: =IF(Input_Scenario_Modeled="Custom", SUMIFS(Custom_Stock_MPG[Vehicle Stock],Custom_Stock_MPG[Year],Calculations!P$4, Custom_Stock_MPG[[ Technology Type]], $B10, Custom_Stock_MPG[Vehicle Type], $A10, Custom_Stock_MPG[Scenario], Input_Scenario_Modeled), SUMIFS(Vehicle_Stock_Projections[Vehicle Stock],Vehicle_Stock_Projections[Year],Calculations!P$4,Vehicle_Stock_Projections[Technology Type], $B10, Vehicle_Stock_Projections[Vehicle Type], $A10, Vehicle_Stock_Projections[Scenario], Input_Scenario_Modeled)) -> 0.2994150221 | Q10: =IF(Input_Scenario_Modeled="Custom", SUMIFS(Custom_Stock_MPG[Vehicle Stock],Custom_Stock_MPG[Year],Calculations!Q$4, Custom_Stock_MPG[[ Technology Type]], $B10, Custom_Stock_MPG[Vehicle Type], $A10, Custom_Stock_MPG[Scenario], Input_Scenario_Modeled), SUMIFS(Vehicle_Stock_Projections[Vehicle Stock],Vehicle_Stock_Projections[Year],Calculations!Q$4,Vehicle_Stock_Projections[Technology Type], $B10, Vehicle_Stock_Projections[Vehicle Type], $A10, Vehicle_Stock_Projections[Scenario], Input_Scenario_Modeled)) -> 0.3083107173 | R10: =IF(Input_Scenario_Modeled="Custom", SUMIFS(Custom_Stock_MPG[Vehicle Stock],Custom_Stock_MPG[Year],Calculations!R$4, Custom_Stock_MPG[[ Technology Type]], $B10, Custom_Stock_MPG[Vehicle Type], $A10, Custom_Stock_MPG[Scenario], Input_Scenario_Modeled), SUMIFS(Vehicle_Stock_Projections[Vehicle Stock],Vehicle_Stock_Projections[Year],Calculations!R$4,Vehicle_Stock_Projections[Technology Type], $B10, Vehicle_Stock_Projections[Vehicle Type], $A10, Vehicle_Stock_Projections[Scenario], Input_Scenario_Modeled)) -> 0.3171979487 | S10: =IF(Input_Scenario_Modeled="Custom", SUMIFS(Custom_Stock_MPG[Vehicle Stock],Custom_Stock_MPG[Year],Calculations!S$4, Custom_Stock_MPG[[ Technology Type]], $B10, Custom_Stock_MPG[Vehicle Type], $A10, Custom_Stock_MPG[Scenario], Input_Scenario_Modeled), SUMIFS(Vehicle_Stock_Projections[Vehicle Stock],Vehicle_Stock_Projections[Year],Calculations!S$4,Vehicle_Stock_Projections[Technology Type], $B10, Vehicle_Stock_Projections[Vehicle Type], $A10, Vehicle_Stock_Projections[Scenario], Input_Scenario_Modeled)) -> 0.3263674676 | T10: =IF(Input_Scenario_Modeled="Custom", SUMIFS(Custom_Stock_MPG[Vehicle Stock],Custom_Stock_MPG[Year],Calculations!T$4, Custom_Stock_MPG[[ Technology Type]], $B10, Custom_Stock_MPG[Vehicle Type], $A10, Custom_Stock_MPG[Scenario], Input_Scenario_Modeled), SUMIFS(Vehicle_Stock_Projections[Vehicle Stock],Vehicle_Stock_Projections[Year],Calculations!T$4,Vehicle_Stock_Projections[Technology Type], $B10, Vehicle_Stock_Projections[Vehicle Type], $A10, Vehicle_Stock_Projections[Scenario], Input_Scenario_Modeled)) -> 0.3356049955 | U10: =IF(Input_Scenario_Modeled="Custom", SUMIFS(Custom_Stock_MPG[Vehicle Stock],Custom_Stock_MPG[Year],Calculations!U$4, Custom_Stock_MPG[[ Technology Type]], $B10, Custom_Stock_MPG[Vehicle Type], $A10, Custom_Stock_MPG[Scenario], Input_Scenario_Modeled), SUMIFS(Vehicle_Stock_Projections[Vehicle Stock],Vehicle_Stock_Projections[Year],Calculations!U$4,Vehicle_Stock_Projections[Technology Type], $B10, Vehicle_Stock_Projections[Vehicle Type], $A10, Vehicle_Stock_Projections[Scenario], Input_Scenario_Modeled)) -> 0.3448625207 | V10: =IF(Input_Scenario_Modeled="Custom", SUMIFS(Custom_Stock_MPG[Vehicle Stock],Custom_Stock_MPG[Year],Calculations!V$4, Custom_Stock_MPG[[ Technology Type]], $B10, Custom_Stock_MPG[Vehicle Type], $A10, Custom_Stock_MPG[Scenario], Input_Scenario_Modeled), SUMIFS(Vehicle_Stock_Projections[Vehicle Stock],Vehicle_Stock_Projections[Year],Calculations!V$4,Vehicle_Stock_Projections[Technology Type], $B10, Vehicle_Stock_Projections[Vehicle Type], $A10, Vehicle_Stock_Projections[Scenario], Input_Scenario_Modeled)) -> 0.3533483744 | W10: =IF(Input_Scenario_Modeled="Custom", SUMIFS(Custom_Stock_MPG[Vehicle Stock],Custom_Stock_MPG[Year],Calculations!W$4, Custom_Stock_MPG[[ Technology Type]], $B10, Custom_Stock_MPG[Vehicle Type], $A10, Custom_Stock_MPG[Scenario], Input_Scenario_Modeled), SUMIFS(Vehicle_Stock_Projections[Vehicle Stock],Vehicle_Stock_Projections[Year],Calculations!W$4,Vehicle_Stock_Projections[Technology Type], $B10, Vehicle_Stock_Projections[Vehicle Type], $A10, Vehicle_Stock_Projections[Scenario], Input_Scenario_Modeled)) -> 0.3612858355 | X10: =IF(Input_Scenario_Modeled="Custom", SUMIFS(Custom_Stock_MPG[Vehicle Stock],Custom_Stock_MPG[Year],Calculations!X$4, Custom_Stock_MPG[[ Technology Type]], $B10, Custom_Stock_MPG[Vehicle Type], $A10, Custom_Stock_MPG[Scenario], Input_Scenario_Modeled), SUMIFS(Vehicle_Stock_Projections[Vehicle Stock],Vehicle_Stock_Projections[Year],Calculations!X$4,Vehicle_Stock_Projections[Technology Type], $B10, Vehicle_Stock_Projections[Vehicle Type], $A10, Vehicle_Stock_Projections[Scenario], Input_Scenario_Modeled)) -> 0.3682933152 | Y10: =IF(Input_Scenario_Modeled="Custom", SUMIFS(Custom_Stock_MPG[Vehicle Stock],Custom_Stock_MPG[Year],Calculations!Y$4, Custom_Stock_MPG[[ Technology Type]], $B10, Custom_Stock_MPG[Vehicle Type], $A10, Custom_Stock_MPG[Scenario], Input_Scenario_Modeled), SUMIFS(Vehicle_Stock_Projections[Vehicle Stock],Vehicle_Stock_Projections[Year],Calculations!Y$4,Vehicle_Stock_Projections[Technology Type], $B10, Vehicle_Stock_Projections[Vehicle Type], $A10, Vehicle_Stock_Projections[Scenario], Input_Scenario_Modeled)) -> 0.3732207716 | Z10: =IF(Input_Scenario_Modeled="Custom", SUMIFS(Custom_Stock_MPG[Vehicle Stock],Custom_Stock_MPG[Year],Calculations!Z$4, Custom_Stock_MPG[[ Technology Type]], $B10, Custom_Stock_MPG[Vehicle Type], $A10, Custom_Stock_MPG[Scenario], Input_Scenario_Modeled), SUMIFS(Vehicle_Stock_Projections[Vehicle Stock],Vehicle_Stock_Projections[Year],Calculations!Z$4,Vehicle_Stock_Projections[Technology Type], $B10, Vehicle_Stock_Projections[Vehicle Type], $A10, Vehicle_Stock_Projections[Scenario], Input_Scenario_Modeled)) -> 0.3776696622 | AA10: =IF(Input_Scenario_Modeled="Custom", SUMIFS(Custom_Stock_MPG[Vehicle Stock],Custom_Stock_MPG[Year],Calculations!AA$4, Custom_Stock_MPG[[ Technology Type]], $B10, Custom_Stock_MPG[Vehicle Type], $A10, Custom_Stock_MPG[Scenario], Input_Scenario_Modeled), SUMIFS(Vehicle_Stock_Projections[Vehicle Stock],Vehicle_Stock_Projections[Year],Calculations!AA$4,Vehicle_Stock_Projections[Technology Type], $B10, Vehicle_Stock_Projections[Vehicle Type], $A10, Vehicle_Stock_Projections[Scenario], Input_Scenario_Modeled)) -> 0.3806467056 | AB10: =IF(Input_Scenario_Modeled="Custom", SUMIFS(Custom_Stock_MPG[Vehicle Stock],Custom_Stock_MPG[Year],Calculations!AB$4, Custom_Stock_MPG[[ Technology Type]], $B10, Custom_Stock_MPG[Vehicle Type], $A10, Custom_Stock_MPG[Scenario], Input_Scenario_Modeled), SUMIFS(Vehicle_Stock_Projections[Vehicle Stock],Vehicle_Stock_Projections[Year],Calculations!AB$4,Vehicle_Stock_Projections[Technology Type], $B10, Vehicle_Stock_Projections[Vehicle Type], $A10, Vehicle_Stock_Projections[Scenario], Input_Scenario_Modeled)) -> 0.3830982149 | AC10: =IF(Input_Scenario_Modeled="Custom", SUMIFS(Custom_Stock_MPG[Vehicle Stock],Custom_Stock_MPG[Year],Calculations!AC$4, Custom_Stock_MPG[[ Technology Type]], $B10, Custom_Stock_MPG[Vehicle Type], $A10, Custom_Stock_MPG[Scenario], Input_Scenario_Modeled), SUMIFS(Vehicle_Stock_Projections[Vehicle Stock],Vehicle_Stock_Projections[Year],Calculations!AC$4,Vehicle_Stock_Projections[Technology Type], $B10, Vehicle_Stock_Projections[Vehicle Type], $A10, Vehicle_Stock_Projections[Scenario], Input_Scenario_Modeled)) -> 0.3847064078 | AD10: =IF(Input_Scenario_Modeled="Custom", SUMIFS(Custom_Stock_MPG[Vehicle Stock],Custom_Stock_MPG[Year],Calculations!AD$4, Custom_Stock_MPG[[ Technology Type]], $B10, Custom_Stock_MPG[Vehicle Type], $A10, Custom_Stock_MPG[Scenario], Input_Scenario_Modeled), SUMIFS(Vehicle_Stock_Projections[Vehicle Stock],Vehicle_Stock_Projections[Year],Calculations!AD$4,Vehicle_Stock_Projections[Technology Type], $B10, Vehicle_Stock_Projections[Vehicle Type], $A10, Vehicle_Stock_Projections[Scenario], Input_Scenario_Modeled)) -> 0.3855287433 | AE10: =IF(Input_Scenario_Modeled="Custom", SUMIFS(Custom_Stock_MPG[Vehicle Stock],Custom_Stock_MPG[Year],Calculations!AE$4, Custom_Stock_MPG[[ Technology Type]], $B10, Custom_Stock_MPG[Vehicle Type], $A10, Custom_Stock_MPG[Scenario], Input_Scenario_Modeled), SUMIFS(Vehicle_Stock_Projections[Vehicle Stock],Vehicle_Stock_Projections[Year],Calculations!AE$4,Vehicle_Stock_Projections[Technology Type], $B10, Vehicle_Stock_Projections[Vehicle Type], $A10, Vehicle_Stock_Projections[Scenario], Input_Scenario_Modeled)) -> 0.3858494759 | AF10: =IF(Input_Scenario_Modeled="Custom", SUMIFS(Custom_Stock_MPG[Vehicle Stock],Custom_Stock_MPG[Year],Calculations!AF$4, Custom_Stock_MPG[[ Technology Type]], $B10, Custom_Stock_MPG[Vehicle Type], $A10, Custom_Stock_MPG[Scenario], Input_Scenario_Modeled), SUMIFS(Vehicle_Stock_Projections[Vehicle Stock],Vehicle_Stock_Projections[Year],Calculations!AF$4,Vehicle_Stock_Projections[Technology Type], $B10, Vehicle_Stock_Projections[Vehicle Type], $A10, Vehicle_Stock_Projections[Scenario], Input_Scenario_Modeled)) -> 0.3858494759 | AG10: =IF(Input_Scenario_Modeled="Custom", SUMIFS(Custom_Stock_MPG[Vehicle Stock],Custom_Stock_MPG[Year],Calculations!AG$4, Custom_Stock_MPG[[ Technology Type]], $B10, Custom_Stock_MPG[Vehicle Type], $A10, Custom_Stock_MPG[Scenario], Input_Scenario_Modeled), SUMIFS(Vehicle_Stock_Projections[Vehicle Stock],Vehicle_Stock_Projections[Year],Calculations!AG$4,Vehicle_Stock_Projections[Technology Type], $B10, Vehicle_Stock_Projections[Vehicle Type], $A10, Vehicle_Stock_Projections[Scenario], Input_Scenario_Modeled)) -> 0.3858494759 | AH10: =IF(Input_Scenario_Modeled="Custom", SUMIFS(Custom_Stock_MPG[Vehicle Stock],Custom_Stock_MPG[Year],Calculations!AH$4, Custom_Stock_MPG[[ Technology Type]], $B10, Custom_Stock_MPG[Vehicle Type], $A10, Custom_Stock_MPG[Scenario], Input_Scenario_Modeled), SUMIFS(Vehicle_Stock_Projections[Vehicle Stock],Vehicle_Stock_Projections[Year],Calculations!AH$4,Vehicle_Stock_Projections[Technology Type], $B10, Vehicle_Stock_Projections[Vehicle Type], $A10, Vehicle_Stock_Projections[Scenario], Input_Scenario_Modeled)) -> 0.3858494759 | AI10: =IF(Input_Scenario_Modeled="Custom", SUMIFS(Custom_Stock_MPG[Vehicle Stock],Custom_Stock_MPG[Year],Calculations!AI$4, Custom_Stock_MPG[[ Technology Type]], $B10, Custom_Stock_MPG[Vehicle Type], $A10, Custom_Stock_MPG[Scenario], Input_Scenario_Modeled), SUMIFS(Vehicle_Stock_Projections[Vehicle Stock],Vehicle_Stock_Projections[Year],Calculations!AI$4,Vehicle_Stock_Projections[Technology Type], $B10, Vehicle_Stock_Projections[Vehicle Type], $A10, Vehicle_Stock_Projections[Scenario], Input_Scenario_Modeled)) -> 0.3858494759 | AJ10: =IF(Input_Scenario_Modeled="Custom", SUMIFS(Custom_Stock_MPG[Vehicle Stock],Custom_Stock_MPG[Year],Calculations!AJ$4, Custom_Stock_MPG[[ Technology Type]], $B10, Custom_Stock_MPG[Vehicle Type], $A10, Custom_Stock_MPG[Scenario], Input_Scenario_Modeled), SUMIFS(Vehicle_Stock_Projections[Vehicle Stock],Vehicle_Stock_Projections[Year],Calculations!AJ$4,Vehicle_Stock_Projections[Technology Type], $B10, Vehicle_Stock_Projections[Vehicle Type], $A10, Vehicle_Stock_Projections[Scenario], Input_Scenario_Modeled)) -> 0.3858494759
A11: Passenger Cars | B11: 200-Mile Electric Vehicle | C11: Electricity | D11: Stock | E11: =IF(Input_Scenario_Modeled="Custom", SUMIFS(Custom_Stock_MPG[Vehicle Stock],Custom_Stock_MPG[Year],Calculations!E$4, Custom_Stock_MPG[[ Technology Type]], $B11, Custom_Stock_MPG[Vehicle Type], $A11, Custom_Stock_MPG[Scenario], Input_Scenario_Modeled), SUMIFS(Vehicle_Stock_Projections[Vehicle Stock],Vehicle_Stock_Projections[Year],Calculations!E$4,Vehicle_Stock_Projections[Technology Type], $B11, Vehicle_Stock_Projections[Vehicle Type], $A11, Vehicle_Stock_Projections[Scenario], Input_Scenario_Modeled)) -> 0.5959525108 | F11: =IF(Input_Scenario_Modeled="Custom", SUMIFS(Custom_Stock_MPG[Vehicle Stock],Custom_Stock_MPG[Year],Calculations!F$4, Custom_Stock_MPG[[ Technology Type]], $B11, Custom_Stock_MPG[Vehicle Type], $A11, Custom_Stock_MPG[Scenario], Input_Scenario_Modeled), SUMIFS(Vehicle_Stock_Projections[Vehicle Stock],Vehicle_Stock_Projections[Year],Calculations!F$4,Vehicle_Stock_Projections[Technology Type], $B11, Vehicle_Stock_Projections[Vehicle Type], $A11, Vehicle_Stock_Projections[Scenario], Input_Scenario_Modeled)) -> 0.8312709928 | G11: =IF(Input_Scenario_Modeled="Custom", SUMIFS(Custom_Stock_MPG[Vehicle Stock],Custom_Stock_MPG[Year],Calculations!G$4, Custom_Stock_MPG[[ Technology Type]], $B11, Custom_Stock_MPG[Vehicle Type], $A11, Custom_Stock_MPG[Scenario], Input_Scenario_Modeled), SUMIFS(Vehicle_Stock_Projections[Vehicle Stock],Vehicle_Stock_Projections[Year],Calculations!G$4,Vehicle_Stock_Projections[Technology Type], $B11, Vehicle_Stock_Projections[Vehicle Type], $A11, Vehicle_Stock_Projections[Scenario], Input_Scenario_Modeled)) -> 1.224976063 | H11: =IF(Input_Scenario_Modeled="Custom", SUMIFS(Custom_Stock_MPG[Vehicle Stock],Custom_Stock_MPG[Year],Calculations!H$4, Custom_Stock_MPG[[ Technology Type]], $B11, Custom_Stock_MPG[Vehicle Type], $A11, Custom_Stock_MPG[Scenario], Input_Scenario_Modeled), SUMIFS(Vehicle_Stock_Projections[Vehicle Stock],Vehicle_Stock_Projections[Year],Calculations!H$4,Vehicle_Stock_Projections[Technology Type], $B11, Vehicle_Stock_Projections[Vehicle Type], $A11, Vehicle_Stock_Projections[Scenario], Input_Scenario_Modeled)) -> 1.760688305 | I11: =IF(Input_Scenario_Modeled="Custom", SUMIFS(Custom_Stock_MPG[Vehicle Stock],Custom_Stock_MPG[Year],Calculations!I$4, Custom_Stock_MPG[[ Technology Type]], $B11, Custom_Stock_MPG[Vehicle Type], $A11, Custom_Stock_MPG[Scenario], Input_Scenario_Modeled), SUMIFS(Vehicle_Stock_Projections[Vehicle Stock],Vehicle_Stock_Projections[Year],Calculations!I$4,Vehicle_Stock_Projections[Technology Type], $B11, Vehicle_Stock_Projections[Vehicle Type], $A11, Vehicle_Stock_Projections[Scenario], Input_Scenario_Modeled)) -> 2.384096146 | J11: =IF(Input_Scenario_Modeled="Custom", SUMIFS(Custom_Stock_MPG[Vehicle Stock],Custom_Stock_MPG[Year],Calculations!J$4, Custom_Stock_MPG[[ Technology Type]], $B11, Custom_Stock_MPG[Vehicle Type], $A11, Custom_Stock_MPG[Scenario], Input_Scenario_Modeled), SUMIFS(Vehicle_Stock_Projections[Vehicle Stock],Vehicle_Stock_Projections[Year],Calculations!J$4,Vehicle_Stock_Projections[Technology Type], $B11, Vehicle_Stock_Projections[Vehicle Type], $A11, Vehicle_Stock_Projections[Scenario], Input_Scenario_Modeled)) -> 3.037309885 | K11: =IF(Input_Scenario_Modeled="Custom", SUMIFS(Custom_Stock_MPG[Vehicle Stock],Custom_Stock_MPG[Year],Calculations!K$4, Custom_Stock_MPG[[ Technology Type]], $B11, Custom_Stock_MPG[Vehicle Type], $A11, Custom_Stock_MPG[Scenario], Input_Scenario_Modeled), SUMIFS(Vehicle_Stock_Projections[Vehicle Stock],Vehicle_Stock_Projections[Year],Calculations!K$4,Vehicle_Stock_Projections[Technology Type], $B11, Vehicle_Stock_Projections[Vehicle Type], $A11, Vehicle_Stock_Projections[Scenario], Input_Scenario_Modeled)) -> 3.758528233 | L11: =IF(Input_Scenario_Modeled="Custom", SUMIFS(Custom_Stock_MPG[Vehicle Stock],Custom_Stock_MPG[Year],Calculations!L$4, Custom_Stock_MPG[[ Technology Type]], $B11, Custom_Stock_MPG[Vehicle Type], $A11, Custom_Stock_MPG[Scenario], Input_Scenario_Modeled), SUMIFS(Vehicle_Stock_Projections[Vehicle Stock],Vehicle_Stock_Projections[Year],Calculations!L$4,Vehicle_Stock_Projections[Technology Type], $B11, Vehicle_Stock_Projections[Vehicle Type], $A11, Vehicle_Stock_Projections[Scenario], Input_Scenario_Modeled)) -> 4.507861137 | M11: =IF(Input_Scenario_Modeled="Custom", SUMIFS(Custom_Stock_MPG[Vehicle Stock],Custom_Stock_MPG[Year],Calculations!M$4, Custom_Stock_MPG[[ Technology Type]], $B11, Custom_Stock_MPG[Vehicle Type], $A11, Custom_Stock_MPG[Scenario], Input_Scenario_Modeled), SUMIFS(Vehicle_Stock_Projections[Vehicle Stock],Vehicle_Stock_Projections[Year],Calculations!M$4,Vehicle_Stock_Projections[Technology Type], $B11, Vehicle_Stock_Projections[Vehicle Type], $A11, Vehicle_Stock_Projections[Scenario], Input_Scenario_Modeled)) -> 5.363391399 | N11: =IF(Input_Scenario_Modeled="Custom", SUMIFS(Custom_Stock_MPG[Vehicle Stock],Custom_Stock_MPG[Year],Calculations!N$4, Custom_Stock_MPG[[ Technology Type]], $B11, Custom_Stock_MPG[Vehicle Type], $A11, Custom_Stock_MPG[Scenario], Input_Scenario_Modeled), SUMIFS(Vehicle_Stock_Projections[Vehicle Stock],Vehicle_Stock_Projections[Year],Calculations!N$4,Vehicle_Stock_Projections[Technology Type], $B11, Vehicle_Stock_Projections[Vehicle Type], $A11, Vehicle_Stock_Projections[Scenario], Input_Scenario_Modeled)) -> 6.180247307 | O11: =IF(Input_Scenario_Modeled="Custom", SUMIFS(Custom_Stock_MPG[Vehicle Stock],Custom_Stock_MPG[Year],Calculations!O$4, Custom_Stock_MPG[[ Technology Type]], $B11, Custom_Stock_MPG[Vehicle Type], $A11, Custom_Stock_MPG[Scenario], Input_Scenario_Modeled), SUMIFS(Vehicle_Stock_Projections[Vehicle Stock],Vehicle_Stock_Projections[Year],Calculations!O$4,Vehicle_Stock_Projections[Technology Type], $B11, Vehicle_Stock_Projections[Vehicle Type], $A11, Vehicle_Stock_Projections[Scenario], Input_Scenario_Modeled)) -> 6.991653442 | P11: =IF(Input_Scenario_Modeled="Custom", SUMIFS(Custom_Stock_MPG[Vehicle Stock],Custom_Stock_MPG[Year],Calculations!P$4, Custom_Stock_MPG[[ Technology Type]], $B11, Custom_Stock_MPG[Vehicle Type], $A11, Custom_Stock_MPG[Scenario], Input_Scenario_Modeled), SUMIFS(Vehicle_Stock_Projections[Vehicle Stock],Vehicle_Stock_Projections[Year],Calculations!P$4,Vehicle_Stock_Projections[Technology Type], $B11, Vehicle_Stock_Projections[Vehicle Type], $A11, Vehicle_Stock_Projections[Scenario], Input_Scenario_Modeled)) -> 7.76593399 | Q11: =IF(Input_Scenario_Modeled="Custom", SUMIFS(Custom_Stock_MPG[Vehicle Stock],Custom_Stock_MPG[Year],Calculations!Q$4, Custom_Stock_MPG[[ Technology Type]], $B11, Custom_Stock_MPG[Vehicle Type], $A11, Custom_Stock_MPG[Scenario], Input_Scenario_Modeled), SUMIFS(Vehicle_Stock_Projections[Vehicle Stock],Vehicle_Stock_Projections[Year],Calculations!Q$4,Vehicle_Stock_Projections[Technology Type], $B11, Vehicle_Stock_Projections[Vehicle Type], $A11, Vehicle_Stock_Projections[Scenario], Input_Scenario_Modeled)) -> 8.516009331 | R11: =IF(Input_Scenario_Modeled="Custom", SUMIFS(Custom_Stock_MPG[Vehicle Stock],Custom_Stock_MPG[Year],Calculations!R$4, Custom_Stock_MPG[[ Technology Type]], $B11, Custom_Stock_MPG[Vehicle Type], $A11, Custom_Stock_MPG[Scenario], Input_Scenario_Modeled), SUMIFS(Vehicle_Stock_Projections[Vehicle Stock],Vehicle_Stock_Projections[Year],Calculations!R$4,Vehicle_Stock_Projections[Technology Type], $B11, Vehicle_Stock_Projections[Vehicle Type], $A11, Vehicle_Stock_Projections[Scenario], Input_Scenario_Modeled)) -> 9.225024223 | S11: =IF(Input_Scenario_Modeled="Custom", SUMIFS(Custom_Stock_MPG[Vehicle Stock],Custom_Stock_MPG[Year],Calculations!S$4, Custom_Stock_MPG[[ Technology Type]], $B11, Custom_Stock_MPG[Vehicle Type], $A11, Custom_Stock_MPG[Scenario], Input_Scenario_Modeled), SUMIFS(Vehicle_Stock_Projections[Vehicle Stock],Vehicle_Stock_Projections[Year],Calculations!S$4,Vehicle_Stock_Projections[Technology Type], $B11, Vehicle_Stock_Projections[Vehicle Type], $A11, Vehicle_Stock_Projections[Scenario], Input_Scenario_Modeled)) -> 9.891736984 | T11: =IF(Input_Scenario_Modeled="Custom", SUMIFS(Custom_Stock_MPG[Vehicle Stock],Custom_Stock_MPG[Year],Calculations!T$4, Custom_Stock_MPG[[ Technology Type]], $B11, Custom_Stock_MPG[Vehicle Type], $A11, Custom_Stock_MPG[Scenario], Input_Scenario_Modeled), SUMIFS(Vehicle_Stock_Projections[Vehicle Stock],Vehicle_Stock_Projections[Year],Calculations!T$4,Vehicle_Stock_Projections[Technology Type], $B11, Vehicle_Stock_Projections[Vehicle Type], $A11, Vehicle_Stock_Projections[Scenario], Input_Scenario_Modeled)) -> 10.54129314 | U11: =IF(Input_Scenario_Modeled="Custom", SUMIFS(Custom_Stock_MPG[Vehicle Stock],Custom_Stock_MPG[Year],Calculations!U$4, Custom_Stock_MPG[[ Technology Type]], $B11, Custom_Stock_MPG[Vehicle Type], $A11, Custom_Stock_MPG[Scenario], Input_Scenario_Modeled), SUMIFS(Vehicle_Stock_Projections[Vehicle Stock],Vehicle_Stock_Projections[Year],Calculations!U$4,Vehicle_Stock_Projections[Technology Type], $B11, Vehicle_Stock_Projections[Vehicle Type], $A11, Vehicle_Stock_Projections[Scenario], Input_Scenario_Modeled)) -> 11.15995693 | V11: =IF(Input_Scenario_Modeled="Custom", SUMIFS(Custom_Stock_MPG[Vehicle Stock],Custom_Stock_MPG[Year],Calculations!V$4, Custom_Stock_MPG[[ Technology Type]], $B11, Custom_Stock_MPG[Vehicle Type], $A11, Custom_Stock_MPG[Scenario], Input_Scenario_Modeled), SUMIFS(Vehicle_Stock_Projections[Vehicle Stock],Vehicle_Stock_Projections[Year],Calculations!V$4,Vehicle_Stock_Projections[Technology Type], $B11, Vehicle_Stock_Projections[Vehicle Type], $A11, Vehicle_Stock_Projections[Scenario], Input_Scenario_Modeled)) -> 11.71301174 | W11: =IF(Input_Scenario_Modeled="Custom", SUMIFS(Custom_Stock_MPG[Vehicle Stock],Custom_Stock_MPG[Year],Calculations!W$4, Custom_Stock_MPG[[ Technology Type]], $B11, Custom_Stock_MPG[Vehicle Type], $A11, Custom_Stock_MPG[Scenario], Input_Scenario_Modeled), SUMIFS(Vehicle_Stock_Projections[Vehicle Stock],Vehicle_Stock_Projections[Year],Calculations!W$4,Vehicle_Stock_Projections[Technology Type], $B11, Vehicle_Stock_Projections[Vehicle Type], $A11, Vehicle_Stock_Projections[Scenario], Input_Scenario_Modeled)) -> 12.23374557 | X11: =IF(Input_Scenario_Modeled="Custom", SUMIFS(Custom_Stock_MPG[Vehicle Stock],Custom_Stock_MPG[Year],Calculations!X$4, Custom_Stock_MPG[[ Technology Type]], $B11, Custom_Stock_MPG[Vehicle Type], $A11, Custom_Stock_MPG[Scenario], Input_Scenario_Modeled), SUMIFS(Vehicle_Stock_Projections[Vehicle Stock],Vehicle_Stock_Projections[Year],Calculations!X$4,Vehicle_Stock_Projections[Technology Type], $B11, Vehicle_Stock_Projections[Vehicle Type], $A11, Vehicle_Stock_Projections[Scenario], Input_Scenario_Modeled)) -> 12.71045685 | Y11: =IF(Input_Scenario_Modeled="Custom", SUMIFS(Custom_Stock_MPG[Vehicle Stock],Custom_Stock_MPG[Year],Calculations!Y$4, Custom_Stock_MPG[[ Technology Type]], $B11, Custom_Stock_MPG[Vehicle Type], $A11, Custom_Stock_MPG[Scenario], Input_Scenario_Modeled), SUMIFS(Vehicle_Stock_Projections[Vehicle Stock],Vehicle_Stock_Projections[Year],Calculations!Y$4,Vehicle_Stock_Projections[Technology Type], $B11, Vehicle_Stock_Projections[Vehicle Type], $A11, Vehicle_Stock_Projections[Scenario], Input_Scenario_Modeled)) -> 13.08551693 | Z11: =IF(Input_Scenario_Modeled="Custom", SUMIFS(Custom_Stock_MPG[Vehicle Stock],Custom_Stock_MPG[Year],Calculations!Z$4, Custom_Stock_MPG[[ Technology Type]], $B11, Custom_Stock_MPG[Vehicle Type], $A11, Custom_Stock_MPG[Scenario], Input_Scenario_Modeled), SUMIFS(Vehicle_Stock_Projections[Vehicle Stock],Vehicle_Stock_Projections[Year],Calculations!Z$4,Vehicle_Stock_Projections[Technology Type], $B11, Vehicle_Stock_Projections[Vehicle Type], $A11, Vehicle_Stock_Projections[Scenario], Input_Scenario_Modeled)) -> 13.46111012 | AA11: =IF(Input_Scenario_Modeled="Custom", SUMIFS(Custom_Stock_MPG[Vehicle Stock],Custom_Stock_MPG[Year],Calculations!AA$4, Custom_Stock_MPG[[ Technology Type]], $B11, Custom_Stock_MPG[Vehicle Type], $A11, Custom_Stock_MPG[Scenario], Input_Scenario_Modeled), SUMIFS(Vehicle_Stock_Projections[Vehicle Stock],Vehicle_Stock_Projections[Year],Calculations!AA$4,Vehicle_Stock_Projections[Technology Type], $B11, Vehicle_Stock_Projections[Vehicle Type], $A11, Vehicle_Stock_Projections[Scenario], Input_Scenario_Modeled)) -> 13.76907349 | AB11: =IF(Input_Scenario_Modeled="Custom", SUMIFS(Custom_Stock_MPG[Vehicle Stock],Custom_Stock_MPG[Year],Calculations!AB$4, Custom_Stock_MPG[[ Technology Type]], $B11, Custom_Stock_MPG[Vehicle Type], $A11, Custom_Stock_MPG[Scenario], Input_Scenario_Modeled), SUMIFS(Vehicle_Stock_Projections[Vehicle Stock],Vehicle_Stock_Projections[Year],Calculations!AB$4,Vehicle_Stock_Projections[Technology Type], $B11, Vehicle_Stock_Projections[Vehicle Type], $A11, Vehicle_Stock_Projections[Scenario], Input_Scenario_Modeled)) -> 14.0630312 | AC11: =IF(Input_Scenario_Modeled="Custom", SUMIFS(Custom_Stock_MPG[Vehicle Stock],Custom_Stock_MPG[Year],Calculations!AC$4, Custom_Stock_MPG[[ Technology Type]], $B11, Custom_Stock_MPG[Vehicle Type], $A11, Custom_Stock_MPG[Scenario], Input_Scenario_Modeled), SUMIFS(Vehicle_Stock_Projections[Vehicle Stock],Vehicle_Stock_Projections[Year],Calculations!AC$4,Vehicle_Stock_Projections[Technology Type], $B11, Vehicle_Stock_Projections[Vehicle Type], $A11, Vehicle_Stock_Projections[Scenario], Input_Scenario_Modeled)) -> 14.31021309 | AD11: =IF(Input_Scenario_Modeled="Custom", SUMIFS(Custom_Stock_MPG[Vehicle Stock],Custom_Stock_MPG[Year],Calculations!AD$4, Custom_Stock_MPG[[ Technology Type]], $B11, Custom_Stock_MPG[Vehicle Type], $A11, Custom_Stock_MPG[Scenario], Input_Scenario_Modeled), SUMIFS(Vehicle_Stock_Projections[Vehicle Stock],Vehicle_Stock_Projections[Year],Calculations!AD$4,Vehicle_Stock_Projections[Technology Type], $B11, Vehicle_Stock_Projections[Vehicle Type], $A11, Vehicle_Stock_Projections[Scenario], Input_Scenario_Modeled)) -> 14.51634693 | AE11: =IF(Input_Scenario_Modeled="Custom", SUMIFS(Custom_Stock_MPG[Vehicle Stock],Custom_Stock_MPG[Year],Calculations!AE$4, Custom_Stock_MPG[[ Technology Type]], $B11, Custom_Stock_MPG[Vehicle Type], $A11, Custom_Stock_MPG[Scenario], Input_Scenario_Modeled), SUMIFS(Vehicle_Stock_Projections[Vehicle Stock],Vehicle_Stock_Projections[Year],Calculations!AE$4,Vehicle_Stock_Projections[Technology Type], $B11, Vehicle_Stock_Projections[Vehicle Type], $A11, Vehicle_Stock_Projections[Scenario], Input_Scenario_Modeled)) -> 14.69435215 | AF11: =IF(Input_Scenario_Modeled="Custom", SUMIFS(Custom_Stock_MPG[Vehicle Stock],Custom_Stock_MPG[Year],Calculations!AF$4, Custom_Stock_MPG[[ Technology Type]], $B11, Custom_Stock_MPG[Vehicle Type], $A11, Custom_Stock_MPG[Scenario], Input_Scenario_Modeled), SUMIFS(Vehicle_Stock_Projections[Vehicle Stock],Vehicle_Stock_Projections[Year],Calculations!AF$4,Vehicle_Stock_Projections[Technology Type], $B11, Vehicle_Stock_Projections[Vehicle Type], $A11, Vehicle_Stock_Projections[Scenario], Input_Scenario_Modeled)) -> 14.69435215 | AG11: =IF(Input_Scenario_Modeled="Custom", SUMIFS(Custom_Stock_MPG[Vehicle Stock],Custom_Stock_MPG[Year],Calculations!AG$4, Custom_Stock_MPG[[ Technology Type]], $B11, Custom_Stock_MPG[Vehicle Type], $A11, Custom_Stock_MPG[Scenario], Input_Scenario_Modeled), SUMIFS(Vehicle_Stock_Projections[Vehicle Stock],Vehicle_Stock_Projections[Year],Calculations!AG$4,Vehicle_Stock_Projections[Technology Type], $B11, Vehicle_Stock_Projections[Vehicle Type], $A11, Vehicle_Stock_Projections[Scenario], Input_Scenario_Modeled)) -> 14.69435215 | AH11: =IF(Input_Scenario_Modeled="Custom", SUMIFS(Custom_Stock_MPG[Vehicle Stock],Custom_Stock_MPG[Year],Calculations!AH$4, Custom_Stock_MPG[[ Technology Type]], $B11, Custom_Stock_MPG[Vehicle Type], $A11, Custom_Stock_MPG[Scenario], Input_Scenario_Modeled), SUMIFS(Vehicle_Stock_Projections[Vehicle Stock],Vehicle_Stock_Projections[Year],Calculations!AH$4,Vehicle_Stock_Projections[Technology Type], $B11, Vehicle_Stock_Projections[Vehicle Type], $A11, Vehicle_Stock_Projections[Scenario], Input_Scenario_Modeled)) -> 14.69435215 | AI11: =IF(Input_Scenario_Modeled="Custom", SUMIFS(Custom_Stock_MPG[Vehicle Stock],Custom_Stock_MPG[Year],Calculations!AI$4, Custom_Stock_MPG[[ Technology Type]], $B11, Custom_Stock_MPG[Vehicle Type], $A11, Custom_Stock_MPG[Scenario], Input_Scenario_Modeled), SUMIFS(Vehicle_Stock_Projections[Vehicle Stock],Vehicle_Stock_Projections[Year],Calculations!AI$4,Vehicle_Stock_Projections[Technology Type], $B11, Vehicle_Stock_Projections[Vehicle Type], $A11, Vehicle_Stock_Projections[Scenario], Input_Scenario_Modeled)) -> 14.69435215 | AJ11: =IF(Input_Scenario_Modeled="Custom", SUMIFS(Custom_Stock_MPG[Vehicle Stock],Custom_Stock_MPG[Year],Calculations!AJ$4, Custom_Stock_MPG[[ Technology Type]], $B11, Custom_Stock_MPG[Vehicle Type], $A11, Custom_Stock_MPG[Scenario], Input_Scenario_Modeled), SUMIFS(Vehicle_Stock_Projections[Vehicle Stock],Vehicle_Stock_Projections[Year],Calculations!AJ$4,Vehicle_Stock_Projections[Technology Type], $B11, Vehicle_Stock_Projections[Vehicle Type], $A11, Vehicle_Stock_Projections[Scenario], Input_Scenario_Modeled)) -> 14.69435215
A12: Passenger Cars | B12: 300-Mile Electric Vehicle | C12: Electricity | D12: Stock | E12: =IF(Input_Scenario_Modeled="Custom", SUMIFS(Custom_Stock_MPG[Vehicle Stock],Custom_Stock_MPG[Year],Calculations!E$4, Custom_Stock_MPG[[ Technology Type]], $B12, Custom_Stock_MPG[Vehicle Type], $A12, Custom_Stock_MPG[Scenario], Input_Scenario_Modeled), SUMIFS(Vehicle_Stock_Projections[Vehicle Stock],Vehicle_Stock_Projections[Year],Calculations!E$4,Vehicle_Stock_Projections[Technology Type], $B12, Vehicle_Stock_Projections[Vehicle Type], $A12, Vehicle_Stock_Projections[Scenario], Input_Scenario_Modeled)) -> 3.349145412 | F12: =IF(Input_Scenario_Modeled="Custom", SUMIFS(Custom_Stock_MPG[Vehicle Stock],Custom_Stock_MPG[Year],Calculations!F$4, Custom_Stock_MPG[[ Technology Type]], $B12, Custom_Stock_MPG[Vehicle Type], $A12, Custom_Stock_MPG[Scenario], Input_Scenario_Modeled), SUMIFS(Vehicle_Stock_Projections[Vehicle Stock],Vehicle_Stock_Projections[Year],Calculations!F$4,Vehicle_Stock_Projections[Technology Type], $B12, Vehicle_Stock_Projections[Vehicle Type], $A12, Vehicle_Stock_Projections[Scenario], Input_Scenario_Modeled)) -> 4.679992199 | G12: =IF(Input_Scenario_Modeled="Custom", SUMIFS(Custom_Stock_MPG[Vehicle Stock],Custom_Stock_MPG[Year],Calculations!G$4, Custom_Stock_MPG[[ Technology Type]], $B12, Custom_Stock_MPG[Vehicle Type], $A12, Custom_Stock_MPG[Scenario], Input_Scenario_Modeled), SUMIFS(Vehicle_Stock_Projections[Vehicle Stock],Vehicle_Stock_Projections[Year],Calculations!G$4,Vehicle_Stock_Projections[Technology Type], $B12, Vehicle_Stock_Projections[Vehicle Type], $A12, Vehicle_Stock_Projections[Scenario], Input_Scenario_Modeled)) -> 6.328552246 | H12: =IF(Input_Scenario_Modeled="Custom", SUMIFS(Custom_Stock_MPG[Vehicle Stock],Custom_Stock_MPG[Year],Calculations!H$4, Custom_Stock_MPG[[ Technology Type]], $B12, Custom_Stock_MPG[Vehicle Type], $A12, Custom_Stock_MPG[Scenario], Input_Scenario_Modeled), SUMIFS(Vehicle_Stock_Projections[Vehicle Stock],Vehicle_Stock_Projections[Year],Calculations!H$4,Vehicle_Stock_Projections[Technology Type], $B12, Vehicle_Stock_Projections[Vehicle Type], $A12, Vehicle_Stock_Projections[Scenario], Input_Scenario_Modeled)) -> 8.081666946 | I12: =IF(Input_Scenario_Modeled="Custom", SUMIFS(Custom_Stock_MPG[Vehicle Stock],Custom_Stock_MPG[Year],Calculations!I$4, Custom_Stock_MPG[[ Technology Type]], $B12, Custom_Stock_MPG[Vehicle Type], $A12, Custom_Stock_MPG[Scenario], Input_Scenario_Modeled), SUMIFS(Vehicle_Stock_Projections[Vehicle Stock],Vehicle_Stock_Projections[Year],Calculations!I$4,Vehicle_Stock_Projections[Technology Type], $B12, Vehicle_Stock_Projections[Vehicle Type], $A12, Vehicle_Stock_Projections[Scenario], Input_Scenario_Modeled)) -> 9.809563637 | J12: =IF(Input_Scenario_Modeled="Custom", SUMIFS(Custom_Stock_MPG[Vehicle Stock],Custom_Stock_MPG[Year],Calculations!J$4, Custom_Stock_MPG[[ Technology Type]], $B12, Custom_Stock_MPG[Vehicle Type], $A12, Custom_Stock_MPG[Scenario], Input_Scenario_Modeled), SUMIFS(Vehicle_Stock_Projections[Vehicle Stock],Vehicle_Stock_Projections[Year],Calculations!J$4,Vehicle_Stock_Projections[Technology Type], $B12, Vehicle_Stock_Projections[Vehicle Type], $A12, Vehicle_Stock_Projections[Scenario], Input_Scenario_Modeled)) -> 11.47109127 | K12: =IF(Input_Scenario_Modeled="Custom", SUMIFS(Custom_Stock_MPG[Vehicle Stock],Custom_Stock_MPG[Year],Calculations!K$4, Custom_Stock_MPG[[ Technology Type]], $B12, Custom_Stock_MPG[Vehicle Type], $A12, Custom_Stock_MPG[Scenario], Input_Scenario_Modeled), SUMIFS(Vehicle_Stock_Projections[Vehicle Stock],Vehicle_Stock_Projections[Year],Calculations!K$4,Vehicle_Stock_Projections[Technology Type], $B12, Vehicle_Stock_Projections[Vehicle Type], $A12, Vehicle_Stock_Projections[Scenario], Input_Scenario_Modeled)) -> 13.14553928 | L12: =IF(Input_Scenario_Modeled="Custom", SUMIFS(Custom_Stock_MPG[Vehicle Stock],Custom_Stock_MPG[Year],Calculations!L$4, Custom_Stock_MPG[[ Technology Type]], $B12, Custom_Stock_MPG[Vehicle Type], $A12, Custom_Stock_MPG[Scenario], Input_Scenario_Modeled), SUMIFS(Vehicle_Stock_Projections[Vehicle Stock],Vehicle_Stock_Projections[Year],Calculations!L$4,Vehicle_Stock_Projections[Technology Type], $B12, Vehicle_Stock_Projections[Vehicle Type], $A12, Vehicle_Stock_Projections[Scenario], Input_Scenario_Modeled)) -> 14.75074577 | M12: =IF(Input_Scenario_Modeled="Custom", SUMIFS(Custom_Stock_MPG[Vehicle Stock],Custom_Stock_MPG[Year],Calculations!M$4, Custom_Stock_MPG[[ Technology Type]], $B12, Custom_Stock_MPG[Vehicle Type], $A12, Custom_Stock_MPG[Scenario], Input_Scenario_Modeled), SUMIFS(Vehicle_Stock_Projections[Vehicle Stock],Vehicle_Stock_Projections[Year],Calculations!M$4,Vehicle_Stock_Projections[Technology Type], $B12, Vehicle_Stock_Projections[Vehicle Type], $A12, Vehicle_Stock_Projections[Scenario], Input_Scenario_Modeled)) -> 16.34987831 | N12: =IF(Input_Scenario_Modeled="Custom", SUMIFS(Custom_Stock_MPG[Vehicle Stock],Custom_Stock_MPG[Year],Calculations!N$4, Custom_Stock_MPG[[ Technology Type]], $B12, Custom_Stock_MPG[Vehicle Type], $A12, Custom_Stock_MPG[Scenario], Input_Scenario_Modeled), SUMIFS(Vehicle_Stock_Projections[Vehicle Stock],Vehicle_Stock_Projections[Year],Calculations!N$4,Vehicle_Stock_Projections[Technology Type], $B12, Vehicle_Stock_Projections[Vehicle Type], $A12, Vehicle_Stock_Projections[Scenario], Input_Scenario_Modeled)) -> 17.87581635 | O12: =IF(Input_Scenario_Modeled="Custom", SUMIFS(Custom_Stock_MPG[Vehicle Stock],Custom_Stock_MPG[Year],Calculations!O$4, Custom_Stock_MPG[[ Technology Type]], $B12, Custom_Stock_MPG[Vehicle Type], $A12, Custom_Stock_MPG[Scenario], Input_Scenario_Modeled), SUMIFS(Vehicle_Stock_Projections[Vehicle Stock],Vehicle_Stock_Projections[Year],Calculations!O$4,Vehicle_Stock_Projections[Technology Type], $B12, Vehicle_Stock_Projections[Vehicle Type], $A12, Vehicle_Stock_Projections[Scenario], Input_Scenario_Modeled)) -> 19.38837433 | P12: =IF(Input_Scenario_Modeled="Custom", SUMIFS(Custom_Stock_MPG[Vehicle Stock],Custom_Stock_MPG[Year],Calculations!P$4, Custom_Stock_MPG[[ Technology Type]], $B12, Custom_Stock_MPG[Vehicle Type], $A12, Custom_Stock_MPG[Scenario], Input_Scenario_Modeled), SUMIFS(Vehicle_Stock_Projections[Vehicle Stock],Vehicle_Stock_Projections[Year],Calculations!P$4,Vehicle_Stock_Projections[Technology Type], $B12, Vehicle_Stock_Projections[Vehicle Type], $A12, Vehicle_Stock_Projections[Scenario], Input_Scenario_Modeled)) -> 20.8483429 | Q12: =IF(Input_Scenario_Modeled="Custom", SUMIFS(Custom_Stock_MPG[Vehicle Stock],Custom_Stock_MPG[Year],Calculations!Q$4, Custom_Stock_MPG[[ Technology Type]], $B12, Custom_Stock_MPG[Vehicle Type], $A12, Custom_Stock_MPG[Scenario], Input_Scenario_Modeled), SUMIFS(Vehicle_Stock_Projections[Vehicle Stock],Vehicle_Stock_Projections[Year],Calculations!Q$4,Vehicle_Stock_Projections[Technology Type], $B12, Vehicle_Stock_Projections[Vehicle Type], $A12, Vehicle_Stock_Projections[Scenario], Input_Scenario_Modeled)) -> 22.23386002 | R12: =IF(Input_Scenario_Modeled="Custom", SUMIFS(Custom_Stock_MPG[Vehicle Stock],Custom_Stock_MPG[Year],Calculations!R$4, Custom_Stock_MPG[[ Technology Type]], $B12, Custom_Stock_MPG[Vehicle Type], $A12, Custom_Stock_MPG[Scenario], Input_Scenario_Modeled), SUMIFS(Vehicle_Stock_Projections[Vehicle Stock],Vehicle_Stock_Projections[Year],Calculations!R$4,Vehicle_Stock_Projections[Technology Type], $B12, Vehicle_Stock_Projections[Vehicle Type], $A12, Vehicle_Stock_Projections[Scenario], Input_Scenario_Modeled)) -> 23.53947258 | S12: =IF(Input_Scenario_Modeled="Custom", SUMIFS(Custom_Stock_MPG[Vehicle Stock],Custom_Stock_MPG[Year],Calculations!S$4, Custom_Stock_MPG[[ Technology Type]], $B12, Custom_Stock_MPG[Vehicle Type], $A12, Custom_Stock_MPG[Scenario], Input_Scenario_Modeled), SUMIFS(Vehicle_Stock_Projections[Vehicle Stock],Vehicle_Stock_Projections[Year],Calculations!S$4,Vehicle_Stock_Projections[Technology Type], $B12, Vehicle_Stock_Projections[Vehicle Type], $A12, Vehicle_Stock_Projections[Scenario], Input_Scenario_Modeled)) -> 24.74786758 | T12: =IF(Input_Scenario_Modeled="Custom", SUMIFS(Custom_Stock_MPG[Vehicle Stock],Custom_Stock_MPG[Year],Calculations!T$4, Custom_Stock_MPG[[ Technology Type]], $B12, Custom_Stock_MPG[Vehicle Type], $A12, Custom_Stock_MPG[Scenario], Input_Scenario_Modeled), SUMIFS(Vehicle_Stock_Projections[Vehicle Stock],Vehicle_Stock_Projections[Year],Calculations!T$4,Vehicle_Stock_Projections[Technology Type], $B12, Vehicle_Stock_Projections[Vehicle Type], $A12, Vehicle_Stock_Projections[Scenario], Input_Scenario_Modeled)) -> 25.85233879 | U12: =IF(Input_Scenario_Modeled="Custom", SUMIFS(Custom_Stock_MPG[Vehicle Stock],Custom_Stock_MPG[Year],Calculations!U$4, Custom_Stock_MPG[[ Technology Type]], $B12, Custom_Stock_MPG[Vehicle Type], $A12, Custom_Stock_MPG[Scenario], Input_Scenario_Modeled), SUMIFS(Vehicle_Stock_Projections[Vehicle Stock],Vehicle_Stock_Projections[Year],Calculations!U$4,Vehicle_Stock_Projections[Technology Type], $B12, Vehicle_Stock_Projections[Vehicle Type], $A12, Vehicle_Stock_Projections[Scenario], Input_Scenario_Modeled)) -> 26.83807373 | V12: =IF(Input_Scenario_Modeled="Custom", SUMIFS(Custom_Stock_MPG[Vehicle Stock],Custom_Stock_MPG[Year],Calculations!V$4, Custom_Stock_MPG[[ Technology Type]], $B12, Custom_Stock_MPG[Vehicle Type], $A12, Custom_Stock_MPG[Scenario], Input_Scenario_Modeled), SUMIFS(Vehicle_Stock_Projections[Vehicle Stock],Vehicle_Stock_Projections[Year],Calculations!V$4,Vehicle_Stock_Projections[Technology Type], $B12, Vehicle_Stock_Projections[Vehicle Type], $A12, Vehicle_Stock_Projections[Scenario], Input_Scenario_Modeled)) -> 27.70051193 | W12: =IF(Input_Scenario_Modeled="Custom", SUMIFS(Custom_Stock_MPG[Vehicle Stock],Custom_Stock_MPG[Year],Calculations!W$4, Custom_Stock_MPG[[ Technology Type]], $B12, Custom_Stock_MPG[Vehicle Type], $A12, Custom_Stock_MPG[Scenario], Input_Scenario_Modeled), SUMIFS(Vehicle_Stock_Projections[Vehicle Stock],Vehicle_Stock_Projections[Year],Calculations!W$4,Vehicle_Stock_Projections[Technology Type], $B12, Vehicle_Stock_Projections[Vehicle Type], $A12, Vehicle_Stock_Projections[Scenario], Input_Scenario_Modeled)) -> 28.43580818 | X12: =IF(Input_Scenario_Modeled="Custom", SUMIFS(Custom_Stock_MPG[Vehicle Stock],Custom_Stock_MPG[Year],Calculations!X$4, Custom_Stock_MPG[[ Technology Type]], $B12, Custom_Stock_MPG[Vehicle Type], $A12, Custom_Stock_MPG[Scenario], Input_Scenario_Modeled), SUMIFS(Vehicle_Stock_Projections[Vehicle Stock],Vehicle_Stock_Projections[Year],Calculations!X$4,Vehicle_Stock_Projections[Technology Type], $B12, Vehicle_Stock_Projections[Vehicle Type], $A12, Vehicle_Stock_Projections[Scenario], Input_Scenario_Modeled)) -> 29.05251884 | Y12: =IF(Input_Scenario_Modeled="Custom", SUMIFS(Custom_Stock_MPG[Vehicle Stock],Custom_Stock_MPG[Year],Calculations!Y$4, Custom_Stock_MPG[[ Technology Type]], $B12, Custom_Stock_MPG[Vehicle Type], $A12, Custom_Stock_MPG[Scenario], Input_Scenario_Modeled), SUMIFS(Vehicle_Stock_Projections[Vehicle Stock],Vehicle_Stock_Projections[Year],Calculations!Y$4,Vehicle_Stock_Projections[Technology Type], $B12, Vehicle_Stock_Projections[Vehicle Type], $A12, Vehicle_Stock_Projections[Scenario], Input_Scenario_Modeled)) -> 29.54345703 | Z12: =IF(Input_Scenario_Modeled="Custom", SUMIFS(Custom_Stock_MPG[Vehicle Stock],Custom_Stock_MPG[Year],Calculations!Z$4, Custom_Stock_MPG[[ Technology Type]], $B12, Custom_Stock_MPG[Vehicle Type], $A12, Custom_Stock_MPG[Scenario], Input_Scenario_Modeled), SUMIFS(Vehicle_Stock_Projections[Vehicle Stock],Vehicle_Stock_Projections[Year],Calculations!Z$4,Vehicle_Stock_Projections[Technology Type], $B12, Vehicle_Stock_Projections[Vehicle Type], $A12, Vehicle_Stock_Projections[Scenario], Input_Scenario_Modeled)) -> 29.92393875 | AA12: =IF(Input_Scenario_Modeled="Custom", SUMIFS(Custom_Stock_MPG[Vehicle Stock],Custom_Stock_MPG[Year],Calculations!AA$4, Custom_Stock_MPG[[ Technology Type]], $B12, Custom_Stock_MPG[Vehicle Type], $A12, Custom_Stock_MPG[Scenario], Input_Scenario_Modeled), SUMIFS(Vehicle_Stock_Projections[Vehicle Stock],Vehicle_Stock_Projections[Year],Calculations!AA$4,Vehicle_Stock_Projections[Technology Type], $B12, Vehicle_Stock_Projections[Vehicle Type], $A12, Vehicle_Stock_Projections[Scenario], Input_Scenario_Modeled)) -> 30.21536827 | AB12: =IF(Input_Scenario_Modeled="Custom", SUMIFS(Custom_Stock_MPG[Vehicle Stock],Custom_Stock_MPG[Year],Calculations!AB$4, Custom_Stock_MPG[[ Technology Type]], $B12, Custom_Stock_MPG[Vehicle Type], $A12, Custom_Stock_MPG[Scenario], Input_Scenario_Modeled), SUMIFS(Vehicle_Stock_Projections[Vehicle Stock],Vehicle_Stock_Projections[Year],Calculations!AB$4,Vehicle_Stock_Projections[Technology Type], $B12, Vehicle_Stock_Projections[Vehicle Type], $A12, Vehicle_Stock_Projections[Scenario], Input_Scenario_Modeled)) -> 30.42717552 | AC12: =IF(Input_Scenario_Modeled="Custom", SUMIFS(Custom_Stock_MPG[Vehicle Stock],Custom_Stock_MPG[Year],Calculations!AC$4, Custom_Stock_MPG[[ Technology Type]], $B12, Custom_Stock_MPG[Vehicle Type], $A12, Custom_Stock_MPG[Scenario], Input_Scenario_Modeled), SUMIFS(Vehicle_Stock_Projections[Vehicle Stock],Vehicle_Stock_Projections[Year],Calculations!AC$4,Vehicle_Stock_Projections[Technology Type], $B12, Vehicle_Stock_Projections[Vehicle Type], $A12, Vehicle_Stock_Projections[Scenario], Input_Scenario_Modeled)) -> 30.58387375 | AD12: =IF(Input_Scenario_Modeled="Custom", SUMIFS(Custom_Stock_MPG[Vehicle Stock],Custom_Stock_MPG[Year],Calculations!AD$4, Custom_Stock_MPG[[ Technology Type]], $B12, Custom_Stock_MPG[Vehicle Type], $A12, Custom_Stock_MPG[Scenario], Input_Scenario_Modeled), SUMIFS(Vehicle_Stock_Projections[Vehicle Stock],Vehicle_Stock_Projections[Year],Calculations!AD$4,Vehicle_Stock_Projections[Technology Type], $B12, Vehicle_Stock_Projections[Vehicle Type], $A12, Vehicle_Stock_Projections[Scenario], Input_Scenario_Modeled)) -> 30.68148613 | AE12: =IF(Input_Scenario_Modeled="Custom", SUMIFS(Custom_Stock_MPG[Vehicle Stock],Custom_Stock_MPG[Year],Calculations!AE$4, Custom_Stock_MPG[[ Technology Type]], $B12, Custom_Stock_MPG[Vehicle Type], $A12, Custom_Stock_MPG[Scenario], Input_Scenario_Modeled), SUMIFS(Vehicle_Stock_Projections[Vehicle Stock],Vehicle_Stock_Projections[Year],Calculations!AE$4,Vehicle_Stock_Projections[Technology Type], $B12, Vehicle_Stock_Projections[Vehicle Type], $A12, Vehicle_Stock_Projections[Scenario], Input_Scenario_Modeled)) -> 30.72924805 | AF12: =IF(Input_Scenario_Modeled="Custom", SUMIFS(Custom_Stock_MPG[Vehicle Stock],Custom_Stock_MPG[Year],Calculations!AF$4, Custom_Stock_MPG[[ Technology Type]], $B12, Custom_Stock_MPG[Vehicle Type], $A12, Custom_Stock_MPG[Scenario], Input_Scenario_Modeled), SUMIFS(Vehicle_Stock_Projections[Vehicle Stock],Vehicle_Stock_Projections[Year],Calculations!AF$4,Vehicle_Stock_Projections[Technology Type], $B12, Vehicle_Stock_Projections[Vehicle Type], $A12, Vehicle_Stock_Projections[Scenario], Input_Scenario_Modeled)) -> 30.72924805 | AG12: =IF(Input_Scenario_Modeled="Custom", SUMIFS(Custom_Stock_MPG[Vehicle Stock],Custom_Stock_MPG[Year],Calculations!AG$4, Custom_Stock_MPG[[ Technology Type]], $B12, Custom_Stock_MPG[Vehicle Type], $A12, Custom_Stock_MPG[Scenario], Input_Scenario_Modeled), SUMIFS(Vehicle_Stock_Projections[Vehicle Stock],Vehicle_Stock_Projections[Year],Calculations!AG$4,Vehicle_Stock_Projections[Technology Type], $B12, Vehicle_Stock_Projections[Vehicle Type], $A12, Vehicle_Stock_Projections[Scenario], Input_Scenario_Modeled)) -> 30.72924805 | AH12: =IF(Input_Scenario_Modeled="Custom", SUMIFS(Custom_Stock_MPG[Vehicle Stock],Custom_Stock_MPG[Year],Calculations!AH$4, Custom_Stock_MPG[[ Technology Type]], $B12, Custom_Stock_MPG[Vehicle Type], $A12, Custom_Stock_MPG[Scenario], Input_Scenario_Modeled), SUMIFS(Vehicle_Stock_Projections[Vehicle Stock],Vehicle_Stock_Projections[Year],Calculations!AH$4,Vehicle_Stock_Projections[Technology Type], $B12, Vehicle_Stock_Projections[Vehicle Type], $A12, Vehicle_Stock_Projections[Scenario], Input_Scenario_Modeled)) -> 30.72924805 | AI12: =IF(Input_Scenario_Modeled="Custom", SUMIFS(Custom_Stock_MPG[Vehicle Stock],Custom_Stock_MPG[Year],Calculations!AI$4, Custom_Stock_MPG[[ Technology Type]], $B12, Custom_Stock_MPG[Vehicle Type], $A12, Custom_Stock_MPG[Scenario], Input_Scenario_Modeled), SUMIFS(Vehicle_Stock_Projections[Vehicle Stock],Vehicle_Stock_Projections[Year],Calculations!AI$4,Vehicle_Stock_Projections[Technology Type], $B12, Vehicle_Stock_Projections[Vehicle Type], $A12, Vehicle_Stock_Projections[Scenario], Input_Scenario_Modeled)) -> 30.72924805 | AJ12: =IF(Input_Scenario_Modeled="Custom", SUMIFS(Custom_Stock_MPG[Vehicle Stock],Custom_Stock_MPG[Year],Calculations!AJ$4, Custom_Stock_MPG[[ Technology Type]], $B12, Custom_Stock_MPG[Vehicle Type], $A12, Custom_Stock_MPG[Scenario], Input_Scenario_Modeled), SUMIFS(Vehicle_Stock_Projections[Vehicle Stock],Vehicle_Stock_Projections[Year],Calculations!AJ$4,Vehicle_Stock_Projections[Technology Type], $B12, Vehicle_Stock_Projections[Vehicle Type], $A12, Vehicle_Stock_Projections[Scenario], Input_Scenario_Modeled)) -> 30.72924805
A13: Passenger Cars | B13: Plug-in 20 Gasoline Hybrid | C13: Electricity | D13: Stock | E13: =IF(Input_Scenario_Modeled="Custom", SUMIFS(Custom_Stock_MPG[Vehicle Stock],Custom_Stock_MPG[Year],Calculations!E$4, Custom_Stock_MPG[[ Technology Type]], $B13, Custom_Stock_MPG[Vehicle Type], $A13, Custom_Stock_MPG[Scenario], Input_Scenario_Modeled), SUMIFS(Vehicle_Stock_Projections[Vehicle Stock],Vehicle_Stock_Projections[Year],Calculations!E$4,Vehicle_Stock_Projections[Technology Type], $B13, Vehicle_Stock_Projections[Vehicle Type], $A13, Vehicle_Stock_Projections[Scenario], Input_Scenario_Modeled)) -> 0.3901419044 | F13: =IF(Input_Scenario_Modeled="Custom", SUMIFS(Custom_Stock_MPG[Vehicle Stock],Custom_Stock_MPG[Year],Calculations!F$4, Custom_Stock_MPG[[ Technology Type]], $B13, Custom_Stock_MPG[Vehicle Type], $A13, Custom_Stock_MPG[Scenario], Input_Scenario_Modeled), SUMIFS(Vehicle_Stock_Projections[Vehicle Stock],Vehicle_Stock_Projections[Year],Calculations!F$4,Vehicle_Stock_Projections[Technology Type], $B13, Vehicle_Stock_Projections[Vehicle Type], $A13, Vehicle_Stock_Projections[Scenario], Input_Scenario_Modeled)) -> 0.4175155461 | G13: =IF(Input_Scenario_Modeled="Custom", SUMIFS(Custom_Stock_MPG[Vehicle Stock],Custom_Stock_MPG[Year],Calculations!G$4, Custom_Stock_MPG[[ Technology Type]], $B13, Custom_Stock_MPG[Vehicle Type], $A13, Custom_Stock_MPG[Scenario], Input_Scenario_Modeled), SUMIFS(Vehicle_Stock_Projections[Vehicle Stock],Vehicle_Stock_Projections[Year],Calculations!G$4,Vehicle_Stock_Projections[Technology Type], $B13, Vehicle_Stock_Projections[Vehicle Type], $A13, Vehicle_Stock_Projections[Scenario], Input_Scenario_Modeled)) -> 0.4608651698 | H13: =IF(Input_Scenario_Modeled="Custom", SUMIFS(Custom_Stock_MPG[Vehicle Stock],Custom_Stock_MPG[Year],Calculations!H$4, Custom_Stock_MPG[[ Technology Type]], $B13, Custom_Stock_MPG[Vehicle Type], $A13, Custom_Stock_MPG[Scenario], Input_Scenario_Modeled), SUMIFS(Vehicle_Stock_Projections[Vehicle Stock],Vehicle_Stock_Projections[Year],Calculations!H$4,Vehicle_Stock_Projections[Technology Type], $B13, Vehicle_Stock_Projections[Vehicle Type], $A13, Vehicle_Stock_Projections[Scenario], Input_Scenario_Modeled)) -> 0.5106129646 | I13: =IF(Input_Scenario_Modeled="Custom", SUMIFS(Custom_Stock_MPG[Vehicle Stock],Custom_Stock_MPG[Year],Calculations!I$4, Custom_Stock_MPG[[ Technology Type]], $B13, Custom_Stock_MPG[Vehicle Type], $A13, Custom_Stock_MPG[Scenario], Input_Scenario_Modeled), SUMIFS(Vehicle_Stock_Projections[Vehicle Stock],Vehicle_Stock_Projections[Year],Calculations!I$4,Vehicle_Stock_Projections[Technology Type], $B13, Vehicle_Stock_Projections[Vehicle Type], $A13, Vehicle_Stock_Projections[Scenario], Input_Scenario_Modeled)) -> 0.5586527586 | J13: =IF(Input_Scenario_Modeled="Custom", SUMIFS(Custom_Stock_MPG[Vehicle Stock],Custom_Stock_MPG[Year],Calculations!J$4, Custom_Stock_MPG[[ Technology Type]], $B13, Custom_Stock_MPG[Vehicle Type], $A13, Custom_Stock_MPG[Scenario], Input_Scenario_Modeled), SUMIFS(Vehicle_Stock_Projections[Vehicle Stock],Vehicle_Stock_Projections[Year],Calculations!J$4,Vehicle_Stock_Projections[Technology Type], $B13, Vehicle_Stock_Projections[Vehicle Type], $A13, Vehicle_Stock_Projections[Scenario], Input_Scenario_Modeled)) -> 0.600495398 | K13: =IF(Input_Scenario_Modeled="Custom", SUMIFS(Custom_Stock_MPG[Vehicle Stock],Custom_Stock_MPG[Year],Calculations!K$4, Custom_Stock_MPG[[ Technology Type]], $B13, Custom_Stock_MPG[Vehicle Type], $A13, Custom_Stock_MPG[Scenario], Input_Scenario_Modeled), SUMIFS(Vehicle_Stock_Projections[Vehicle Stock],Vehicle_Stock_Projections[Year],Calculations!K$4,Vehicle_Stock_Projections[Technology Type], $B13, Vehicle_Stock_Projections[Vehicle Type], $A13, Vehicle_Stock_Projections[Scenario], Input_Scenario_Modeled)) -> 0.6373172402 | L13: =IF(Input_Scenario_Modeled="Custom", SUMIFS(Custom_Stock_MPG[Vehicle Stock],Custom_Stock_MPG[Year],Calculations!L$4, Custom_Stock_MPG[[ Technology Type]], $B13, Custom_Stock_MPG[Vehicle Type], $A13, Custom_Stock_MPG[Scenario], Input_Scenario_Modeled), SUMIFS(Vehicle_Stock_Projections[Vehicle Stock],Vehicle_Stock_Projections[Year],Calculations!L$4,Vehicle_Stock_Projections[Technology Type], $B13, Vehicle_Stock_Projections[Vehicle Type], $A13, Vehicle_Stock_Projections[Scenario], Input_Scenario_Modeled)) -> 0.6672077179 | M13: =IF(Input_Scenario_Modeled="Custom", SUMIFS(Custom_Stock_MPG[Vehicle Stock],Custom_Stock_MPG[Year],Calculations!M$4, Custom_Stock_MPG[[ Technology Type]], $B13, Custom_Stock_MPG[Vehicle Type], $A13, Custom_Stock_MPG[Scenario], Input_Scenario_Modeled), SUMIFS(Vehicle_Stock_Projections[Vehicle Stock],Vehicle_Stock_Projections[Year],Calculations!M$4,Vehicle_Stock_Projections[Technology Type], $B13, Vehicle_Stock_Projections[Vehicle Type], $A13, Vehicle_Stock_Projections[Scenario], Input_Scenario_Modeled)) -> 0.6950547695 | N13: =IF(Input_Scenario_Modeled="Custom", SUMIFS(Custom_Stock_MPG[Vehicle Stock],Custom_Stock_MPG[Year],Calculations!N$4, Custom_Stock_MPG[[ Technology Type]], $B13, Custom_Stock_MPG[Vehicle Type], $A13, Custom_Stock_MPG[Scenario], Input_Scenario_Modeled), SUMIFS(Vehicle_Stock_Projections[Vehicle Stock],Vehicle_Stock_Projections[Year],Calculations!N$4,Vehicle_Stock_Projections[Technology Type], $B13, Vehicle_Stock_Projections[Vehicle Type], $A13, Vehicle_Stock_Projections[Scenario], Input_Scenario_Modeled)) -> 0.7240860462 | O13: =IF(Input_Scenario_Modeled="Custom", SUMIFS(Custom_Stock_MPG[Vehicle Stock],Custom_Stock_MPG[Year],Calculations!O$4, Custom_Stock_MPG[[ Technology Type]], $B13, Custom_Stock_MPG[Vehicle Type], $A13, Custom_Stock_MPG[Scenario], Input_Scenario_Modeled), SUMIFS(Vehicle_Stock_Projections[Vehicle Stock],Vehicle_Stock_Projections[Year],Calculations!O$4,Vehicle_Stock_Projections[Technology Type], $B13, Vehicle_Stock_Projections[Vehicle Type], $A13, Vehicle_Stock_Projections[Scenario], Input_Scenario_Modeled)) -> 0.7523293495 | P13: =IF(Input_Scenario_Modeled="Custom", SUMIFS(Custom_Stock_MPG[Vehicle Stock],Custom_Stock_MPG[Year],Calculations!P$4, Custom_Stock_MPG[[ Technology Type]], $B13, Custom_Stock_MPG[Vehicle Type], $A13, Custom_Stock_MPG[Scenario], Input_Scenario_Modeled), SUMIFS(Vehicle_Stock_Projections[Vehicle Stock],Vehicle_Stock_Projections[Year],Calculations!P$4,Vehicle_Stock_Projections[Technology Type], $B13, Vehicle_Stock_Projections[Vehicle Type], $A13, Vehicle_Stock_Projections[Scenario], Input_Scenario_Modeled)) -> 0.779061377 | Q13: =IF(Input_Scenario_Modeled="Custom", SUMIFS(Custom_Stock_MPG[Vehicle Stock],Custom_Stock_MPG[Year],Calculations!Q$4, Custom_Stock_MPG[[ Technology Type]], $B13, Custom_Stock_MPG[Vehicle Type], $A13, Custom_Stock_MPG[Scenario], Input_Scenario_Modeled), SUMIFS(Vehicle_Stock_Projections[Vehicle Stock],Vehicle_Stock_Projections[Year],Calculations!Q$4,Vehicle_Stock_Projections[Technology Type], $B13, Vehicle_Stock_Projections[Vehicle Type], $A13, Vehicle_Stock_Projections[Scenario], Input_Scenario_Modeled)) -> 0.8041190505 | R13: =IF(Input_Scenario_Modeled="Custom", SUMIFS(Custom_Stock_MPG[Vehicle Stock],Custom_Stock_MPG[Year],Calculations!R$4, Custom_Stock_MPG[[ Technology Type]], $B13, Custom_Stock_MPG[Vehicle Type], $A13, Custom_Stock_MPG[Scenario], Input_Scenario_Modeled), SUMIFS(Vehicle_Stock_Projections[Vehicle Stock],Vehicle_Stock_Projections[Year],Calculations!R$4,Vehicle_Stock_Projections[Technology Type], $B13, Vehicle_Stock_Projections[Vehicle Type], $A13, Vehicle_Stock_Projections[Scenario], Input_Scenario_Modeled)) -> 0.8270798326 | S13: =IF(Input_Scenario_Modeled="Custom", SUMIFS(Custom_Stock_MPG[Vehicle Stock],Custom_Stock_MPG[Year],Calculations!S$4, Custom_Stock_MPG[[ Technology Type]], $B13, Custom_Stock_MPG[Vehicle Type], $A13, Custom_Stock_MPG[Scenario], Input_Scenario_Modeled), SUMIFS(Vehicle_Stock_Projections[Vehicle Stock],Vehicle_Stock_Projections[Year],Calculations!S$4,Vehicle_Stock_Projections[Technology Type], $B13, Vehicle_Stock_Projections[Vehicle Type], $A13, Vehicle_Stock_Projections[Scenario], Input_Scenario_Modeled)) -> 0.8486914635 | T13: =IF(Input_Scenario_Modeled="Custom", SUMIFS(Custom_Stock_MPG[Vehicle Stock],Custom_Stock_MPG[Year],Calculations!T$4, Custom_Stock_MPG[[ Technology Type]], $B13, Custom_Stock_MPG[Vehicle Type], $A13, Custom_Stock_MPG[Scenario], Input_Scenario_Modeled), SUMIFS(Vehicle_Stock_Projections[Vehicle Stock],Vehicle_Stock_Projections[Year],Calculations!T$4,Vehicle_Stock_Projections[Technology Type], $B13, Vehicle_Stock_Projections[Vehicle Type], $A13, Vehicle_Stock_Projections[Scenario], Input_Scenario_Modeled)) -> 0.8698490858 | U13: =IF(Input_Scenario_Modeled="Custom", SUMIFS(Custom_Stock_MPG[Vehicle Stock],Custom_Stock_MPG[Year],Calculations!U$4, Custom_Stock_MPG[[ Technology Type]], $B13, Custom_Stock_MPG[Vehicle Type], $A13, Custom_Stock_MPG[Scenario], Input_Scenario_Modeled), SUMIFS(Vehicle_Stock_Projections[Vehicle Stock],Vehicle_Stock_Projections[Year],Calculations!U$4,Vehicle_Stock_Projections[Technology Type], $B13, Vehicle_Stock_Projections[Vehicle Type], $A13, Vehicle_Stock_Projections[Scenario], Input_Scenario_Modeled)) -> 0.8897231817 | V13: =IF(Input_Scenario_Modeled="Custom", SUMIFS(Custom_Stock_MPG[Vehicle Stock],Custom_Stock_MPG[Year],Calculations!V$4, Custom_Stock_MPG[[ Technology Type]], $B13, Custom_Stock_MPG[Vehicle Type], $A13, Custom_Stock_MPG[Scenario], Input_Scenario_Modeled), SUMIFS(Vehicle_Stock_Projections[Vehicle Stock],Vehicle_Stock_Projections[Year],Calculations!V$4,Vehicle_Stock_Projections[Technology Type], $B13, Vehicle_Stock_Projections[Vehicle Type], $A13, Vehicle_Stock_Projections[Scenario], Input_Scenario_Modeled)) -> 0.9084504843 | W13: =IF(Input_Scenario_Modeled="Custom", SUMIFS(Custom_Stock_MPG[Vehicle Stock],Custom_Stock_MPG[Year],Calculations!W$4, Custom_Stock_MPG[[ Technology Type]], $B13, Custom_Stock_MPG[Vehicle Type], $A13, Custom_Stock_MPG[Scenario], Input_Scenario_Modeled), SUMIFS(Vehicle_Stock_Projections[Vehicle Stock],Vehicle_Stock_Projections[Year],Calculations!W$4,Vehicle_Stock_Projections[Technology Type], $B13, Vehicle_Stock_Projections[Vehicle Type], $A13, Vehicle_Stock_Projections[Scenario], Input_Scenario_Modeled)) -> 0.9261541367 | X13: =IF(Input_Scenario_Modeled="Custom", SUMIFS(Custom_Stock_MPG[Vehicle Stock],Custom_Stock_MPG[Year],Calculations!X$4, Custom_Stock_MPG[[ Technology Type]], $B13, Custom_Stock_MPG[Vehicle Type], $A13, Custom_Stock_MPG[Scenario], Input_Scenario_Modeled), SUMIFS(Vehicle_Stock_Projections[Vehicle Stock],Vehicle_Stock_Projections[Year],Calculations!X$4,Vehicle_Stock_Projections[Technology Type], $B13, Vehicle_Stock_Projections[Vehicle Type], $A13, Vehicle_Stock_Projections[Scenario], Input_Scenario_Modeled)) -> 0.942168057 | Y13: =IF(Input_Scenario_Modeled="Custom", SUMIFS(Custom_Stock_MPG[Vehicle Stock],Custom_Stock_MPG[Year],Calculations!Y$4, Custom_Stock_MPG[[ Technology Type]], $B13, Custom_Stock_MPG[Vehicle Type], $A13, Custom_Stock_MPG[Scenario], Input_Scenario_Modeled), SUMIFS(Vehicle_Stock_Projections[Vehicle Stock],Vehicle_Stock_Projections[Year],Calculations!Y$4,Vehicle_Stock_Projections[Technology Type], $B13, Vehicle_Stock_Projections[Vehicle Type], $A13, Vehicle_Stock_Projections[Scenario], Input_Scenario_Modeled)) -> 0.9544659257 | Z13: =IF(Input_Scenario_Modeled="Custom", SUMIFS(Custom_Stock_MPG[Vehicle Stock],Custom_Stock_MPG[Year],Calculations!Z$4, Custom_Stock_MPG[[ Technology Type]], $B13, Custom_Stock_MPG[Vehicle Type], $A13, Custom_Stock_MPG[Scenario], Input_Scenario_Modeled), SUMIFS(Vehicle_Stock_Projections[Vehicle Stock],Vehicle_Stock_Projections[Year],Calculations!Z$4,Vehicle_Stock_Projections[Technology Type], $B13, Vehicle_Stock_Projections[Vehicle Type], $A13, Vehicle_Stock_Projections[Scenario], Input_Scenario_Modeled)) -> 0.9655283093 | AA13: =IF(Input_Scenario_Modeled="Custom", SUMIFS(Custom_Stock_MPG[Vehicle Stock],Custom_Stock_MPG[Year],Calculations!AA$4, Custom_Stock_MPG[[ Technology Type]], $B13, Custom_Stock_MPG[Vehicle Type], $A13, Custom_Stock_MPG[Scenario], Input_Scenario_Modeled), SUMIFS(Vehicle_Stock_Projections[Vehicle Stock],Vehicle_Stock_Projections[Year],Calculations!AA$4,Vehicle_Stock_Projections[Technology Type], $B13, Vehicle_Stock_Projections[Vehicle Type], $A13, Vehicle_Stock_Projections[Scenario], Input_Scenario_Modeled)) -> 0.9740541577 | AB13: =IF(Input_Scenario_Modeled="Custom", SUMIFS(Custom_Stock_MPG[Vehicle Stock],Custom_Stock_MPG[Year],Calculations!AB$4, Custom_Stock_MPG[[ Technology Type]], $B13, Custom_Stock_MPG[Vehicle Type], $A13, Custom_Stock_MPG[Scenario], Input_Scenario_Modeled), SUMIFS(Vehicle_Stock_Projections[Vehicle Stock],Vehicle_Stock_Projections[Year],Calculations!AB$4,Vehicle_Stock_Projections[Technology Type], $B13, Vehicle_Stock_Projections[Vehicle Type], $A13, Vehicle_Stock_Projections[Scenario], Input_Scenario_Modeled)) -> 0.9815767407 | AC13: =IF(Input_Scenario_Modeled="Custom", SUMIFS(Custom_Stock_MPG[Vehicle Stock],Custom_Stock_MPG[Year],Calculations!AC$4, Custom_Stock_MPG[[ Technology Type]], $B13, Custom_Stock_MPG[Vehicle Type], $A13, Custom_Stock_MPG[Scenario], Input_Scenario_Modeled), SUMIFS(Vehicle_Stock_Projections[Vehicle Stock],Vehicle_Stock_Projections[Year],Calculations!AC$4,Vehicle_Stock_Projections[Technology Type], $B13, Vehicle_Stock_Projections[Vehicle Type], $A13, Vehicle_Stock_Projections[Scenario], Input_Scenario_Modeled)) -> 0.9873942137 | AD13: =IF(Input_Scenario_Modeled="Custom", SUMIFS(Custom_Stock_MPG[Vehicle Stock],Custom_Stock_MPG[Year],Calculations!AD$4, Custom_Stock_MPG[[ Technology Type]], $B13, Custom_Stock_MPG[Vehicle Type], $A13, Custom_Stock_MPG[Scenario], Input_Scenario_Modeled), SUMIFS(Vehicle_Stock_Projections[Vehicle Stock],Vehicle_Stock_Projections[Year],Calculations!AD$4,Vehicle_Stock_Projections[Technology Type], $B13, Vehicle_Stock_Projections[Vehicle Type], $A13, Vehicle_Stock_Projections[Scenario], Input_Scenario_Modeled)) -> 0.9915395379 | AE13: =IF(Input_Scenario_Modeled="Custom", SUMIFS(Custom_Stock_MPG[Vehicle Stock],Custom_Stock_MPG[Year],Calculations!AE$4, Custom_Stock_MPG[[ Technology Type]], $B13, Custom_Stock_MPG[Vehicle Type], $A13, Custom_Stock_MPG[Scenario], Input_Scenario_Modeled), SUMIFS(Vehicle_Stock_Projections[Vehicle Stock],Vehicle_Stock_Projections[Year],Calculations!AE$4,Vehicle_Stock_Projections[Technology Type], $B13, Vehicle_Stock_Projections[Vehicle Type], $A13, Vehicle_Stock_Projections[Scenario], Input_Scenario_Modeled)) -> 0.9947080612 | AF13: =IF(Input_Scenario_Modeled="Custom", SUMIFS(Custom_Stock_MPG[Vehicle Stock],Custom_Stock_MPG[Year],Calculations!AF$4, Custom_Stock_MPG[[ Technology Type]], $B13, Custom_Stock_MPG[Vehicle Type], $A13, Custom_Stock_MPG[Scenario], Input_Scenario_Modeled), SUMIFS(Vehicle_Stock_Projections[Vehicle Stock],Vehicle_Stock_Projections[Year],Calculations!AF$4,Vehicle_Stock_Projections[Technology Type], $B13, Vehicle_Stock_Projections[Vehicle Type], $A13, Vehicle_Stock_Projections[Scenario], Input_Scenario_Modeled)) -> 0.9947080612 | AG13: =IF(Input_Scenario_Modeled="Custom", SUMIFS(Custom_Stock_MPG[Vehicle Stock],Custom_Stock_MPG[Year],Calculations!AG$4, Custom_Stock_MPG[[ Technology Type]], $B13, Custom_Stock_MPG[Vehicle Type], $A13, Custom_Stock_MPG[Scenario], Input_Scenario_Modeled), SUMIFS(Vehicle_Stock_Projections[Vehicle Stock],Vehicle_Stock_Projections[Year],Calculations!AG$4,Vehicle_Stock_Projections[Technology Type], $B13, Vehicle_Stock_Projections[Vehicle Type], $A13, Vehicle_Stock_Projections[Scenario], Input_Scenario_Modeled)) -> 0.9947080612 | AH13: =IF(Input_Scenario_Modeled="Custom", SUMIFS(Custom_Stock_MPG[Vehicle Stock],Custom_Stock_MPG[Year],Calculations!AH$4, Custom_Stock_MPG[[ Technology Type]], $B13, Custom_Stock_MPG[Vehicle Type], $A13, Custom_Stock_MPG[Scenario], Input_Scenario_Modeled), SUMIFS(Vehicle_Stock_Projections[Vehicle Stock],Vehicle_Stock_Projections[Year],Calculations!AH$4,Vehicle_Stock_Projections[Technology Type], $B13, Vehicle_Stock_Projections[Vehicle Type], $A13, Vehicle_Stock_Projections[Scenario], Input_Scenario_Modeled)) -> 0.9947080612 | AI13: =IF(Input_Scenario_Modeled="Custom", SUMIFS(Custom_Stock_MPG[Vehicle Stock],Custom_Stock_MPG[Year],Calculations!AI$4, Custom_Stock_MPG[[ Technology Type]], $B13, Custom_Stock_MPG[Vehicle Type], $A13, Custom_Stock_MPG[Scenario], Input_Scenario_Modeled), SUMIFS(Vehicle_Stock_Projections[Vehicle Stock],Vehicle_Stock_Projections[Year],Calculations!AI$4,Vehicle_Stock_Projections[Technology Type], $B13, Vehicle_Stock_Projections[Vehicle Type], $A13, Vehicle_Stock_Projections[Scenario], Input_Scenario_Modeled)) -> 0.9947080612 | AJ13: =IF(Input_Scenario_Modeled="Custom", SUMIFS(Custom_Stock_MPG[Vehicle Stock],Custom_Stock_MPG[Year],Calculations!AJ$4, Custom_Stock_MPG[[ Technology Type]], $B13, Custom_Stock_MPG[Vehicle Type], $A13, Custom_Stock_MPG[Scenario], Input_Scenario_Modeled), SUMIFS(Vehicle_Stock_Projections[Vehicle Stock],Vehicle_Stock_Projections[Year],Calculations!AJ$4,Vehicle_Stock_Projections[Technology Type], $B13, Vehicle_Stock_Projections[Vehicle Type], $A13, Vehicle_Stock_Projections[Scenario], Input_Scenario_Modeled)) -> 0.9947080612
A14: Passenger Cars | B14: Plug-in 50 Gasoline Hybrid | C14: Electricity | D14: Stock | E14: =IF(Input_Scenario_Modeled="Custom", SUMIFS(Custom_Stock_MPG[Vehicle Stock],Custom_Stock_MPG[Year],Calculations!E$4, Custom_Stock_MPG[[ Technology Type]], $B14, Custom_Stock_MPG[Vehicle Type], $A14, Custom_Stock_MPG[Scenario], Input_Scenario_Modeled), SUMIFS(Vehicle_Stock_Projections[Vehicle Stock],Vehicle_Stock_Projections[Year],Calculations!E$4,Vehicle_Stock_Projections[Technology Type], $B14, Vehicle_Stock_Projections[Vehicle Type], $A14, Vehicle_Stock_Projections[Scenario], Input_Scenario_Modeled)) -> 0.2339531034 | F14: =IF(Input_Scenario_Modeled="Custom", SUMIFS(Custom_Stock_MPG[Vehicle Stock],Custom_Stock_MPG[Year],Calculations!F$4, Custom_Stock_MPG[[ Technology Type]], $B14, Custom_Stock_MPG[Vehicle Type], $A14, Custom_Stock_MPG[Scenario], Input_Scenario_Modeled), SUMIFS(Vehicle_Stock_Projections[Vehicle Stock],Vehicle_Stock_Projections[Year],Calculations!F$4,Vehicle_Stock_Projections[Technology Type], $B14, Vehicle_Stock_Projections[Vehicle Type], $A14, Vehicle_Stock_Projections[Scenario], Input_Scenario_Modeled)) -> 0.2562231719 | G14: =IF(Input_Scenario_Modeled="Custom", SUMIFS(Custom_Stock_MPG[Vehicle Stock],Custom_Stock_MPG[Year],Calculations!G$4, Custom_Stock_MPG[[ Technology Type]], $B14, Custom_Stock_MPG[Vehicle Type], $A14, Custom_Stock_MPG[Scenario], Input_Scenario_Modeled), SUMIFS(Vehicle_Stock_Projections[Vehicle Stock],Vehicle_Stock_Projections[Year],Calculations!G$4,Vehicle_Stock_Projections[Technology Type], $B14, Vehicle_Stock_Projections[Vehicle Type], $A14, Vehicle_Stock_Projections[Scenario], Input_Scenario_Modeled)) -> 0.293482244 | H14: =IF(Input_Scenario_Modeled="Custom", SUMIFS(Custom_Stock_MPG[Vehicle Stock],Custom_Stock_MPG[Year],Calculations!H$4, Custom_Stock_MPG[[ Technology Type]], $B14, Custom_Stock_MPG[Vehicle Type], $A14, Custom_Stock_MPG[Scenario], Input_Scenario_Modeled), SUMIFS(Vehicle_Stock_Projections[Vehicle Stock],Vehicle_Stock_Projections[Year],Calculations!H$4,Vehicle_Stock_Projections[Technology Type], $B14, Vehicle_Stock_Projections[Vehicle Type], $A14, Vehicle_Stock_Projections[Scenario], Input_Scenario_Modeled)) -> 0.323669523 | I14: =IF(Input_Scenario_Modeled="Custom", SUMIFS(Custom_Stock_MPG[Vehicle Stock],Custom_Stock_MPG[Year],Calculations!I$4, Custom_Stock_MPG[[ Technology Type]], $B14, Custom_Stock_MPG[Vehicle Type], $A14, Custom_Stock_MPG[Scenario], Input_Scenario_Modeled), SUMIFS(Vehicle_Stock_Projections[Vehicle Stock],Vehicle_Stock_Projections[Year],Calculations!I$4,Vehicle_Stock_Projections[Technology Type], $B14, Vehicle_Stock_Projections[Vehicle Type], $A14, Vehicle_Stock_Projections[Scenario], Input_Scenario_Modeled)) -> 0.3461987376 | J14: =IF(Input_Scenario_Modeled="Custom", SUMIFS(Custom_Stock_MPG[Vehicle Stock],Custom_Stock_MPG[Year],Calculations!J$4, Custom_Stock_MPG[[ Technology Type]], $B14, Custom_Stock_MPG[Vehicle Type], $A14, Custom_Stock_MPG[Scenario], Input_Scenario_Modeled), SUMIFS(Vehicle_Stock_Projections[Vehicle Stock],Vehicle_Stock_Projections[Year],Calculations!J$4,Vehicle_Stock_Projections[Technology Type], $B14, Vehicle_Stock_Projections[Vehicle Type], $A14, Vehicle_Stock_Projections[Scenario], Input_Scenario_Modeled)) -> 0.360316664 | K14: =IF(Input_Scenario_Modeled="Custom", SUMIFS(Custom_Stock_MPG[Vehicle Stock],Custom_Stock_MPG[Year],Calculations!K$4, Custom_Stock_MPG[[ Technology Type]], $B14, Custom_Stock_MPG[Vehicle Type], $A14, Custom_Stock_MPG[Scenario], Input_Scenario_Modeled), SUMIFS(Vehicle_Stock_Projections[Vehicle Stock],Vehicle_Stock_Projections[Year],Calculations!K$4,Vehicle_Stock_Projections[Technology Type], $B14, Vehicle_Stock_Projections[Vehicle Type], $A14, Vehicle_Stock_Projections[Scenario], Input_Scenario_Modeled)) -> 0.3708159924 | L14: =IF(Input_Scenario_Modeled="Custom", SUMIFS(Custom_Stock_MPG[Vehicle Stock],Custom_Stock_MPG[Year],Calculations!L$4, Custom_Stock_MPG[[ Technology Type]], $B14, Custom_Stock_MPG[Vehicle Type], $A14, Custom_Stock_MPG[Scenario], Input_Scenario_Modeled), SUMIFS(Vehicle_Stock_Projections[Vehicle Stock],Vehicle_Stock_Projections[Year],Calculations!L$4,Vehicle_Stock_Projections[Technology Type], $B14, Vehicle_Stock_Projections[Vehicle Type], $A14, Vehicle_Stock_Projections[Scenario], Input_Scenario_Modeled)) -> 0.3783092201 | M14: =IF(Input_Scenario_Modeled="Custom", SUMIFS(Custom_Stock_MPG[Vehicle Stock],Custom_Stock_MPG[Year],Calculations!M$4, Custom_Stock_MPG[[ Technology Type]], $B14, Custom_Stock_MPG[Vehicle Type], $A14, Custom_Stock_MPG[Scenario], Input_Scenario_Modeled), SUMIFS(Vehicle_Stock_Projections[Vehicle Stock],Vehicle_Stock_Projections[Year],Calculations!M$4,Vehicle_Stock_Projections[Technology Type], $B14, Vehicle_Stock_Projections[Vehicle Type], $A14, Vehicle_Stock_Projections[Scenario], Input_Scenario_Modeled)) -> 0.4090189338 | N14: =IF(Input_Scenario_Modeled="Custom", SUMIFS(Custom_Stock_MPG[Vehicle Stock],Custom_Stock_MPG[Year],Calculations!N$4, Custom_Stock_MPG[[ Technology Type]], $B14, Custom_Stock_MPG[Vehicle Type], $A14, Custom_Stock_MPG[Scenario], Input_Scenario_Modeled), SUMIFS(Vehicle_Stock_Projections[Vehicle Stock],Vehicle_Stock_Projections[Year],Calculations!N$4,Vehicle_Stock_Projections[Technology Type], $B14, Vehicle_Stock_Projections[Vehicle Type], $A14, Vehicle_Stock_Projections[Scenario], Input_Scenario_Modeled)) -> 0.414037317 | O14: =IF(Input_Scenario_Modeled="Custom", SUMIFS(Custom_Stock_MPG[Vehicle Stock],Custom_Stock_MPG[Year],Calculations!O$4, Custom_Stock_MPG[[ Technology Type]], $B14, Custom_Stock_MPG[Vehicle Type], $A14, Custom_Stock_MPG[Scenario], Input_Scenario_Modeled), SUMIFS(Vehicle_Stock_Projections[Vehicle Stock],Vehicle_Stock_Projections[Year],Calculations!O$4,Vehicle_Stock_Projections[Technology Type], $B14, Vehicle_Stock_Projections[Vehicle Type], $A14, Vehicle_Stock_Projections[Scenario], Input_Scenario_Modeled)) -> 0.4185322821 | P14: =IF(Input_Scenario_Modeled="Custom", SUMIFS(Custom_Stock_MPG[Vehicle Stock],Custom_Stock_MPG[Year],Calculations!P$4, Custom_Stock_MPG[[ Technology Type]], $B14, Custom_Stock_MPG[Vehicle Type], $A14, Custom_Stock_MPG[Scenario], Input_Scenario_Modeled), SUMIFS(Vehicle_Stock_Projections[Vehicle Stock],Vehicle_Stock_Projections[Year],Calculations!P$4,Vehicle_Stock_Projections[Technology Type], $B14, Vehicle_Stock_Projections[Vehicle Type], $A14, Vehicle_Stock_Projections[Scenario], Input_Scenario_Modeled)) -> 0.4221313 | Q14: =IF(Input_Scenario_Modeled="Custom", SUMIFS(Custom_Stock_MPG[Vehicle Stock],Custom_Stock_MPG[Year],Calculations!Q$4, Custom_Stock_MPG[[ Technology Type]], $B14, Custom_Stock_MPG[Vehicle Type], $A14, Custom_Stock_MPG[Scenario], Input_Scenario_Modeled), SUMIFS(Vehicle_Stock_Projections[Vehicle Stock],Vehicle_Stock_Projections[Year],Calculations!Q$4,Vehicle_Stock_Projections[Technology Type], $B14, Vehicle_Stock_Projections[Vehicle Type], $A14, Vehicle_Stock_Projections[Scenario], Input_Scenario_Modeled)) -> 0.4252875447 | R14: =IF(Input_Scenario_Modeled="Custom", SUMIFS(Custom_Stock_MPG[Vehicle Stock],Custom_Stock_MPG[Year],Calculations!R$4, Custom_Stock_MPG[[ Technology Type]], $B14, Custom_Stock_MPG[Vehicle Type], $A14, Custom_Stock_MPG[Scenario], Input_Scenario_Modeled), SUMIFS(Vehicle_Stock_Projections[Vehicle Stock],Vehicle_Stock_Projections[Year],Calculations!R$4,Vehicle_Stock_Projections[Technology Type], $B14, Vehicle_Stock_Projections[Vehicle Type], $A14, Vehicle_Stock_Projections[Scenario], Input_Scenario_Modeled)) -> 0.4279653728 | S14: =IF(Input_Scenario_Modeled="Custom", SUMIFS(Custom_Stock_MPG[Vehicle Stock],Custom_Stock_MPG[Year],Calculations!S$4, Custom_Stock_MPG[[ Technology Type]], $B14, Custom_Stock_MPG[Vehicle Type], $A14, Custom_Stock_MPG[Scenario], Input_Scenario_Modeled), SUMIFS(Vehicle_Stock_Projections[Vehicle Stock],Vehicle_Stock_Projections[Year],Calculations!S$4,Vehicle_Stock_Projections[Technology Type], $B14, Vehicle_Stock_Projections[Vehicle Type], $A14, Vehicle_Stock_Projections[Scenario], Input_Scenario_Modeled)) -> 0.4303934574 | T14: =IF(Input_Scenario_Modeled="Custom", SUMIFS(Custom_Stock_MPG[Vehicle Stock],Custom_Stock_MPG[Year],Calculations!T$4, Custom_Stock_MPG[[ Technology Type]], $B14, Custom_Stock_MPG[Vehicle Type], $A14, Custom_Stock_MPG[Scenario], Input_Scenario_Modeled), SUMIFS(Vehicle_Stock_Projections[Vehicle Stock],Vehicle_Stock_Projections[Year],Calculations!T$4,Vehicle_Stock_Projections[Technology Type], $B14, Vehicle_Stock_Projections[Vehicle Type], $A14, Vehicle_Stock_Projections[Scenario], Input_Scenario_Modeled)) -> 0.4329246581 | U14: =IF(Input_Scenario_Modeled="Custom", SUMIFS(Custom_Stock_MPG[Vehicle Stock],Custom_Stock_MPG[Year],Calculations!U$4, Custom_Stock_MPG[[ Technology Type]], $B14, Custom_Stock_MPG[Vehicle Type], $A14, Custom_Stock_MPG[Scenario], Input_Scenario_Modeled), SUMIFS(Vehicle_Stock_Projections[Vehicle Stock],Vehicle_Stock_Projections[Year],Calculations!U$4,Vehicle_Stock_Projections[Technology Type], $B14, Vehicle_Stock_Projections[Vehicle Type], $A14, Vehicle_Stock_Projections[Scenario], Input_Scenario_Modeled)) -> 0.4349534512 | V14: =IF(Input_Scenario_Modeled="Custom", SUMIFS(Custom_Stock_MPG[Vehicle Stock],Custom_Stock_MPG[Year],Calculations!V$4, Custom_Stock_MPG[[ Technology Type]], $B14, Custom_Stock_MPG[Vehicle Type], $A14, Custom_Stock_MPG[Scenario], Input_Scenario_Modeled), SUMIFS(Vehicle_Stock_Projections[Vehicle Stock],Vehicle_Stock_Projections[Year],Calculations!V$4,Vehicle_Stock_Projections[Technology Type], $B14, Vehicle_Stock_Projections[Vehicle Type], $A14, Vehicle_Stock_Projections[Scenario], Input_Scenario_Modeled)) -> 0.4357987046 | W14: =IF(Input_Scenario_Modeled="Custom", SUMIFS(Custom_Stock_MPG[Vehicle Stock],Custom_Stock_MPG[Year],Calculations!W$4, Custom_Stock_MPG[[ Technology Type]], $B14, Custom_Stock_MPG[Vehicle Type], $A14, Custom_Stock_MPG[Scenario], Input_Scenario_Modeled), SUMIFS(Vehicle_Stock_Projections[Vehicle Stock],Vehicle_Stock_Projections[Year],Calculations!W$4,Vehicle_Stock_Projections[Technology Type], $B14, Vehicle_Stock_Projections[Vehicle Type], $A14, Vehicle_Stock_Projections[Scenario], Input_Scenario_Modeled)) -> 0.4363111556 | X14: =IF(Input_Scenario_Modeled="Custom", SUMIFS(Custom_Stock_MPG[Vehicle Stock],Custom_Stock_MPG[Year],Calculations!X$4, Custom_Stock_MPG[[ Technology Type]], $B14, Custom_Stock_MPG[Vehicle Type], $A14, Custom_Stock_MPG[Scenario], Input_Scenario_Modeled), SUMIFS(Vehicle_Stock_Projections[Vehicle Stock],Vehicle_Stock_Projections[Year],Calculations!X$4,Vehicle_Stock_Projections[Technology Type], $B14, Vehicle_Stock_Projections[Vehicle Type], $A14, Vehicle_Stock_Projections[Scenario], Input_Scenario_Modeled)) -> 0.436378628 | Y14: =IF(Input_Scenario_Modeled="Custom", SUMIFS(Custom_Stock_MPG[Vehicle Stock],Custom_Stock_MPG[Year],Calculations!Y$4, Custom_Stock_MPG[[ Technology Type]], $B14, Custom_Stock_MPG[Vehicle Type], $A14, Custom_Stock_MPG[Scenario], Input_Scenario_Modeled), SUMIFS(Vehicle_Stock_Projections[Vehicle Stock],Vehicle_Stock_Projections[Year],Calculations!Y$4,Vehicle_Stock_Projections[Technology Type], $B14, Vehicle_Stock_Projections[Vehicle Type], $A14, Vehicle_Stock_Projections[Scenario], Input_Scenario_Modeled)) -> 0.4346159399 | Z14: =IF(Input_Scenario_Modeled="Custom", SUMIFS(Custom_Stock_MPG[Vehicle Stock],Custom_Stock_MPG[Year],Calculations!Z$4, Custom_Stock_MPG[[ Technology Type]], $B14, Custom_Stock_MPG[Vehicle Type], $A14, Custom_Stock_MPG[Scenario], Input_Scenario_Modeled), SUMIFS(Vehicle_Stock_Projections[Vehicle Stock],Vehicle_Stock_Projections[Year],Calculations!Z$4,Vehicle_Stock_Projections[Technology Type], $B14, Vehicle_Stock_Projections[Vehicle Type], $A14, Vehicle_Stock_Projections[Scenario], Input_Scenario_Modeled)) -> 0.4323526025 | AA14: =IF(Input_Scenario_Modeled="Custom", SUMIFS(Custom_Stock_MPG[Vehicle Stock],Custom_Stock_MPG[Year],Calculations!AA$4, Custom_Stock_MPG[[ Technology Type]], $B14, Custom_Stock_MPG[Vehicle Type], $A14, Custom_Stock_MPG[Scenario], Input_Scenario_Modeled), SUMIFS(Vehicle_Stock_Projections[Vehicle Stock],Vehicle_Stock_Projections[Year],Calculations!AA$4,Vehicle_Stock_Projections[Technology Type], $B14, Vehicle_Stock_Projections[Vehicle Type], $A14, Vehicle_Stock_Projections[Scenario], Input_Scenario_Modeled)) -> 0.4290263951 | AB14: =IF(Input_Scenario_Modeled="Custom", SUMIFS(Custom_Stock_MPG[Vehicle Stock],Custom_Stock_MPG[Year],Calculations!AB$4, Custom_Stock_MPG[[ Technology Type]], $B14, Custom_Stock_MPG[Vehicle Type], $A14, Custom_Stock_MPG[Scenario], Input_Scenario_Modeled), SUMIFS(Vehicle_Stock_Projections[Vehicle Stock],Vehicle_Stock_Projections[Year],Calculations!AB$4,Vehicle_Stock_Projections[Technology Type], $B14, Vehicle_Stock_Projections[Vehicle Type], $A14, Vehicle_Stock_Projections[Scenario], Input_Scenario_Modeled)) -> 0.4256231785 | AC14: =IF(Input_Scenario_Modeled="Custom", SUMIFS(Custom_Stock_MPG[Vehicle Stock],Custom_Stock_MPG[Year],Calculations!AC$4, Custom_Stock_MPG[[ Technology Type]], $B14, Custom_Stock_MPG[Vehicle Type], $A14, Custom_Stock_MPG[Scenario], Input_Scenario_Modeled), SUMIFS(Vehicle_Stock_Projections[Vehicle Stock],Vehicle_Stock_Projections[Year],Calculations!AC$4,Vehicle_Stock_Projections[Technology Type], $B14, Vehicle_Stock_Projections[Vehicle Type], $A14, Vehicle_Stock_Projections[Scenario], Input_Scenario_Modeled)) -> 0.4219692945 | AD14: =IF(Input_Scenario_Modeled="Custom", SUMIFS(Custom_Stock_MPG[Vehicle Stock],Custom_Stock_MPG[Year],Calculations!AD$4, Custom_Stock_MPG[[ Technology Type]], $B14, Custom_Stock_MPG[Vehicle Type], $A14, Custom_Stock_MPG[Scenario], Input_Scenario_Modeled), SUMIFS(Vehicle_Stock_Projections[Vehicle Stock],Vehicle_Stock_Projections[Year],Calculations!AD$4,Vehicle_Stock_Projections[Technology Type], $B14, Vehicle_Stock_Projections[Vehicle Type], $A14, Vehicle_Stock_Projections[Scenario], Input_Scenario_Modeled)) -> 0.4182162881 | AE14: =IF(Input_Scenario_Modeled="Custom", SUMIFS(Custom_Stock_MPG[Vehicle Stock],Custom_Stock_MPG[Year],Calculations!AE$4, Custom_Stock_MPG[[ Technology Type]], $B14, Custom_Stock_MPG[Vehicle Type], $A14, Custom_Stock_MPG[Scenario], Input_Scenario_Modeled), SUMIFS(Vehicle_Stock_Projections[Vehicle Stock],Vehicle_Stock_Projections[Year],Calculations!AE$4,Vehicle_Stock_Projections[Technology Type], $B14, Vehicle_Stock_Projections[Vehicle Type], $A14, Vehicle_Stock_Projections[Scenario], Input_Scenario_Modeled)) -> 0.4147525728 | AF14: =IF(Input_Scenario_Modeled="Custom", SUMIFS(Custom_Stock_MPG[Vehicle Stock],Custom_Stock_MPG[Year],Calculations!AF$4, Custom_Stock_MPG[[ Technology Type]], $B14, Custom_Stock_MPG[Vehicle Type], $A14, Custom_Stock_MPG[Scenario], Input_Scenario_Modeled), SUMIFS(Vehicle_Stock_Projections[Vehicle Stock],Vehicle_Stock_Projections[Year],Calculations!AF$4,Vehicle_Stock_Projections[Technology Type], $B14, Vehicle_Stock_Projections[Vehicle Type], $A14, Vehicle_Stock_Projections[Scenario], Input_Scenario_Modeled)) -> 0.4147525728 | AG14: =IF(Input_Scenario_Modeled="Custom", SUMIFS(Custom_Stock_MPG[Vehicle Stock],Custom_Stock_MPG[Year],Calculations!AG$4, Custom_Stock_MPG[[ Technology Type]], $B14, Custom_Stock_MPG[Vehicle Type], $A14, Custom_Stock_MPG[Scenario], Input_Scenario_Modeled), SUMIFS(Vehicle_Stock_Projections[Vehicle Stock],Vehicle_Stock_Projections[Year],Calculations!AG$4,Vehicle_Stock_Projections[Technology Type], $B14, Vehicle_Stock_Projections[Vehicle Type], $A14, Vehicle_Stock_Projections[Scenario], Input_Scenario_Modeled)) -> 0.4147525728 | AH14: =IF(Input_Scenario_Modeled="Custom", SUMIFS(Custom_Stock_MPG[Vehicle Stock],Custom_Stock_MPG[Year],Calculations!AH$4, Custom_Stock_MPG[[ Technology Type]], $B14, Custom_Stock_MPG[Vehicle Type], $A14, Custom_Stock_MPG[Scenario], Input_Scenario_Modeled), SUMIFS(Vehicle_Stock_Projections[Vehicle Stock],Vehicle_Stock_Projections[Year],Calculations!AH$4,Vehicle_Stock_Projections[Technology Type], $B14, Vehicle_Stock_Projections[Vehicle Type], $A14, Vehicle_Stock_Projections[Scenario], Input_Scenario_Modeled)) -> 0.4147525728 | AI14: =IF(Input_Scenario_Modeled="Custom", SUMIFS(Custom_Stock_MPG[Vehicle Stock],Custom_Stock_MPG[Year],Calculations!AI$4, Custom_Stock_MPG[[ Technology Type]], $B14, Custom_Stock_MPG[Vehicle Type], $A14, Custom_Stock_MPG[Scenario], Input_Scenario_Modeled), SUMIFS(Vehicle_Stock_Projections[Vehicle Stock],Vehicle_Stock_Projections[Year],Calculations!AI$4,Vehicle_Stock_Projections[Technology Type], $B14, Vehicle_Stock_Projections[Vehicle Type], $A14, Vehicle_Stock_Projections[Scenario], Input_Scenario_Modeled)) -> 0.4147525728 | AJ14: =IF(Input_Scenario_Modeled="Custom", SUMIFS(Custom_Stock_MPG[Vehicle Stock],Custom_Stock_MPG[Year],Calculations!AJ$4, Custom_Stock_MPG[[ Technology Type]], $B14, Custom_Stock_MPG[Vehicle Type], $A14, Custom_Stock_MPG[Scenario], Input_Scenario_Modeled), SUMIFS(Vehicle_Stock_Projections[Vehicle Stock],Vehicle_Stock_Projections[Year],Calculations!AJ$4,Vehicle_Stock_Projections[Technology Type], $B14, Vehicle_Stock_Projections[Vehicle Type], $A14, Vehicle_Stock_Projections[Scenario], Input_Scenario_Modeled)) -> 0.4147525728
A15: Light Trucks | B15: Gasoline ICE Vehicles | C15: Gasoline | D15: Stock | E15: =IF(Input_Scenario_Modeled="Custom", SUMIFS(Custom_Stock_MPG[Vehicle Stock],Custom_Stock_MPG[Year],Calculations!E$4, Custom_Stock_MPG[[ Technology Type]], $B15, Custom_Stock_MPG[Vehicle Type], $A15, Custom_Stock_MPG[Scenario], Input_Scenario_Modeled), SUMIFS(Vehicle_Stock_Projections[Vehicle Stock],Vehicle_Stock_Projections[Year],Calculations!E$4,Vehicle_Stock_Projections[Technology Type], $B15, Vehicle_Stock_Projections[Vehicle Type], $A15, Vehicle_Stock_Projections[Scenario], Input_Scenario_Modeled)) -> 122.5943451 | F15: =IF(Input_Scenario_Modeled="Custom", SUMIFS(Custom_Stock_MPG[Vehicle Stock],Custom_Stock_MPG[Year],Calculations!F$4, Custom_Stock_MPG[[ Technology Type]], $B15, Custom_Stock_MPG[Vehicle Type], $A15, Custom_Stock_MPG[Scenario], Input_Scenario_Modeled), SUMIFS(Vehicle_Stock_Projections[Vehicle Stock],Vehicle_Stock_Projections[Year],Calculations!F$4,Vehicle_Stock_Projections[Technology Type], $B15, Vehicle_Stock_Projections[Vehicle Type], $A15, Vehicle_Stock_Projections[Scenario], Input_Scenario_Modeled)) -> 123.6724548 | G15: =IF(Input_Scenario_Modeled="Custom", SUMIFS(Custom_Stock_MPG[Vehicle Stock],Custom_Stock_MPG[Year],Calculations!G$4, Custom_Stock_MPG[[ Technology Type]], $B15, Custom_Stock_MPG[Vehicle Type], $A15, Custom_Stock_MPG[Scenario], Input_Scenario_Modeled), SUMIFS(Vehicle_Stock_Projections[Vehicle Stock],Vehicle_Stock_Projections[Year],Calculations!G$4,Vehicle_Stock_Projections[Technology Type], $B15, Vehicle_Stock_Projections[Vehicle Type], $A15, Vehicle_Stock_Projections[Scenario], Input_Scenario_Modeled)) -> 124.6460495 | H15: =IF(Input_Scenario_Modeled="Custom", SUMIFS(Custom_Stock_MPG[Vehicle Stock],Custom_Stock_MPG[Year],Calculations!H$4, Custom_Stock_MPG[[ Technology Type]], $B15, Custom_Stock_MPG[Vehicle Type], $A15, Custom_Stock_MPG[Scenario], Input_Scenario_Modeled), SUMIFS(Vehicle_Stock_Projections[Vehicle Stock],Vehicle_Stock_Projections[Year],Calculations!H$4,Vehicle_Stock_Projections[Technology Type], $B15, Vehicle_Stock_Projections[Vehicle Type], $A15, Vehicle_Stock_Projections[Scenario], Input_Scenario_Modeled)) -> 125.4424362 | I15: =IF(Input_Scenario_Modeled="Custom", SUMIFS(Custom_Stock_MPG[Vehicle Stock],Custom_Stock_MPG[Year],Calculations!I$4, Custom_Stock_MPG[[ Technology Type]], $B15, Custom_Stock_MPG[Vehicle Type], $A15, Custom_Stock_MPG[Scenario], Input_Scenario_Modeled), SUMIFS(Vehicle_Stock_Projections[Vehicle Stock],Vehicle_Stock_Projections[Year],Calculations!I$4,Vehicle_Stock_Projections[Technology Type], $B15, Vehicle_Stock_Projections[Vehicle Type], $A15, Vehicle_Stock_Projections[Scenario], Input_Scenario_Modeled)) -> 125.6606598 | J15: =IF(Input_Scenario_Modeled="Custom", SUMIFS(Custom_Stock_MPG[Vehicle Stock],Custom_Stock_MPG[Year],Calculations!J$4, Custom_Stock_MPG[[ Technology Type]], $B15, Custom_Stock_MPG[Vehicle Type], $A15, Custom_Stock_MPG[Scenario], Input_Scenario_Modeled), SUMIFS(Vehicle_Stock_Projections[Vehicle Stock],Vehicle_Stock_Projections[Year],Calculations!J$4,Vehicle_Stock_Projections[Technology Type], $B15, Vehicle_Stock_Projections[Vehicle Type], $A15, Vehicle_Stock_Projections[Scenario], Input_Scenario_Modeled)) -> 124.984024 | K15: =IF(Input_Scenario_Modeled="Custom", SUMIFS(Custom_Stock_MPG[Vehicle Stock],Custom_Stock_MPG[Year],Calculations!K$4, Custom_Stock_MPG[[ Technology Type]], $B15, Custom_Stock_MPG[Vehicle Type], $A15, Custom_Stock_MPG[Scenario], Input_Scenario_Modeled), SUMIFS(Vehicle_Stock_Projections[Vehicle Stock],Vehicle_Stock_Projections[Year],Calculations!K$4,Vehicle_Stock_Projections[Technology Type], $B15, Vehicle_Stock_Projections[Vehicle Type], $A15, Vehicle_Stock_Projections[Scenario], Input_Scenario_Modeled)) -> 123.3536453 | L15: =IF(Input_Scenario_Modeled="Custom", SUMIFS(Custom_Stock_MPG[Vehicle Stock],Custom_Stock_MPG[Year],Calculations!L$4, Custom_Stock_MPG[[ Technology Type]], $B15, Custom_Stock_MPG[Vehicle Type], $A15, Custom_Stock_MPG[Scenario], Input_Scenario_Modeled), SUMIFS(Vehicle_Stock_Projections[Vehicle Stock],Vehicle_Stock_Projections[Year],Calculations!L$4,Vehicle_Stock_Projections[Technology Type], $B15, Vehicle_Stock_Projections[Vehicle Type], $A15, Vehicle_Stock_Projections[Scenario], Input_Scenario_Modeled)) -> 120.8323212 | M15: =IF(Input_Scenario_Modeled="Custom", SUMIFS(Custom_Stock_MPG[Vehicle Stock],Custom_Stock_MPG[Year],Calculations!M$4, Custom_Stock_MPG[[ Technology Type]], $B15, Custom_Stock_MPG[Vehicle Type], $A15, Custom_Stock_MPG[Scenario], Input_Scenario_Modeled), SUMIFS(Vehicle_Stock_Projections[Vehicle Stock],Vehicle_Stock_Projections[Year],Calculations!M$4,Vehicle_Stock_Projections[Technology Type], $B15, Vehicle_Stock_Projections[Vehicle Type], $A15, Vehicle_Stock_Projections[Scenario], Input_Scenario_Modeled)) -> 117.6723709 | N15: =IF(Input_Scenario_Modeled="Custom", SUMIFS(Custom_Stock_MPG[Vehicle Stock],Custom_Stock_MPG[Year],Calculations!N$4, Custom_Stock_MPG[[ Technology Type]], $B15, Custom_Stock_MPG[Vehicle Type], $A15, Custom_Stock_MPG[Scenario], Input_Scenario_Modeled), SUMIFS(Vehicle_Stock_Projections[Vehicle Stock],Vehicle_Stock_Projections[Year],Calculations!N$4,Vehicle_Stock_Projections[Technology Type], $B15, Vehicle_Stock_Projections[Vehicle Type], $A15, Vehicle_Stock_Projections[Scenario], Input_Scenario_Modeled)) -> 114.2844467 | O15: =IF(Input_Scenario_Modeled="Custom", SUMIFS(Custom_Stock_MPG[Vehicle Stock],Custom_Stock_MPG[Year],Calculations!O$4, Custom_Stock_MPG[[ Technology Type]], $B15, Custom_Stock_MPG[Vehicle Type], $A15, Custom_Stock_MPG[Scenario], Input_Scenario_Modeled), SUMIFS(Vehicle_Stock_Projections[Vehicle Stock],Vehicle_Stock_Projections[Year],Calculations!O$4,Vehicle_Stock_Projections[Technology Type], $B15, Vehicle_Stock_Projections[Vehicle Type], $A15, Vehicle_Stock_Projections[Scenario], Input_Scenario_Modeled)) -> 110.820549 | P15: =IF(Input_Scenario_Modeled="Custom", SUMIFS(Custom_Stock_MPG[Vehicle Stock],Custom_Stock_MPG[Year],Calculations!P$4, Custom_Stock_MPG[[ Technology Type]], $B15, Custom_Stock_MPG[Vehicle Type], $A15, Custom_Stock_MPG[Scenario], Input_Scenario_Modeled), SUMIFS(Vehicle_Stock_Projections[Vehicle Stock],Vehicle_Stock_Projections[Year],Calculations!P$4,Vehicle_Stock_Projections[Technology Type], $B15, Vehicle_Stock_Projections[Vehicle Type], $A15, Vehicle_Stock_Projections[Scenario], Input_Scenario_Modeled)) -> 107.2675323 | Q15: =IF(Input_Scenario_Modeled="Custom", SUMIFS(Custom_Stock_MPG[Vehicle Stock],Custom_Stock_MPG[Year],Calculations!Q$4, Custom_Stock_MPG[[ Technology Type]], $B15, Custom_Stock_MPG[Vehicle Type], $A15, Custom_Stock_MPG[Scenario], Input_Scenario_Modeled), SUMIFS(Vehicle_Stock_Projections[Vehicle Stock],Vehicle_Stock_Projections[Year],Calculations!Q$4,Vehicle_Stock_Projections[Technology Type], $B15, Vehicle_Stock_Projections[Vehicle Type], $A15, Vehicle_Stock_Projections[Scenario], Input_Scenario_Modeled)) -> 103.618248 | R15: =IF(Input_Scenario_Modeled="Custom", SUMIFS(Custom_Stock_MPG[Vehicle Stock],Custom_Stock_MPG[Year],Calculations!R$4, Custom_Stock_MPG[[ Technology Type]], $B15, Custom_Stock_MPG[Vehicle Type], $A15, Custom_Stock_MPG[Scenario], Input_Scenario_Modeled), SUMIFS(Vehicle_Stock_Projections[Vehicle Stock],Vehicle_Stock_Projections[Year],Calculations!R$4,Vehicle_Stock_Projections[Technology Type], $B15, Vehicle_Stock_Projections[Vehicle Type], $A15, Vehicle_Stock_Projections[Scenario], Input_Scenario_Modeled)) -> 99.90624237 | S15: =IF(Input_Scenario_Modeled="Custom", SUMIFS(Custom_Stock_MPG[Vehicle Stock],Custom_Stock_MPG[Year],Calculations!S$4, Custom_Stock_MPG[[ Technology Type]], $B15, Custom_Stock_MPG[Vehicle Type], $A15, Custom_Stock_MPG[Scenario], Input_Scenario_Modeled), SUMIFS(Vehicle_Stock_Projections[Vehicle Stock],Vehicle_Stock_Projections[Year],Calculations!S$4,Vehicle_Stock_Projections[Technology Type], $B15, Vehicle_Stock_Projections[Vehicle Type], $A15, Vehicle_Stock_Projections[Scenario], Input_Scenario_Modeled)) -> 96.17721558 | T15: =IF(Input_Scenario_Modeled="Custom", SUMIFS(Custom_Stock_MPG[Vehicle Stock],Custom_Stock_MPG[Year],Calculations!T$4, Custom_Stock_MPG[[ Technology Type]], $B15, Custom_Stock_MPG[Vehicle Type], $A15, Custom_Stock_MPG[Scenario], Input_Scenario_Modeled), SUMIFS(Vehicle_Stock_Projections[Vehicle Stock],Vehicle_Stock_Projections[Year],Calculations!T$4,Vehicle_Stock_Projections[Technology Type], $B15, Vehicle_Stock_Projections[Vehicle Type], $A15, Vehicle_Stock_Projections[Scenario], Input_Scenario_Modeled)) -> 92.47257233 | U15: =IF(Input_Scenario_Modeled="Custom", SUMIFS(Custom_Stock_MPG[Vehicle Stock],Custom_Stock_MPG[Year],Calculations!U$4, Custom_Stock_MPG[[ Technology Type]], $B15, Custom_Stock_MPG[Vehicle Type], $A15, Custom_Stock_MPG[Scenario], Input_Scenario_Modeled), SUMIFS(Vehicle_Stock_Projections[Vehicle Stock],Vehicle_Stock_Projections[Year],Calculations!U$4,Vehicle_Stock_Projections[Technology Type], $B15, Vehicle_Stock_Projections[Vehicle Type], $A15, Vehicle_Stock_Projections[Scenario], Input_Scenario_Modeled)) -> 88.83140564 | V15: =IF(Input_Scenario_Modeled="Custom", SUMIFS(Custom_Stock_MPG[Vehicle Stock],Custom_Stock_MPG[Year],Calculations!V$4, Custom_Stock_MPG[[ Technology Type]], $B15, Custom_Stock_MPG[Vehicle Type], $A15, Custom_Stock_MPG[Scenario], Input_Scenario_Modeled), SUMIFS(Vehicle_Stock_Projections[Vehicle Stock],Vehicle_Stock_Projections[Year],Calculations!V$4,Vehicle_Stock_Projections[Technology Type], $B15, Vehicle_Stock_Projections[Vehicle Type], $A15, Vehicle_Stock_Projections[Scenario], Input_Scenario_Modeled)) -> 85.32602692 | W15: =IF(Input_Scenario_Modeled="Custom", SUMIFS(Custom_Stock_MPG[Vehicle Stock],Custom_Stock_MPG[Year],Calculations!W$4, Custom_Stock_MPG[[ Technology Type]], $B15, Custom_Stock_MPG[Vehicle Type], $A15, Custom_Stock_MPG[Scenario], Input_Scenario_Modeled), SUMIFS(Vehicle_Stock_Projections[Vehicle Stock],Vehicle_Stock_Projections[Year],Calculations!W$4,Vehicle_Stock_Projections[Technology Type], $B15, Vehicle_Stock_Projections[Vehicle Type], $A15, Vehicle_Stock_Projections[Scenario], Input_Scenario_Modeled)) -> 81.94710541 | X15: =IF(Input_Scenario_Modeled="Custom", SUMIFS(Custom_Stock_MPG[Vehicle Stock],Custom_Stock_MPG[Year],Calculations!X$4, Custom_Stock_MPG[[ Technology Type]], $B15, Custom_Stock_MPG[Vehicle Type], $A15, Custom_Stock_MPG[Scenario], Input_Scenario_Modeled), SUMIFS(Vehicle_Stock_Projections[Vehicle Stock],Vehicle_Stock_Projections[Year],Calculations!X$4,Vehicle_Stock_Projections[Technology Type], $B15, Vehicle_Stock_Projections[Vehicle Type], $A15, Vehicle_Stock_Projections[Scenario], Input_Scenario_Modeled)) -> 78.71637726 | Y15: =IF(Input_Scenario_Modeled="Custom", SUMIFS(Custom_Stock_MPG[Vehicle Stock],Custom_Stock_MPG[Year],Calculations!Y$4, Custom_Stock_MPG[[ Technology Type]], $B15, Custom_Stock_MPG[Vehicle Type], $A15, Custom_Stock_MPG[Scenario], Input_Scenario_Modeled), SUMIFS(Vehicle_Stock_Projections[Vehicle Stock],Vehicle_Stock_Projections[Year],Calculations!Y$4,Vehicle_Stock_Projections[Technology Type], $B15, Vehicle_Stock_Projections[Vehicle Type], $A15, Vehicle_Stock_Projections[Scenario], Input_Scenario_Modeled)) -> 75.71936035 | Z15: =IF(Input_Scenario_Modeled="Custom", SUMIFS(Custom_Stock_MPG[Vehicle Stock],Custom_Stock_MPG[Year],Calculations!Z$4, Custom_Stock_MPG[[ Technology Type]], $B15, Custom_Stock_MPG[Vehicle Type], $A15, Custom_Stock_MPG[Scenario], Input_Scenario_Modeled), SUMIFS(Vehicle_Stock_Projections[Vehicle Stock],Vehicle_Stock_Projections[Year],Calculations!Z$4,Vehicle_Stock_Projections[Technology Type], $B15, Vehicle_Stock_Projections[Vehicle Type], $A15, Vehicle_Stock_Projections[Scenario], Input_Scenario_Modeled)) -> 72.90835571 | AA15: =IF(Input_Scenario_Modeled="Custom", SUMIFS(Custom_Stock_MPG[Vehicle Stock],Custom_Stock_MPG[Year],Calculations!AA$4, Custom_Stock_MPG[[ Technology Type]], $B15, Custom_Stock_MPG[Vehicle Type], $A15, Custom_Stock_MPG[Scenario], Input_Scenario_Modeled), SUMIFS(Vehicle_Stock_Projections[Vehicle Stock],Vehicle_Stock_Projections[Year],Calculations!AA$4,Vehicle_Stock_Projections[Technology Type], $B15, Vehicle_Stock_Projections[Vehicle Type], $A15, Vehicle_Stock_Projections[Scenario], Input_Scenario_Modeled)) -> 70.32024384 | AB15: =IF(Input_Scenario_Modeled="Custom", SUMIFS(Custom_Stock_MPG[Vehicle Stock],Custom_Stock_MPG[Year],Calculations!AB$4, Custom_Stock_MPG[[ Technology Type]], $B15, Custom_Stock_MPG[Vehicle Type], $A15, Custom_Stock_MPG[Scenario], Input_Scenario_Modeled), SUMIFS(Vehicle_Stock_Projections[Vehicle Stock],Vehicle_Stock_Projections[Year],Calculations!AB$4,Vehicle_Stock_Projections[Technology Type], $B15, Vehicle_Stock_Projections[Vehicle Type], $A15, Vehicle_Stock_Projections[Scenario], Input_Scenario_Modeled)) -> 67.93219757 | AC15: =IF(Input_Scenario_Modeled="Custom", SUMIFS(Custom_Stock_MPG[Vehicle Stock],Custom_Stock_MPG[Year],Calculations!AC$4, Custom_Stock_MPG[[ Technology Type]], $B15, Custom_Stock_MPG[Vehicle Type], $A15, Custom_Stock_MPG[Scenario], Input_Scenario_Modeled), SUMIFS(Vehicle_Stock_Projections[Vehicle Stock],Vehicle_Stock_Projections[Year],Calculations!AC$4,Vehicle_Stock_Projections[Technology Type], $B15, Vehicle_Stock_Projections[Vehicle Type], $A15, Vehicle_Stock_Projections[Scenario], Input_Scenario_Modeled)) -> 65.75640106 | AD15: =IF(Input_Scenario_Modeled="Custom", SUMIFS(Custom_Stock_MPG[Vehicle Stock],Custom_Stock_MPG[Year],Calculations!AD$4, Custom_Stock_MPG[[ Technology Type]], $B15, Custom_Stock_MPG[Vehicle Type], $A15, Custom_Stock_MPG[Scenario], Input_Scenario_Modeled), SUMIFS(Vehicle_Stock_Projections[Vehicle Stock],Vehicle_Stock_Projections[Year],Calculations!AD$4,Vehicle_Stock_Projections[Technology Type], $B15, Vehicle_Stock_Projections[Vehicle Type], $A15, Vehicle_Stock_Projections[Scenario], Input_Scenario_Modeled)) -> 63.79111481 | AE15: =IF(Input_Scenario_Modeled="Custom", SUMIFS(Custom_Stock_MPG[Vehicle Stock],Custom_Stock_MPG[Year],Calculations!AE$4, Custom_Stock_MPG[[ Technology Type]], $B15, Custom_Stock_MPG[Vehicle Type], $A15, Custom_Stock_MPG[Scenario], Input_Scenario_Modeled), SUMIFS(Vehicle_Stock_Projections[Vehicle Stock],Vehicle_Stock_Projections[Year],Calculations!AE$4,Vehicle_Stock_Projections[Technology Type], $B15, Vehicle_Stock_Projections[Vehicle Type], $A15, Vehicle_Stock_Projections[Scenario], Input_Scenario_Modeled)) -> 62.00828552 | AF15: =IF(Input_Scenario_Modeled="Custom", SUMIFS(Custom_Stock_MPG[Vehicle Stock],Custom_Stock_MPG[Year],Calculations!AF$4, Custom_Stock_MPG[[ Technology Type]], $B15, Custom_Stock_MPG[Vehicle Type], $A15, Custom_Stock_MPG[Scenario], Input_Scenario_Modeled), SUMIFS(Vehicle_Stock_Projections[Vehicle Stock],Vehicle_Stock_Projections[Year],Calculations!AF$4,Vehicle_Stock_Projections[Technology Type], $B15, Vehicle_Stock_Projections[Vehicle Type], $A15, Vehicle_Stock_Projections[Scenario], Input_Scenario_Modeled)) -> 62.00828552 | AG15: =IF(Input_Scenario_Modeled="Custom", SUMIFS(Custom_Stock_MPG[Vehicle Stock],Custom_Stock_MPG[Year],Calculations!AG$4, Custom_Stock_MPG[[ Technology Type]], $B15, Custom_Stock_MPG[Vehicle Type], $A15, Custom_Stock_MPG[Scenario], Input_Scenario_Modeled), SUMIFS(Vehicle_Stock_Projections[Vehicle Stock],Vehicle_Stock_Projections[Year],Calculations!AG$4,Vehicle_Stock_Projections[Technology Type], $B15, Vehicle_Stock_Projections[Vehicle Type], $A15, Vehicle_Stock_Projections[Scenario], Input_Scenario_Modeled)) -> 62.00828552 | AH15: =IF(Input_Scenario_Modeled="Custom", SUMIFS(Custom_Stock_MPG[Vehicle Stock],Custom_Stock_MPG[Year],Calculations!AH$4, Custom_Stock_MPG[[ Technology Type]], $B15, Custom_Stock_MPG[Vehicle Type], $A15, Custom_Stock_MPG[Scenario], Input_Scenario_Modeled), SUMIFS(Vehicle_Stock_Projections[Vehicle Stock],Vehicle_Stock_Projections[Year],Calculations!AH$4,Vehicle_Stock_Projections[Technology Type], $B15, Vehicle_Stock_Projections[Vehicle Type], $A15, Vehicle_Stock_Projections[Scenario], Input_Scenario_Modeled)) -> 62.00828552 | AI15: =IF(Input_Scenario_Modeled="Custom", SUMIFS(Custom_Stock_MPG[Vehicle Stock],Custom_Stock_MPG[Year],Calculations!AI$4, Custom_Stock_MPG[[ Technology Type]], $B15, Custom_Stock_MPG[Vehicle Type], $A15, Custom_Stock_MPG[Scenario], Input_Scenario_Modeled), SUMIFS(Vehicle_Stock_Projections[Vehicle Stock],Vehicle_Stock_Projections[Year],Calculations!AI$4,Vehicle_Stock_Projections[Technology Type], $B15, Vehicle_Stock_Projections[Vehicle Type], $A15, Vehicle_Stock_Projections[Scenario], Input_Scenario_Modeled)) -> 62.00828552 | AJ15: =IF(Input_Scenario_Modeled="Custom", SUMIFS(Custom_Stock_MPG[Vehicle Stock],Custom_Stock_MPG[Year],Calculations!AJ$4, Custom_Stock_MPG[[ Technology Type]], $B15, Custom_Stock_MPG[Vehicle Type], $A15, Custom_Stock_MPG[Scenario], Input_Scenario_Modeled), SUMIFS(Vehicle_Stock_Projections[Vehicle Stock],Vehicle_Stock_Projections[Year],Calculations!AJ$4,Vehicle_Stock_Projections[Technology Type], $B15, Vehicle_Stock_Projections[Vehicle Type], $A15, Vehicle_Stock_Projections[Scenario], Input_Scenario_Modeled)) -> 62.00828552
A16: Light Trucks | B16: Ethanol-Flex Fuel ICE | C16: Gasoline | D16: Stock | E16: =IF(Input_Scenario_Modeled="Custom", SUMIFS(Custom_Stock_MPG[Vehicle Stock],Custom_Stock_MPG[Year],Calculations!E$4, Custom_Stock_MPG[[ Technology Type]], $B16, Custom_Stock_MPG[Vehicle Type], $A16, Custom_Stock_MPG[Scenario], Input_Scenario_Modeled), SUMIFS(Vehicle_Stock_Projections[Vehicle Stock],Vehicle_Stock_Projections[Year],Calculations!E$4,Vehicle_Stock_Projections[Technology Type], $B16, Vehicle_Stock_Projections[Vehicle Type], $A16, Vehicle_Stock_Projections[Scenario], Input_Scenario_Modeled)) -> 14.79431915 | F16: =IF(Input_Scenario_Modeled="Custom", SUMIFS(Custom_Stock_MPG[Vehicle Stock],Custom_Stock_MPG[Year],Calculations!F$4, Custom_Stock_MPG[[ Technology Type]], $B16, Custom_Stock_MPG[Vehicle Type], $A16, Custom_Stock_MPG[Scenario], Input_Scenario_Modeled), SUMIFS(Vehicle_Stock_Projections[Vehicle Stock],Vehicle_Stock_Projections[Year],Calculations!F$4,Vehicle_Stock_Projections[Technology Type], $B16, Vehicle_Stock_Projections[Vehicle Type], $A16, Vehicle_Stock_Projections[Scenario], Input_Scenario_Modeled)) -> 14.26003742 | G16: =IF(Input_Scenario_Modeled="Custom", SUMIFS(Custom_Stock_MPG[Vehicle Stock],Custom_Stock_MPG[Year],Calculations!G$4, Custom_Stock_MPG[[ Technology Type]], $B16, Custom_Stock_MPG[Vehicle Type], $A16, Custom_Stock_MPG[Scenario], Input_Scenario_Modeled), SUMIFS(Vehicle_Stock_Projections[Vehicle Stock],Vehicle_Stock_Projections[Year],Calculations!G$4,Vehicle_Stock_Projections[Technology Type], $B16, Vehicle_Stock_Projections[Vehicle Type], $A16, Vehicle_Stock_Projections[Scenario], Input_Scenario_Modeled)) -> 13.73372269 | H16: =IF(Input_Scenario_Modeled="Custom", SUMIFS(Custom_Stock_MPG[Vehicle Stock],Custom_Stock_MPG[Year],Calculations!H$4, Custom_Stock_MPG[[ Technology Type]], $B16, Custom_Stock_MPG[Vehicle Type], $A16, Custom_Stock_MPG[Scenario], Input_Scenario_Modeled), SUMIFS(Vehicle_Stock_Projections[Vehicle Stock],Vehicle_Stock_Projections[Year],Calculations!H$4,Vehicle_Stock_Projections[Technology Type], $B16, Vehicle_Stock_Projections[Vehicle Type], $A16, Vehicle_Stock_Projections[Scenario], Input_Scenario_Modeled)) -> 13.18607998 | I16: =IF(Input_Scenario_Modeled="Custom", SUMIFS(Custom_Stock_MPG[Vehicle Stock],Custom_Stock_MPG[Year],Calculations!I$4, Custom_Stock_MPG[[ Technology Type]], $B16, Custom_Stock_MPG[Vehicle Type], $A16, Custom_Stock_MPG[Scenario], Input_Scenario_Modeled), SUMIFS(Vehicle_Stock_Projections[Vehicle Stock],Vehicle_Stock_Projections[Year],Calculations!I$4,Vehicle_Stock_Projections[Technology Type], $B16, Vehicle_Stock_Projections[Vehicle Type], $A16, Vehicle_Stock_Projections[Scenario], Input_Scenario_Modeled)) -> 12.556633 | J16: =IF(Input_Scenario_Modeled="Custom", SUMIFS(Custom_Stock_MPG[Vehicle Stock],Custom_Stock_MPG[Year],Calculations!J$4, Custom_Stock_MPG[[ Technology Type]], $B16, Custom_Stock_MPG[Vehicle Type], $A16, Custom_Stock_MPG[Scenario], Input_Scenario_Modeled), SUMIFS(Vehicle_Stock_Projections[Vehicle Stock],Vehicle_Stock_Projections[Year],Calculations!J$4,Vehicle_Stock_Projections[Technology Type], $B16, Vehicle_Stock_Projections[Vehicle Type], $A16, Vehicle_Stock_Projections[Scenario], Input_Scenario_Modeled)) -> 11.89924622 | K16: =IF(Input_Scenario_Modeled="Custom", SUMIFS(Custom_Stock_MPG[Vehicle Stock],Custom_Stock_MPG[Year],Calculations!K$4, Custom_Stock_MPG[[ Technology Type]], $B16, Custom_Stock_MPG[Vehicle Type], $A16, Custom_Stock_MPG[Scenario], Input_Scenario_Modeled), SUMIFS(Vehicle_Stock_Projections[Vehicle Stock],Vehicle_Stock_Projections[Year],Calculations!K$4,Vehicle_Stock_Projections[Technology Type], $B16, Vehicle_Stock_Projections[Vehicle Type], $A16, Vehicle_Stock_Projections[Scenario], Input_Scenario_Modeled)) -> 11.20599651 | L16: =IF(Input_Scenario_Modeled="Custom", SUMIFS(Custom_Stock_MPG[Vehicle Stock],Custom_Stock_MPG[Year],Calculations!L$4, Custom_Stock_MPG[[ Technology Type]], $B16, Custom_Stock_MPG[Vehicle Type], $A16, Custom_Stock_MPG[Scenario], Input_Scenario_Modeled), SUMIFS(Vehicle_Stock_Projections[Vehicle Stock],Vehicle_Stock_Projections[Year],Calculations!L$4,Vehicle_Stock_Projections[Technology Type], $B16, Vehicle_Stock_Projections[Vehicle Type], $A16, Vehicle_Stock_Projections[Scenario], Input_Scenario_Modeled)) -> 10.49371624 | M16: =IF(Input_Scenario_Modeled="Custom", SUMIFS(Custom_Stock_MPG[Vehicle Stock],Custom_Stock_MPG[Year],Calculations!M$4, Custom_Stock_MPG[[ Technology Type]], $B16, Custom_Stock_MPG[Vehicle Type], $A16, Custom_Stock_MPG[Scenario], Input_Scenario_Modeled), SUMIFS(Vehicle_Stock_Projections[Vehicle Stock],Vehicle_Stock_Projections[Year],Calculations!M$4,Vehicle_Stock_Projections[Technology Type], $B16, Vehicle_Stock_Projections[Vehicle Type], $A16, Vehicle_Stock_Projections[Scenario], Input_Scenario_Modeled)) -> 9.756768227 | N16: =IF(Input_Scenario_Modeled="Custom", SUMIFS(Custom_Stock_MPG[Vehicle Stock],Custom_Stock_MPG[Year],Calculations!N$4, Custom_Stock_MPG[[ Technology Type]], $B16, Custom_Stock_MPG[Vehicle Type], $A16, Custom_Stock_MPG[Scenario], Input_Scenario_Modeled), SUMIFS(Vehicle_Stock_Projections[Vehicle Stock],Vehicle_Stock_Projections[Year],Calculations!N$4,Vehicle_Stock_Projections[Technology Type], $B16, Vehicle_Stock_Projections[Vehicle Type], $A16, Vehicle_Stock_Projections[Scenario], Input_Scenario_Modeled)) -> 9.061855316 | O16: =IF(Input_Scenario_Modeled="Custom", SUMIFS(Custom_Stock_MPG[Vehicle Stock],Custom_Stock_MPG[Year],Calculations!O$4, Custom_Stock_MPG[[ Technology Type]], $B16, Custom_Stock_MPG[Vehicle Type], $A16, Custom_Stock_MPG[Scenario], Input_Scenario_Modeled), SUMIFS(Vehicle_Stock_Projections[Vehicle Stock],Vehicle_Stock_Projections[Year],Calculations!O$4,Vehicle_Stock_Projections[Technology Type], $B16, Vehicle_Stock_Projections[Vehicle Type], $A16, Vehicle_Stock_Projections[Scenario], Input_Scenario_Modeled)) -> 8.390520096 | P16: =IF(Input_Scenario_Modeled="Custom", SUMIFS(Custom_Stock_MPG[Vehicle Stock],Custom_Stock_MPG[Year],Calculations!P$4, Custom_Stock_MPG[[ Technology Type]], $B16, Custom_Stock_MPG[Vehicle Type], $A16, Custom_Stock_MPG[Scenario], Input_Scenario_Modeled), SUMIFS(Vehicle_Stock_Projections[Vehicle Stock],Vehicle_Stock_Projections[Year],Calculations!P$4,Vehicle_Stock_Projections[Technology Type], $B16, Vehicle_Stock_Projections[Vehicle Type], $A16, Vehicle_Stock_Projections[Scenario], Input_Scenario_Modeled)) -> 7.757702351 | Q16: =IF(Input_Scenario_Modeled="Custom", SUMIFS(Custom_Stock_MPG[Vehicle Stock],Custom_Stock_MPG[Year],Calculations!Q$4, Custom_Stock_MPG[[ Technology Type]], $B16, Custom_Stock_MPG[Vehicle Type], $A16, Custom_Stock_MPG[Scenario], Input_Scenario_Modeled), SUMIFS(Vehicle_Stock_Projections[Vehicle Stock],Vehicle_Stock_Projections[Year],Calculations!Q$4,Vehicle_Stock_Projections[Technology Type], $B16, Vehicle_Stock_Projections[Vehicle Type], $A16, Vehicle_Stock_Projections[Scenario], Input_Scenario_Modeled)) -> 7.17336607 | R16: =IF(Input_Scenario_Modeled="Custom", SUMIFS(Custom_Stock_MPG[Vehicle Stock],Custom_Stock_MPG[Year],Calculations!R$4, Custom_Stock_MPG[[ Technology Type]], $B16, Custom_Stock_MPG[Vehicle Type], $A16, Custom_Stock_MPG[Scenario], Input_Scenario_Modeled), SUMIFS(Vehicle_Stock_Projections[Vehicle Stock],Vehicle_Stock_Projections[Year],Calculations!R$4,Vehicle_Stock_Projections[Technology Type], $B16, Vehicle_Stock_Projections[Vehicle Type], $A16, Vehicle_Stock_Projections[Scenario], Input_Scenario_Modeled)) -> 6.639593124 | S16: =IF(Input_Scenario_Modeled="Custom", SUMIFS(Custom_Stock_MPG[Vehicle Stock],Custom_Stock_MPG[Year],Calculations!S$4, Custom_Stock_MPG[[ Technology Type]], $B16, Custom_Stock_MPG[Vehicle Type], $A16, Custom_Stock_MPG[Scenario], Input_Scenario_Modeled), SUMIFS(Vehicle_Stock_Projections[Vehicle Stock],Vehicle_Stock_Projections[Year],Calculations!S$4,Vehicle_Stock_Projections[Technology Type], $B16, Vehicle_Stock_Projections[Vehicle Type], $A16, Vehicle_Stock_Projections[Scenario], Input_Scenario_Modeled)) -> 6.16486454 | T16: =IF(Input_Scenario_Modeled="Custom", SUMIFS(Custom_Stock_MPG[Vehicle Stock],Custom_Stock_MPG[Year],Calculations!T$4, Custom_Stock_MPG[[ Technology Type]], $B16, Custom_Stock_MPG[Vehicle Type], $A16, Custom_Stock_MPG[Scenario], Input_Scenario_Modeled), SUMIFS(Vehicle_Stock_Projections[Vehicle Stock],Vehicle_Stock_Projections[Year],Calculations!T$4,Vehicle_Stock_Projections[Technology Type], $B16, Vehicle_Stock_Projections[Vehicle Type], $A16, Vehicle_Stock_Projections[Scenario], Input_Scenario_Modeled)) -> 5.746781349 | U16: =IF(Input_Scenario_Modeled="Custom", SUMIFS(Custom_Stock_MPG[Vehicle Stock],Custom_Stock_MPG[Year],Calculations!U$4, Custom_Stock_MPG[[ Technology Type]], $B16, Custom_Stock_MPG[Vehicle Type], $A16, Custom_Stock_MPG[Scenario], Input_Scenario_Modeled), SUMIFS(Vehicle_Stock_Projections[Vehicle Stock],Vehicle_Stock_Projections[Year],Calculations!U$4,Vehicle_Stock_Projections[Technology Type], $B16, Vehicle_Stock_Projections[Vehicle Type], $A16, Vehicle_Stock_Projections[Scenario], Input_Scenario_Modeled)) -> 5.374775887 | V16: =IF(Input_Scenario_Modeled="Custom", SUMIFS(Custom_Stock_MPG[Vehicle Stock],Custom_Stock_MPG[Year],Calculations!V$4, Custom_Stock_MPG[[ Technology Type]], $B16, Custom_Stock_MPG[Vehicle Type], $A16, Custom_Stock_MPG[Scenario], Input_Scenario_Modeled), SUMIFS(Vehicle_Stock_Projections[Vehicle Stock],Vehicle_Stock_Projections[Year],Calculations!V$4,Vehicle_Stock_Projections[Technology Type], $B16, Vehicle_Stock_Projections[Vehicle Type], $A16, Vehicle_Stock_Projections[Scenario], Input_Scenario_Modeled)) -> 5.04095459 | W16: =IF(Input_Scenario_Modeled="Custom", SUMIFS(Custom_Stock_MPG[Vehicle Stock],Custom_Stock_MPG[Year],Calculations!W$4, Custom_Stock_MPG[[ Technology Type]], $B16, Custom_Stock_MPG[Vehicle Type], $A16, Custom_Stock_MPG[Scenario], Input_Scenario_Modeled), SUMIFS(Vehicle_Stock_Projections[Vehicle Stock],Vehicle_Stock_Projections[Year],Calculations!W$4,Vehicle_Stock_Projections[Technology Type], $B16, Vehicle_Stock_Projections[Vehicle Type], $A16, Vehicle_Stock_Projections[Scenario], Input_Scenario_Modeled)) -> 4.748159409 | X16: =IF(Input_Scenario_Modeled="Custom", SUMIFS(Custom_Stock_MPG[Vehicle Stock],Custom_Stock_MPG[Year],Calculations!X$4, Custom_Stock_MPG[[ Technology Type]], $B16, Custom_Stock_MPG[Vehicle Type], $A16, Custom_Stock_MPG[Scenario], Input_Scenario_Modeled), SUMIFS(Vehicle_Stock_Projections[Vehicle Stock],Vehicle_Stock_Projections[Year],Calculations!X$4,Vehicle_Stock_Projections[Technology Type], $B16, Vehicle_Stock_Projections[Vehicle Type], $A16, Vehicle_Stock_Projections[Scenario], Input_Scenario_Modeled)) -> 4.487841129 | Y16: =IF(Input_Scenario_Modeled="Custom", SUMIFS(Custom_Stock_MPG[Vehicle Stock],Custom_Stock_MPG[Year],Calculations!Y$4, Custom_Stock_MPG[[ Technology Type]], $B16, Custom_Stock_MPG[Vehicle Type], $A16, Custom_Stock_MPG[Scenario], Input_Scenario_Modeled), SUMIFS(Vehicle_Stock_Projections[Vehicle Stock],Vehicle_Stock_Projections[Year],Calculations!Y$4,Vehicle_Stock_Projections[Technology Type], $B16, Vehicle_Stock_Projections[Vehicle Type], $A16, Vehicle_Stock_Projections[Scenario], Input_Scenario_Modeled)) -> 4.257688046 | Z16: =IF(Input_Scenario_Modeled="Custom", SUMIFS(Custom_Stock_MPG[Vehicle Stock],Custom_Stock_MPG[Year],Calculations!Z$4, Custom_Stock_MPG[[ Technology Type]], $B16, Custom_Stock_MPG[Vehicle Type], $A16, Custom_Stock_MPG[Scenario], Input_Scenario_Modeled), SUMIFS(Vehicle_Stock_Projections[Vehicle Stock],Vehicle_Stock_Projections[Year],Calculations!Z$4,Vehicle_Stock_Projections[Technology Type], $B16, Vehicle_Stock_Projections[Vehicle Type], $A16, Vehicle_Stock_Projections[Scenario], Input_Scenario_Modeled)) -> 4.049461365 | AA16: =IF(Input_Scenario_Modeled="Custom", SUMIFS(Custom_Stock_MPG[Vehicle Stock],Custom_Stock_MPG[Year],Calculations!AA$4, Custom_Stock_MPG[[ Technology Type]], $B16, Custom_Stock_MPG[Vehicle Type], $A16, Custom_Stock_MPG[Scenario], Input_Scenario_Modeled), SUMIFS(Vehicle_Stock_Projections[Vehicle Stock],Vehicle_Stock_Projections[Year],Calculations!AA$4,Vehicle_Stock_Projections[Technology Type], $B16, Vehicle_Stock_Projections[Vehicle Type], $A16, Vehicle_Stock_Projections[Scenario], Input_Scenario_Modeled)) -> 3.861275434 | AB16: =IF(Input_Scenario_Modeled="Custom", SUMIFS(Custom_Stock_MPG[Vehicle Stock],Custom_Stock_MPG[Year],Calculations!AB$4, Custom_Stock_MPG[[ Technology Type]], $B16, Custom_Stock_MPG[Vehicle Type], $A16, Custom_Stock_MPG[Scenario], Input_Scenario_Modeled), SUMIFS(Vehicle_Stock_Projections[Vehicle Stock],Vehicle_Stock_Projections[Year],Calculations!AB$4,Vehicle_Stock_Projections[Technology Type], $B16, Vehicle_Stock_Projections[Vehicle Type], $A16, Vehicle_Stock_Projections[Scenario], Input_Scenario_Modeled)) -> 3.686722755 | AC16: =IF(Input_Scenario_Modeled="Custom", SUMIFS(Custom_Stock_MPG[Vehicle Stock],Custom_Stock_MPG[Year],Calculations!AC$4, Custom_Stock_MPG[[ Technology Type]], $B16, Custom_Stock_MPG[Vehicle Type], $A16, Custom_Stock_MPG[Scenario], Input_Scenario_Modeled), SUMIFS(Vehicle_Stock_Projections[Vehicle Stock],Vehicle_Stock_Projections[Year],Calculations!AC$4,Vehicle_Stock_Projections[Technology Type], $B16, Vehicle_Stock_Projections[Vehicle Type], $A16, Vehicle_Stock_Projections[Scenario], Input_Scenario_Modeled)) -> 3.523599625 | AD16: =IF(Input_Scenario_Modeled="Custom", SUMIFS(Custom_Stock_MPG[Vehicle Stock],Custom_Stock_MPG[Year],Calculations!AD$4, Custom_Stock_MPG[[ Technology Type]], $B16, Custom_Stock_MPG[Vehicle Type], $A16, Custom_Stock_MPG[Scenario], Input_Scenario_Modeled), SUMIFS(Vehicle_Stock_Projections[Vehicle Stock],Vehicle_Stock_Projections[Year],Calculations!AD$4,Vehicle_Stock_Projections[Technology Type], $B16, Vehicle_Stock_Projections[Vehicle Type], $A16, Vehicle_Stock_Projections[Scenario], Input_Scenario_Modeled)) -> 3.372008562 | AE16: =IF(Input_Scenario_Modeled="Custom", SUMIFS(Custom_Stock_MPG[Vehicle Stock],Custom_Stock_MPG[Year],Calculations!AE$4, Custom_Stock_MPG[[ Technology Type]], $B16, Custom_Stock_MPG[Vehicle Type], $A16, Custom_Stock_MPG[Scenario], Input_Scenario_Modeled), SUMIFS(Vehicle_Stock_Projections[Vehicle Stock],Vehicle_Stock_Projections[Year],Calculations!AE$4,Vehicle_Stock_Projections[Technology Type], $B16, Vehicle_Stock_Projections[Vehicle Type], $A16, Vehicle_Stock_Projections[Scenario], Input_Scenario_Modeled)) -> 3.230687857 | AF16: =IF(Input_Scenario_Modeled="Custom", SUMIFS(Custom_Stock_MPG[Vehicle Stock],Custom_Stock_MPG[Year],Calculations!AF$4, Custom_Stock_MPG[[ Technology Type]], $B16, Custom_Stock_MPG[Vehicle Type], $A16, Custom_Stock_MPG[Scenario], Input_Scenario_Modeled), SUMIFS(Vehicle_Stock_Projections[Vehicle Stock],Vehicle_Stock_Projections[Year],Calculations!AF$4,Vehicle_Stock_Projections[Technology Type], $B16, Vehicle_Stock_Projections[Vehicle Type], $A16, Vehicle_Stock_Projections[Scenario], Input_Scenario_Modeled)) -> 3.230687857 | AG16: =IF(Input_Scenario_Modeled="Custom", SUMIFS(Custom_Stock_MPG[Vehicle Stock],Custom_Stock_MPG[Year],Calculations!AG$4, Custom_Stock_MPG[[ Technology Type]], $B16, Custom_Stock_MPG[Vehicle Type], $A16, Custom_Stock_MPG[Scenario], Input_Scenario_Modeled), SUMIFS(Vehicle_Stock_Projections[Vehicle Stock],Vehicle_Stock_Projections[Year],Calculations!AG$4,Vehicle_Stock_Projections[Technology Type], $B16, Vehicle_Stock_Projections[Vehicle Type], $A16, Vehicle_Stock_Projections[Scenario], Input_Scenario_Modeled)) -> 3.230687857 | AH16: =IF(Input_Scenario_Modeled="Custom", SUMIFS(Custom_Stock_MPG[Vehicle Stock],Custom_Stock_MPG[Year],Calculations!AH$4, Custom_Stock_MPG[[ Technology Type]], $B16, Custom_Stock_MPG[Vehicle Type], $A16, Custom_Stock_MPG[Scenario], Input_Scenario_Modeled), SUMIFS(Vehicle_Stock_Projections[Vehicle Stock],Vehicle_Stock_Projections[Year],Calculations!AH$4,Vehicle_Stock_Projections[Technology Type], $B16, Vehicle_Stock_Projections[Vehicle Type], $A16, Vehicle_Stock_Projections[Scenario], Input_Scenario_Modeled)) -> 3.230687857 | AI16: =IF(Input_Scenario_Modeled="Custom", SUMIFS(Custom_Stock_MPG[Vehicle Stock],Custom_Stock_MPG[Year],Calculations!AI$4, Custom_Stock_MPG[[ Technology Type]], $B16, Custom_Stock_MPG[Vehicle Type], $A16, Custom_Stock_MPG[Scenario], Input_Scenario_Modeled), SUMIFS(Vehicle_Stock_Projections[Vehicle Stock],Vehicle_Stock_Projections[Year],Calculations!AI$4,Vehicle_Stock_Projections[Technology Type], $B16, Vehicle_Stock_Projections[Vehicle Type], $A16, Vehicle_Stock_Projections[Scenario], Input_Scenario_Modeled)) -> 3.230687857 | AJ16: =IF(Input_Scenario_Modeled="Custom", SUMIFS(Custom_Stock_MPG[Vehicle Stock],Custom_Stock_MPG[Year],Calculations!AJ$4, Custom_Stock_MPG[[ Technology Type]], $B16, Custom_Stock_MPG[Vehicle Type], $A16, Custom_Stock_MPG[Scenario], Input_Scenario_Modeled), SUMIFS(Vehicle_Stock_Projections[Vehicle Stock],Vehicle_Stock_Projections[Year],Calculations!AJ$4,Vehicle_Stock_Projections[Technology Type], $B16, Vehicle_Stock_Projections[Vehicle Type], $A16, Vehicle_Stock_Projections[Scenario], Input_Scenario_Modeled)) -> 3.230687857
A17: Light Trucks | B17: Electric-Gasoline Hybrid | C17: Gasoline | D17: Stock | E17: =IF(Input_Scenario_Modeled="Custom", SUMIFS(Custom_Stock_MPG[Vehicle Stock],Custom_Stock_MPG[Year],Calculations!E$4, Custom_Stock_MPG[[ Technology Type]], $B17, Custom_Stock_MPG[Vehicle Type], $A17, Custom_Stock_MPG[Scenario], Input_Scenario_Modeled), SUMIFS(Vehicle_Stock_Projections[Vehicle Stock],Vehicle_Stock_Projections[Year],Calculations!E$4,Vehicle_Stock_Projections[Technology Type], $B17, Vehicle_Stock_Projections[Vehicle Type], $A17, Vehicle_Stock_Projections[Scenario], Input_Scenario_Modeled)) -> 3.34868741 | F17: =IF(Input_Scenario_Modeled="Custom", SUMIFS(Custom_Stock_MPG[Vehicle Stock],Custom_Stock_MPG[Year],Calculations!F$4, Custom_Stock_MPG[[ Technology Type]], $B17, Custom_Stock_MPG[Vehicle Type], $A17, Custom_Stock_MPG[Scenario], Input_Scenario_Modeled), SUMIFS(Vehicle_Stock_Projections[Vehicle Stock],Vehicle_Stock_Projections[Year],Calculations!F$4,Vehicle_Stock_Projections[Technology Type], $B17, Vehicle_Stock_Projections[Vehicle Type], $A17, Vehicle_Stock_Projections[Scenario], Input_Scenario_Modeled)) -> 4.167573452 | G17: =IF(Input_Scenario_Modeled="Custom", SUMIFS(Custom_Stock_MPG[Vehicle Stock],Custom_Stock_MPG[Year],Calculations!G$4, Custom_Stock_MPG[[ Technology Type]], $B17, Custom_Stock_MPG[Vehicle Type], $A17, Custom_Stock_MPG[Scenario], Input_Scenario_Modeled), SUMIFS(Vehicle_Stock_Projections[Vehicle Stock],Vehicle_Stock_Projections[Year],Calculations!G$4,Vehicle_Stock_Projections[Technology Type], $B17, Vehicle_Stock_Projections[Vehicle Type], $A17, Vehicle_Stock_Projections[Scenario], Input_Scenario_Modeled)) -> 5.030216217 | H17: =IF(Input_Scenario_Modeled="Custom", SUMIFS(Custom_Stock_MPG[Vehicle Stock],Custom_Stock_MPG[Year],Calculations!H$4, Custom_Stock_MPG[[ Technology Type]], $B17, Custom_Stock_MPG[Vehicle Type], $A17, Custom_Stock_MPG[Scenario], Input_Scenario_Modeled), SUMIFS(Vehicle_Stock_Projections[Vehicle Stock],Vehicle_Stock_Projections[Year],Calculations!H$4,Vehicle_Stock_Projections[Technology Type], $B17, Vehicle_Stock_Projections[Vehicle Type], $A17, Vehicle_Stock_Projections[Scenario], Input_Scenario_Modeled)) -> 5.801520348 | I17: =IF(Input_Scenario_Modeled="Custom", SUMIFS(Custom_Stock_MPG[Vehicle Stock],Custom_Stock_MPG[Year],Calculations!I$4, Custom_Stock_MPG[[ Technology Type]], $B17, Custom_Stock_MPG[Vehicle Type], $A17, Custom_Stock_MPG[Scenario], Input_Scenario_Modeled), SUMIFS(Vehicle_Stock_Projections[Vehicle Stock],Vehicle_Stock_Projections[Year],Calculations!I$4,Vehicle_Stock_Projections[Technology Type], $B17, Vehicle_Stock_Projections[Vehicle Type], $A17, Vehicle_Stock_Projections[Scenario], Input_Scenario_Modeled)) -> 6.455239773 | J17: =IF(Input_Scenario_Modeled="Custom", SUMIFS(Custom_Stock_MPG[Vehicle Stock],Custom_Stock_MPG[Year],Calculations!J$4, Custom_Stock_MPG[[ Technology Type]], $B17, Custom_Stock_MPG[Vehicle Type], $A17, Custom_Stock_MPG[Scenario], Input_Scenario_Modeled), SUMIFS(Vehicle_Stock_Projections[Vehicle Stock],Vehicle_Stock_Projections[Year],Calculations!J$4,Vehicle_Stock_Projections[Technology Type], $B17, Vehicle_Stock_Projections[Vehicle Type], $A17, Vehicle_Stock_Projections[Scenario], Input_Scenario_Modeled)) -> 7.192704201 | K17: =IF(Input_Scenario_Modeled="Custom", SUMIFS(Custom_Stock_MPG[Vehicle Stock],Custom_Stock_MPG[Year],Calculations!K$4, Custom_Stock_MPG[[ Technology Type]], $B17, Custom_Stock_MPG[Vehicle Type], $A17, Custom_Stock_MPG[Scenario], Input_Scenario_Modeled), SUMIFS(Vehicle_Stock_Projections[Vehicle Stock],Vehicle_Stock_Projections[Year],Calculations!K$4,Vehicle_Stock_Projections[Technology Type], $B17, Vehicle_Stock_Projections[Vehicle Type], $A17, Vehicle_Stock_Projections[Scenario], Input_Scenario_Modeled)) -> 7.890523434 | L17: =IF(Input_Scenario_Modeled="Custom", SUMIFS(Custom_Stock_MPG[Vehicle Stock],Custom_Stock_MPG[Year],Calculations!L$4, Custom_Stock_MPG[[ Technology Type]], $B17, Custom_Stock_MPG[Vehicle Type], $A17, Custom_Stock_MPG[Scenario], Input_Scenario_Modeled), SUMIFS(Vehicle_Stock_Projections[Vehicle Stock],Vehicle_Stock_Projections[Year],Calculations!L$4,Vehicle_Stock_Projections[Technology Type], $B17, Vehicle_Stock_Projections[Vehicle Type], $A17, Vehicle_Stock_Projections[Scenario], Input_Scenario_Modeled)) -> 8.550024033 | M17: =IF(Input_Scenario_Modeled="Custom", SUMIFS(Custom_Stock_MPG[Vehicle Stock],Custom_Stock_MPG[Year],Calculations!M$4, Custom_Stock_MPG[[ Technology Type]], $B17, Custom_Stock_MPG[Vehicle Type], $A17, Custom_Stock_MPG[Scenario], Input_Scenario_Modeled), SUMIFS(Vehicle_Stock_Projections[Vehicle Stock],Vehicle_Stock_Projections[Year],Calculations!M$4,Vehicle_Stock_Projections[Technology Type], $B17, Vehicle_Stock_Projections[Vehicle Type], $A17, Vehicle_Stock_Projections[Scenario], Input_Scenario_Modeled)) -> 9.120548248 | N17: =IF(Input_Scenario_Modeled="Custom", SUMIFS(Custom_Stock_MPG[Vehicle Stock],Custom_Stock_MPG[Year],Calculations!N$4, Custom_Stock_MPG[[ Technology Type]], $B17, Custom_Stock_MPG[Vehicle Type], $A17, Custom_Stock_MPG[Scenario], Input_Scenario_Modeled), SUMIFS(Vehicle_Stock_Projections[Vehicle Stock],Vehicle_Stock_Projections[Year],Calculations!N$4,Vehicle_Stock_Projections[Technology Type], $B17, Vehicle_Stock_Projections[Vehicle Type], $A17, Vehicle_Stock_Projections[Scenario], Input_Scenario_Modeled)) -> 9.863594055 | O17: =IF(Input_Scenario_Modeled="Custom", SUMIFS(Custom_Stock_MPG[Vehicle Stock],Custom_Stock_MPG[Year],Calculations!O$4, Custom_Stock_MPG[[ Technology Type]], $B17, Custom_Stock_MPG[Vehicle Type], $A17, Custom_Stock_MPG[Scenario], Input_Scenario_Modeled), SUMIFS(Vehicle_Stock_Projections[Vehicle Stock],Vehicle_Stock_Projections[Year],Calculations!O$4,Vehicle_Stock_Projections[Technology Type], $B17, Vehicle_Stock_Projections[Vehicle Type], $A17, Vehicle_Stock_Projections[Scenario], Input_Scenario_Modeled)) -> 10.55363846 | P17: =IF(Input_Scenario_Modeled="Custom", SUMIFS(Custom_Stock_MPG[Vehicle Stock],Custom_Stock_MPG[Year],Calculations!P$4, Custom_Stock_MPG[[ Technology Type]], $B17, Custom_Stock_MPG[Vehicle Type], $A17, Custom_Stock_MPG[Scenario], Input_Scenario_Modeled), SUMIFS(Vehicle_Stock_Projections[Vehicle Stock],Vehicle_Stock_Projections[Year],Calculations!P$4,Vehicle_Stock_Projections[Technology Type], $B17, Vehicle_Stock_Projections[Vehicle Type], $A17, Vehicle_Stock_Projections[Scenario], Input_Scenario_Modeled)) -> 11.21006203 | Q17: =IF(Input_Scenario_Modeled="Custom", SUMIFS(Custom_Stock_MPG[Vehicle Stock],Custom_Stock_MPG[Year],Calculations!Q$4, Custom_Stock_MPG[[ Technology Type]], $B17, Custom_Stock_MPG[Vehicle Type], $A17, Custom_Stock_MPG[Scenario], Input_Scenario_Modeled), SUMIFS(Vehicle_Stock_Projections[Vehicle Stock],Vehicle_Stock_Projections[Year],Calculations!Q$4,Vehicle_Stock_Projections[Technology Type], $B17, Vehicle_Stock_Projections[Vehicle Type], $A17, Vehicle_Stock_Projections[Scenario], Input_Scenario_Modeled)) -> 11.83219814 | R17: =IF(Input_Scenario_Modeled="Custom", SUMIFS(Custom_Stock_MPG[Vehicle Stock],Custom_Stock_MPG[Year],Calculations!R$4, Custom_Stock_MPG[[ Technology Type]], $B17, Custom_Stock_MPG[Vehicle Type], $A17, Custom_Stock_MPG[Scenario], Input_Scenario_Modeled), SUMIFS(Vehicle_Stock_Projections[Vehicle Stock],Vehicle_Stock_Projections[Year],Calculations!R$4,Vehicle_Stock_Projections[Technology Type], $B17, Vehicle_Stock_Projections[Vehicle Type], $A17, Vehicle_Stock_Projections[Scenario], Input_Scenario_Modeled)) -> 12.42428493 | S17: =IF(Input_Scenario_Modeled="Custom", SUMIFS(Custom_Stock_MPG[Vehicle Stock],Custom_Stock_MPG[Year],Calculations!S$4, Custom_Stock_MPG[[ Technology Type]], $B17, Custom_Stock_MPG[Vehicle Type], $A17, Custom_Stock_MPG[Scenario], Input_Scenario_Modeled), SUMIFS(Vehicle_Stock_Projections[Vehicle Stock],Vehicle_Stock_Projections[Year],Calculations!S$4,Vehicle_Stock_Projections[Technology Type], $B17, Vehicle_Stock_Projections[Vehicle Type], $A17, Vehicle_Stock_Projections[Scenario], Input_Scenario_Modeled)) -> 12.98832703 | T17: =IF(Input_Scenario_Modeled="Custom", SUMIFS(Custom_Stock_MPG[Vehicle Stock],Custom_Stock_MPG[Year],Calculations!T$4, Custom_Stock_MPG[[ Technology Type]], $B17, Custom_Stock_MPG[Vehicle Type], $A17, Custom_Stock_MPG[Scenario], Input_Scenario_Modeled), SUMIFS(Vehicle_Stock_Projections[Vehicle Stock],Vehicle_Stock_Projections[Year],Calculations!T$4,Vehicle_Stock_Projections[Technology Type], $B17, Vehicle_Stock_Projections[Vehicle Type], $A17, Vehicle_Stock_Projections[Scenario], Input_Scenario_Modeled)) -> 13.52061081 | U17: =IF(Input_Scenario_Modeled="Custom", SUMIFS(Custom_Stock_MPG[Vehicle Stock],Custom_Stock_MPG[Year],Calculations!U$4, Custom_Stock_MPG[[ Technology Type]], $B17, Custom_Stock_MPG[Vehicle Type], $A17, Custom_Stock_MPG[Scenario], Input_Scenario_Modeled), SUMIFS(Vehicle_Stock_Projections[Vehicle Stock],Vehicle_Stock_Projections[Year],Calculations!U$4,Vehicle_Stock_Projections[Technology Type], $B17, Vehicle_Stock_Projections[Vehicle Type], $A17, Vehicle_Stock_Projections[Scenario], Input_Scenario_Modeled)) -> 14.01706791 | V17: =IF(Input_Scenario_Modeled="Custom", SUMIFS(Custom_Stock_MPG[Vehicle Stock],Custom_Stock_MPG[Year],Calculations!V$4, Custom_Stock_MPG[[ Technology Type]], $B17, Custom_Stock_MPG[Vehicle Type], $A17, Custom_Stock_MPG[Scenario], Input_Scenario_Modeled), SUMIFS(Vehicle_Stock_Projections[Vehicle Stock],Vehicle_Stock_Projections[Year],Calculations!V$4,Vehicle_Stock_Projections[Technology Type], $B17, Vehicle_Stock_Projections[Vehicle Type], $A17, Vehicle_Stock_Projections[Scenario], Input_Scenario_Modeled)) -> 14.46354771 | W17: =IF(Input_Scenario_Modeled="Custom", SUMIFS(Custom_Stock_MPG[Vehicle Stock],Custom_Stock_MPG[Year],Calculations!W$4, Custom_Stock_MPG[[ Technology Type]], $B17, Custom_Stock_MPG[Vehicle Type], $A17, Custom_Stock_MPG[Scenario], Input_Scenario_Modeled), SUMIFS(Vehicle_Stock_Projections[Vehicle Stock],Vehicle_Stock_Projections[Year],Calculations!W$4,Vehicle_Stock_Projections[Technology Type], $B17, Vehicle_Stock_Projections[Vehicle Type], $A17, Vehicle_Stock_Projections[Scenario], Input_Scenario_Modeled)) -> 14.87388515 | X17: =IF(Input_Scenario_Modeled="Custom", SUMIFS(Custom_Stock_MPG[Vehicle Stock],Custom_Stock_MPG[Year],Calculations!X$4, Custom_Stock_MPG[[ Technology Type]], $B17, Custom_Stock_MPG[Vehicle Type], $A17, Custom_Stock_MPG[Scenario], Input_Scenario_Modeled), SUMIFS(Vehicle_Stock_Projections[Vehicle Stock],Vehicle_Stock_Projections[Year],Calculations!X$4,Vehicle_Stock_Projections[Technology Type], $B17, Vehicle_Stock_Projections[Vehicle Type], $A17, Vehicle_Stock_Projections[Scenario], Input_Scenario_Modeled)) -> 15.24745464 | Y17: =IF(Input_Scenario_Modeled="Custom", SUMIFS(Custom_Stock_MPG[Vehicle Stock],Custom_Stock_MPG[Year],Calculations!Y$4, Custom_Stock_MPG[[ Technology Type]], $B17, Custom_Stock_MPG[Vehicle Type], $A17, Custom_Stock_MPG[Scenario], Input_Scenario_Modeled), SUMIFS(Vehicle_Stock_Projections[Vehicle Stock],Vehicle_Stock_Projections[Year],Calculations!Y$4,Vehicle_Stock_Projections[Technology Type], $B17, Vehicle_Stock_Projections[Vehicle Type], $A17, Vehicle_Stock_Projections[Scenario], Input_Scenario_Modeled)) -> 15.61030674 | Z17: =IF(Input_Scenario_Modeled="Custom", SUMIFS(Custom_Stock_MPG[Vehicle Stock],Custom_Stock_MPG[Year],Calculations!Z$4, Custom_Stock_MPG[[ Technology Type]], $B17, Custom_Stock_MPG[Vehicle Type], $A17, Custom_Stock_MPG[Scenario], Input_Scenario_Modeled), SUMIFS(Vehicle_Stock_Projections[Vehicle Stock],Vehicle_Stock_Projections[Year],Calculations!Z$4,Vehicle_Stock_Projections[Technology Type], $B17, Vehicle_Stock_Projections[Vehicle Type], $A17, Vehicle_Stock_Projections[Scenario], Input_Scenario_Modeled)) -> 15.93787861 | AA17: =IF(Input_Scenario_Modeled="Custom", SUMIFS(Custom_Stock_MPG[Vehicle Stock],Custom_Stock_MPG[Year],Calculations!AA$4, Custom_Stock_MPG[[ Technology Type]], $B17, Custom_Stock_MPG[Vehicle Type], $A17, Custom_Stock_MPG[Scenario], Input_Scenario_Modeled), SUMIFS(Vehicle_Stock_Projections[Vehicle Stock],Vehicle_Stock_Projections[Year],Calculations!AA$4,Vehicle_Stock_Projections[Technology Type], $B17, Vehicle_Stock_Projections[Vehicle Type], $A17, Vehicle_Stock_Projections[Scenario], Input_Scenario_Modeled)) -> 16.25078011 | AB17: =IF(Input_Scenario_Modeled="Custom", SUMIFS(Custom_Stock_MPG[Vehicle Stock],Custom_Stock_MPG[Year],Calculations!AB$4, Custom_Stock_MPG[[ Technology Type]], $B17, Custom_Stock_MPG[Vehicle Type], $A17, Custom_Stock_MPG[Scenario], Input_Scenario_Modeled), SUMIFS(Vehicle_Stock_Projections[Vehicle Stock],Vehicle_Stock_Projections[Year],Calculations!AB$4,Vehicle_Stock_Projections[Technology Type], $B17, Vehicle_Stock_Projections[Vehicle Type], $A17, Vehicle_Stock_Projections[Scenario], Input_Scenario_Modeled)) -> 16.53262901 | AC17: =IF(Input_Scenario_Modeled="Custom", SUMIFS(Custom_Stock_MPG[Vehicle Stock],Custom_Stock_MPG[Year],Calculations!AC$4, Custom_Stock_MPG[[ Technology Type]], $B17, Custom_Stock_MPG[Vehicle Type], $A17, Custom_Stock_MPG[Scenario], Input_Scenario_Modeled), SUMIFS(Vehicle_Stock_Projections[Vehicle Stock],Vehicle_Stock_Projections[Year],Calculations!AC$4,Vehicle_Stock_Projections[Technology Type], $B17, Vehicle_Stock_Projections[Vehicle Type], $A17, Vehicle_Stock_Projections[Scenario], Input_Scenario_Modeled)) -> 16.79984283 | AD17: =IF(Input_Scenario_Modeled="Custom", SUMIFS(Custom_Stock_MPG[Vehicle Stock],Custom_Stock_MPG[Year],Calculations!AD$4, Custom_Stock_MPG[[ Technology Type]], $B17, Custom_Stock_MPG[Vehicle Type], $A17, Custom_Stock_MPG[Scenario], Input_Scenario_Modeled), SUMIFS(Vehicle_Stock_Projections[Vehicle Stock],Vehicle_Stock_Projections[Year],Calculations!AD$4,Vehicle_Stock_Projections[Technology Type], $B17, Vehicle_Stock_Projections[Vehicle Type], $A17, Vehicle_Stock_Projections[Scenario], Input_Scenario_Modeled)) -> 17.05297852 | AE17: =IF(Input_Scenario_Modeled="Custom", SUMIFS(Custom_Stock_MPG[Vehicle Stock],Custom_Stock_MPG[Year],Calculations!AE$4, Custom_Stock_MPG[[ Technology Type]], $B17, Custom_Stock_MPG[Vehicle Type], $A17, Custom_Stock_MPG[Scenario], Input_Scenario_Modeled), SUMIFS(Vehicle_Stock_Projections[Vehicle Stock],Vehicle_Stock_Projections[Year],Calculations!AE$4,Vehicle_Stock_Projections[Technology Type], $B17, Vehicle_Stock_Projections[Vehicle Type], $A17, Vehicle_Stock_Projections[Scenario], Input_Scenario_Modeled)) -> 17.29035187 | AF17: =IF(Input_Scenario_Modeled="Custom", SUMIFS(Custom_Stock_MPG[Vehicle Stock],Custom_Stock_MPG[Year],Calculations!AF$4, Custom_Stock_MPG[[ Technology Type]], $B17, Custom_Stock_MPG[Vehicle Type], $A17, Custom_Stock_MPG[Scenario], Input_Scenario_Modeled), SUMIFS(Vehicle_Stock_Projections[Vehicle Stock],Vehicle_Stock_Projections[Year],Calculations!AF$4,Vehicle_Stock_Projections[Technology Type], $B17, Vehicle_Stock_Projections[Vehicle Type], $A17, Vehicle_Stock_Projections[Scenario], Input_Scenario_Modeled)) -> 17.29035187 | AG17: =IF(Input_Scenario_Modeled="Custom", SUMIFS(Custom_Stock_MPG[Vehicle Stock],Custom_Stock_MPG[Year],Calculations!AG$4, Custom_Stock_MPG[[ Technology Type]], $B17, Custom_Stock_MPG[Vehicle Type], $A17, Custom_Stock_MPG[Scenario], Input_Scenario_Modeled), SUMIFS(Vehicle_Stock_Projections[Vehicle Stock],Vehicle_Stock_Projections[Year],Calculations!AG$4,Vehicle_Stock_Projections[Technology Type], $B17, Vehicle_Stock_Projections[Vehicle Type], $A17, Vehicle_Stock_Projections[Scenario], Input_Scenario_Modeled)) -> 17.29035187 | AH17: =IF(Input_Scenario_Modeled="Custom", SUMIFS(Custom_Stock_MPG[Vehicle Stock],Custom_Stock_MPG[Year],Calculations!AH$4, Custom_Stock_MPG[[ Technology Type]], $B17, Custom_Stock_MPG[Vehicle Type], $A17, Custom_Stock_MPG[Scenario], Input_Scenario_Modeled), SUMIFS(Vehicle_Stock_Projections[Vehicle Stock],Vehicle_Stock_Projections[Year],Calculations!AH$4,Vehicle_Stock_Projections[Technology Type], $B17, Vehicle_Stock_Projections[Vehicle Type], $A17, Vehicle_Stock_Projections[Scenario], Input_Scenario_Modeled)) -> 17.29035187 | AI17: =IF(Input_Scenario_Modeled="Custom", SUMIFS(Custom_Stock_MPG[Vehicle Stock],Custom_Stock_MPG[Year],Calculations!AI$4, Custom_Stock_MPG[[ Technology Type]], $B17, Custom_Stock_MPG[Vehicle Type], $A17, Custom_Stock_MPG[Scenario], Input_Scenario_Modeled), SUMIFS(Vehicle_Stock_Projections[Vehicle Stock],Vehicle_Stock_Projections[Year],Calculations!AI$4,Vehicle_Stock_Projections[Technology Type], $B17, Vehicle_Stock_Projections[Vehicle Type], $A17, Vehicle_Stock_Projections[Scenario], Input_Scenario_Modeled)) -> 17.29035187 | AJ17: =IF(Input_Scenario_Modeled="Custom", SUMIFS(Custom_Stock_MPG[Vehicle Stock],Custom_Stock_MPG[Year],Calculations!AJ$4, Custom_Stock_MPG[[ Technology Type]], $B17, Custom_Stock_MPG[Vehicle Type], $A17, Custom_Stock_MPG[Scenario], Input_Scenario_Modeled), SUMIFS(Vehicle_Stock_Projections[Vehicle Stock],Vehicle_Stock_Projections[Year],Calculations!AJ$4,Vehicle_Stock_Projections[Technology Type], $B17, Vehicle_Stock_Projections[Vehicle Type], $A17, Vehicle_Stock_Projections[Scenario], Input_Scenario_Modeled)) -> 17.29035187
A18: Light Trucks | B18: TDI Diesel ICE | C18: Diesel | D18: Stock | E18: =IF(Input_Scenario_Modeled="Custom", SUMIFS(Custom_Stock_MPG[Vehicle Stock],Custom_Stock_MPG[Year],Calculations!E$4, Custom_Stock_MPG[[ Technology Type]], $B18, Custom_Stock_MPG[Vehicle Type], $A18, Custom_Stock_MPG[Scenario], Input_Scenario_Modeled), SUMIFS(Vehicle_Stock_Projections[Vehicle Stock],Vehicle_Stock_Projections[Year],Calculations!E$4,Vehicle_Stock_Projections[Technology Type], $B18, Vehicle_Stock_Projections[Vehicle Type], $A18, Vehicle_Stock_Projections[Scenario], Input_Scenario_Modeled)) -> 1.07142961 | F18: =IF(Input_Scenario_Modeled="Custom", SUMIFS(Custom_Stock_MPG[Vehicle Stock],Custom_Stock_MPG[Year],Calculations!F$4, Custom_Stock_MPG[[ Technology Type]], $B18, Custom_Stock_MPG[Vehicle Type], $A18, Custom_Stock_MPG[Scenario], Input_Scenario_Modeled), SUMIFS(Vehicle_Stock_Projections[Vehicle Stock],Vehicle_Stock_Projections[Year],Calculations!F$4,Vehicle_Stock_Projections[Technology Type], $B18, Vehicle_Stock_Projections[Vehicle Type], $A18, Vehicle_Stock_Projections[Scenario], Input_Scenario_Modeled)) -> 1.191282034 | G18: =IF(Input_Scenario_Modeled="Custom", SUMIFS(Custom_Stock_MPG[Vehicle Stock],Custom_Stock_MPG[Year],Calculations!G$4, Custom_Stock_MPG[[ Technology Type]], $B18, Custom_Stock_MPG[Vehicle Type], $A18, Custom_Stock_MPG[Scenario], Input_Scenario_Modeled), SUMIFS(Vehicle_Stock_Projections[Vehicle Stock],Vehicle_Stock_Projections[Year],Calculations!G$4,Vehicle_Stock_Projections[Technology Type], $B18, Vehicle_Stock_Projections[Vehicle Type], $A18, Vehicle_Stock_Projections[Scenario], Input_Scenario_Modeled)) -> 1.258091211 | H18: =IF(Input_Scenario_Modeled="Custom", SUMIFS(Custom_Stock_MPG[Vehicle Stock],Custom_Stock_MPG[Year],Calculations!H$4, Custom_Stock_MPG[[ Technology Type]], $B18, Custom_Stock_MPG[Vehicle Type], $A18, Custom_Stock_MPG[Scenario], Input_Scenario_Modeled), SUMIFS(Vehicle_Stock_Projections[Vehicle Stock],Vehicle_Stock_Projections[Year],Calculations!H$4,Vehicle_Stock_Projections[Technology Type], $B18, Vehicle_Stock_Projections[Vehicle Type], $A18, Vehicle_Stock_Projections[Scenario], Input_Scenario_Modeled)) -> 1.294715285 | I18: =IF(Input_Scenario_Modeled="Custom", SUMIFS(Custom_Stock_MPG[Vehicle Stock],Custom_Stock_MPG[Year],Calculations!I$4, Custom_Stock_MPG[[ Technology Type]], $B18, Custom_Stock_MPG[Vehicle Type], $A18, Custom_Stock_MPG[Scenario], Input_Scenario_Modeled), SUMIFS(Vehicle_Stock_Projections[Vehicle Stock],Vehicle_Stock_Projections[Year],Calculations!I$4,Vehicle_Stock_Projections[Technology Type], $B18, Vehicle_Stock_Projections[Vehicle Type], $A18, Vehicle_Stock_Projections[Scenario], Input_Scenario_Modeled)) -> 1.315607309 | J18: =IF(Input_Scenario_Modeled="Custom", SUMIFS(Custom_Stock_MPG[Vehicle Stock],Custom_Stock_MPG[Year],Calculations!J$4, Custom_Stock_MPG[[ Technology Type]], $B18, Custom_Stock_MPG[Vehicle Type], $A18, Custom_Stock_MPG[Scenario], Input_Scenario_Modeled), SUMIFS(Vehicle_Stock_Projections[Vehicle Stock],Vehicle_Stock_Projections[Year],Calculations!J$4,Vehicle_Stock_Projections[Technology Type], $B18, Vehicle_Stock_Projections[Vehicle Type], $A18, Vehicle_Stock_Projections[Scenario], Input_Scenario_Modeled)) -> 1.328090906 | K18: =IF(Input_Scenario_Modeled="Custom", SUMIFS(Custom_Stock_MPG[Vehicle Stock],Custom_Stock_MPG[Year],Calculations!K$4, Custom_Stock_MPG[[ Technology Type]], $B18, Custom_Stock_MPG[Vehicle Type], $A18, Custom_Stock_MPG[Scenario], Input_Scenario_Modeled), SUMIFS(Vehicle_Stock_Projections[Vehicle Stock],Vehicle_Stock_Projections[Year],Calculations!K$4,Vehicle_Stock_Projections[Technology Type], $B18, Vehicle_Stock_Projections[Vehicle Type], $A18, Vehicle_Stock_Projections[Scenario], Input_Scenario_Modeled)) -> 1.329325318 | L18: =IF(Input_Scenario_Modeled="Custom", SUMIFS(Custom_Stock_MPG[Vehicle Stock],Custom_Stock_MPG[Year],Calculations!L$4, Custom_Stock_MPG[[ Technology Type]], $B18, Custom_Stock_MPG[Vehicle Type], $A18, Custom_Stock_MPG[Scenario], Input_Scenario_Modeled), SUMIFS(Vehicle_Stock_Projections[Vehicle Stock],Vehicle_Stock_Projections[Year],Calculations!L$4,Vehicle_Stock_Projections[Technology Type], $B18, Vehicle_Stock_Projections[Vehicle Type], $A18, Vehicle_Stock_Projections[Scenario], Input_Scenario_Modeled)) -> 1.325343132 | M18: =IF(Input_Scenario_Modeled="Custom", SUMIFS(Custom_Stock_MPG[Vehicle Stock],Custom_Stock_MPG[Year],Calculations!M$4, Custom_Stock_MPG[[ Technology Type]], $B18, Custom_Stock_MPG[Vehicle Type], $A18, Custom_Stock_MPG[Scenario], Input_Scenario_Modeled), SUMIFS(Vehicle_Stock_Projections[Vehicle Stock],Vehicle_Stock_Projections[Year],Calculations!M$4,Vehicle_Stock_Projections[Technology Type], $B18, Vehicle_Stock_Projections[Vehicle Type], $A18, Vehicle_Stock_Projections[Scenario], Input_Scenario_Modeled)) -> 1.316824555 | N18: =IF(Input_Scenario_Modeled="Custom", SUMIFS(Custom_Stock_MPG[Vehicle Stock],Custom_Stock_MPG[Year],Calculations!N$4, Custom_Stock_MPG[[ Technology Type]], $B18, Custom_Stock_MPG[Vehicle Type], $A18, Custom_Stock_MPG[Scenario], Input_Scenario_Modeled), SUMIFS(Vehicle_Stock_Projections[Vehicle Stock],Vehicle_Stock_Projections[Year],Calculations!N$4,Vehicle_Stock_Projections[Technology Type], $B18, Vehicle_Stock_Projections[Vehicle Type], $A18, Vehicle_Stock_Projections[Scenario], Input_Scenario_Modeled)) -> 1.306490541 | O18: =IF(Input_Scenario_Modeled="Custom", SUMIFS(Custom_Stock_MPG[Vehicle Stock],Custom_Stock_MPG[Year],Calculations!O$4, Custom_Stock_MPG[[ Technology Type]], $B18, Custom_Stock_MPG[Vehicle Type], $A18, Custom_Stock_MPG[Scenario], Input_Scenario_Modeled), SUMIFS(Vehicle_Stock_Projections[Vehicle Stock],Vehicle_Stock_Projections[Year],Calculations!O$4,Vehicle_Stock_Projections[Technology Type], $B18, Vehicle_Stock_Projections[Vehicle Type], $A18, Vehicle_Stock_Projections[Scenario], Input_Scenario_Modeled)) -> 1.292669415 | P18: =IF(Input_Scenario_Modeled="Custom", SUMIFS(Custom_Stock_MPG[Vehicle Stock],Custom_Stock_MPG[Year],Calculations!P$4, Custom_Stock_MPG[[ Technology Type]], $B18, Custom_Stock_MPG[Vehicle Type], $A18, Custom_Stock_MPG[Scenario], Input_Scenario_Modeled), SUMIFS(Vehicle_Stock_Projections[Vehicle Stock],Vehicle_Stock_Projections[Year],Calculations!P$4,Vehicle_Stock_Projections[Technology Type], $B18, Vehicle_Stock_Projections[Vehicle Type], $A18, Vehicle_Stock_Projections[Scenario], Input_Scenario_Modeled)) -> 1.275192857 | Q18: =IF(Input_Scenario_Modeled="Custom", SUMIFS(Custom_Stock_MPG[Vehicle Stock],Custom_Stock_MPG[Year],Calculations!Q$4, Custom_Stock_MPG[[ Technology Type]], $B18, Custom_Stock_MPG[Vehicle Type], $A18, Custom_Stock_MPG[Scenario], Input_Scenario_Modeled), SUMIFS(Vehicle_Stock_Projections[Vehicle Stock],Vehicle_Stock_Projections[Year],Calculations!Q$4,Vehicle_Stock_Projections[Technology Type], $B18, Vehicle_Stock_Projections[Vehicle Type], $A18, Vehicle_Stock_Projections[Scenario], Input_Scenario_Modeled)) -> 1.254189014 | R18: =IF(Input_Scenario_Modeled="Custom", SUMIFS(Custom_Stock_MPG[Vehicle Stock],Custom_Stock_MPG[Year],Calculations!R$4, Custom_Stock_MPG[[ Technology Type]], $B18, Custom_Stock_MPG[Vehicle Type], $A18, Custom_Stock_MPG[Scenario], Input_Scenario_Modeled), SUMIFS(Vehicle_Stock_Projections[Vehicle Stock],Vehicle_Stock_Projections[Year],Calculations!R$4,Vehicle_Stock_Projections[Technology Type], $B18, Vehicle_Stock_Projections[Vehicle Type], $A18, Vehicle_Stock_Projections[Scenario], Input_Scenario_Modeled)) -> 1.230451822 | S18: =IF(Input_Scenario_Modeled="Custom", SUMIFS(Custom_Stock_MPG[Vehicle Stock],Custom_Stock_MPG[Year],Calculations!S$4, Custom_Stock_MPG[[ Technology Type]], $B18, Custom_Stock_MPG[Vehicle Type], $A18, Custom_Stock_MPG[Scenario], Input_Scenario_Modeled), SUMIFS(Vehicle_Stock_Projections[Vehicle Stock],Vehicle_Stock_Projections[Year],Calculations!S$4,Vehicle_Stock_Projections[Technology Type], $B18, Vehicle_Stock_Projections[Vehicle Type], $A18, Vehicle_Stock_Projections[Scenario], Input_Scenario_Modeled)) -> 1.204362631 | T18: =IF(Input_Scenario_Modeled="Custom", SUMIFS(Custom_Stock_MPG[Vehicle Stock],Custom_Stock_MPG[Year],Calculations!T$4, Custom_Stock_MPG[[ Technology Type]], $B18, Custom_Stock_MPG[Vehicle Type], $A18, Custom_Stock_MPG[Scenario], Input_Scenario_Modeled), SUMIFS(Vehicle_Stock_Projections[Vehicle Stock],Vehicle_Stock_Projections[Year],Calculations!T$4,Vehicle_Stock_Projections[Technology Type], $B18, Vehicle_Stock_Projections[Vehicle Type], $A18, Vehicle_Stock_Projections[Scenario], Input_Scenario_Modeled)) -> 1.177157521 | U18: =IF(Input_Scenario_Modeled="Custom", SUMIFS(Custom_Stock_MPG[Vehicle Stock],Custom_Stock_MPG[Year],Calculations!U$4, Custom_Stock_MPG[[ Technology Type]], $B18, Custom_Stock_MPG[Vehicle Type], $A18, Custom_Stock_MPG[Scenario], Input_Scenario_Modeled), SUMIFS(Vehicle_Stock_Projections[Vehicle Stock],Vehicle_Stock_Projections[Year],Calculations!U$4,Vehicle_Stock_Projections[Technology Type], $B18, Vehicle_Stock_Projections[Vehicle Type], $A18, Vehicle_Stock_Projections[Scenario], Input_Scenario_Modeled)) -> 1.149302483 | V18: =IF(Input_Scenario_Modeled="Custom", SUMIFS(Custom_Stock_MPG[Vehicle Stock],Custom_Stock_MPG[Year],Calculations!V$4, Custom_Stock_MPG[[ Technology Type]], $B18, Custom_Stock_MPG[Vehicle Type], $A18, Custom_Stock_MPG[Scenario], Input_Scenario_Modeled), SUMIFS(Vehicle_Stock_Projections[Vehicle Stock],Vehicle_Stock_Projections[Year],Calculations!V$4,Vehicle_Stock_Projections[Technology Type], $B18, Vehicle_Stock_Projections[Vehicle Type], $A18, Vehicle_Stock_Projections[Scenario], Input_Scenario_Modeled)) -> 1.122226119 | W18: =IF(Input_Scenario_Modeled="Custom", SUMIFS(Custom_Stock_MPG[Vehicle Stock],Custom_Stock_MPG[Year],Calculations!W$4, Custom_Stock_MPG[[ Technology Type]], $B18, Custom_Stock_MPG[Vehicle Type], $A18, Custom_Stock_MPG[Scenario], Input_Scenario_Modeled), SUMIFS(Vehicle_Stock_Projections[Vehicle Stock],Vehicle_Stock_Projections[Year],Calculations!W$4,Vehicle_Stock_Projections[Technology Type], $B18, Vehicle_Stock_Projections[Vehicle Type], $A18, Vehicle_Stock_Projections[Scenario], Input_Scenario_Modeled)) -> 1.095317721 | X18: =IF(Input_Scenario_Modeled="Custom", SUMIFS(Custom_Stock_MPG[Vehicle Stock],Custom_Stock_MPG[Year],Calculations!X$4, Custom_Stock_MPG[[ Technology Type]], $B18, Custom_Stock_MPG[Vehicle Type], $A18, Custom_Stock_MPG[Scenario], Input_Scenario_Modeled), SUMIFS(Vehicle_Stock_Projections[Vehicle Stock],Vehicle_Stock_Projections[Year],Calculations!X$4,Vehicle_Stock_Projections[Technology Type], $B18, Vehicle_Stock_Projections[Vehicle Type], $A18, Vehicle_Stock_Projections[Scenario], Input_Scenario_Modeled)) -> 1.069786429 | Y18: =IF(Input_Scenario_Modeled="Custom", SUMIFS(Custom_Stock_MPG[Vehicle Stock],Custom_Stock_MPG[Year],Calculations!Y$4, Custom_Stock_MPG[[ Technology Type]], $B18, Custom_Stock_MPG[Vehicle Type], $A18, Custom_Stock_MPG[Scenario], Input_Scenario_Modeled), SUMIFS(Vehicle_Stock_Projections[Vehicle Stock],Vehicle_Stock_Projections[Year],Calculations!Y$4,Vehicle_Stock_Projections[Technology Type], $B18, Vehicle_Stock_Projections[Vehicle Type], $A18, Vehicle_Stock_Projections[Scenario], Input_Scenario_Modeled)) -> 1.045789838 | Z18: =IF(Input_Scenario_Modeled="Custom", SUMIFS(Custom_Stock_MPG[Vehicle Stock],Custom_Stock_MPG[Year],Calculations!Z$4, Custom_Stock_MPG[[ Technology Type]], $B18, Custom_Stock_MPG[Vehicle Type], $A18, Custom_Stock_MPG[Scenario], Input_Scenario_Modeled), SUMIFS(Vehicle_Stock_Projections[Vehicle Stock],Vehicle_Stock_Projections[Year],Calculations!Z$4,Vehicle_Stock_Projections[Technology Type], $B18, Vehicle_Stock_Projections[Vehicle Type], $A18, Vehicle_Stock_Projections[Scenario], Input_Scenario_Modeled)) -> 1.023086429 | AA18: =IF(Input_Scenario_Modeled="Custom", SUMIFS(Custom_Stock_MPG[Vehicle Stock],Custom_Stock_MPG[Year],Calculations!AA$4, Custom_Stock_MPG[[ Technology Type]], $B18, Custom_Stock_MPG[Vehicle Type], $A18, Custom_Stock_MPG[Scenario], Input_Scenario_Modeled), SUMIFS(Vehicle_Stock_Projections[Vehicle Stock],Vehicle_Stock_Projections[Year],Calculations!AA$4,Vehicle_Stock_Projections[Technology Type], $B18, Vehicle_Stock_Projections[Vehicle Type], $A18, Vehicle_Stock_Projections[Scenario], Input_Scenario_Modeled)) -> 1.003992796 | AB18: =IF(Input_Scenario_Modeled="Custom", SUMIFS(Custom_Stock_MPG[Vehicle Stock],Custom_Stock_MPG[Year],Calculations!AB$4, Custom_Stock_MPG[[ Technology Type]], $B18, Custom_Stock_MPG[Vehicle Type], $A18, Custom_Stock_MPG[Scenario], Input_Scenario_Modeled), SUMIFS(Vehicle_Stock_Projections[Vehicle Stock],Vehicle_Stock_Projections[Year],Calculations!AB$4,Vehicle_Stock_Projections[Technology Type], $B18, Vehicle_Stock_Projections[Vehicle Type], $A18, Vehicle_Stock_Projections[Scenario], Input_Scenario_Modeled)) -> 0.987246573 | AC18: =IF(Input_Scenario_Modeled="Custom", SUMIFS(Custom_Stock_MPG[Vehicle Stock],Custom_Stock_MPG[Year],Calculations!AC$4, Custom_Stock_MPG[[ Technology Type]], $B18, Custom_Stock_MPG[Vehicle Type], $A18, Custom_Stock_MPG[Scenario], Input_Scenario_Modeled), SUMIFS(Vehicle_Stock_Projections[Vehicle Stock],Vehicle_Stock_Projections[Year],Calculations!AC$4,Vehicle_Stock_Projections[Technology Type], $B18, Vehicle_Stock_Projections[Vehicle Type], $A18, Vehicle_Stock_Projections[Scenario], Input_Scenario_Modeled)) -> 0.9727249146 | AD18: =IF(Input_Scenario_Modeled="Custom", SUMIFS(Custom_Stock_MPG[Vehicle Stock],Custom_Stock_MPG[Year],Calculations!AD$4, Custom_Stock_MPG[[ Technology Type]], $B18, Custom_Stock_MPG[Vehicle Type], $A18, Custom_Stock_MPG[Scenario], Input_Scenario_Modeled), SUMIFS(Vehicle_Stock_Projections[Vehicle Stock],Vehicle_Stock_Projections[Year],Calculations!AD$4,Vehicle_Stock_Projections[Technology Type], $B18, Vehicle_Stock_Projections[Vehicle Type], $A18, Vehicle_Stock_Projections[Scenario], Input_Scenario_Modeled)) -> 0.9612141848 | AE18: =IF(Input_Scenario_Modeled="Custom", SUMIFS(Custom_Stock_MPG[Vehicle Stock],Custom_Stock_MPG[Year],Calculations!AE$4, Custom_Stock_MPG[[ Technology Type]], $B18, Custom_Stock_MPG[Vehicle Type], $A18, Custom_Stock_MPG[Scenario], Input_Scenario_Modeled), SUMIFS(Vehicle_Stock_Projections[Vehicle Stock],Vehicle_Stock_Projections[Year],Calculations!AE$4,Vehicle_Stock_Projections[Technology Type], $B18, Vehicle_Stock_Projections[Vehicle Type], $A18, Vehicle_Stock_Projections[Scenario], Input_Scenario_Modeled)) -> 0.9518829584 | AF18: =IF(Input_Scenario_Modeled="Custom", SUMIFS(Custom_Stock_MPG[Vehicle Stock],Custom_Stock_MPG[Year],Calculations!AF$4, Custom_Stock_MPG[[ Technology Type]], $B18, Custom_Stock_MPG[Vehicle Type], $A18, Custom_Stock_MPG[Scenario], Input_Scenario_Modeled), SUMIFS(Vehicle_Stock_Projections[Vehicle Stock],Vehicle_Stock_Projections[Year],Calculations!AF$4,Vehicle_Stock_Projections[Technology Type], $B18, Vehicle_Stock_Projections[Vehicle Type], $A18, Vehicle_Stock_Projections[Scenario], Input_Scenario_Modeled)) -> 0.9518829584 | AG18: =IF(Input_Scenario_Modeled="Custom", SUMIFS(Custom_Stock_MPG[Vehicle Stock],Custom_Stock_MPG[Year],Calculations!AG$4, Custom_Stock_MPG[[ Technology Type]], $B18, Custom_Stock_MPG[Vehicle Type], $A18, Custom_Stock_MPG[Scenario], Input_Scenario_Modeled), SUMIFS(Vehicle_Stock_Projections[Vehicle Stock],Vehicle_Stock_Projections[Year],Calculations!AG$4,Vehicle_Stock_Projections[Technology Type], $B18, Vehicle_Stock_Projections[Vehicle Type], $A18, Vehicle_Stock_Projections[Scenario], Input_Scenario_Modeled)) -> 0.9518829584 | AH18: =IF(Input_Scenario_Modeled="Custom", SUMIFS(Custom_Stock_MPG[Vehicle Stock],Custom_Stock_MPG[Year],Calculations!AH$4, Custom_Stock_MPG[[ Technology Type]], $B18, Custom_Stock_MPG[Vehicle Type], $A18, Custom_Stock_MPG[Scenario], Input_Scenario_Modeled), SUMIFS(Vehicle_Stock_Projections[Vehicle Stock],Vehicle_Stock_Projections[Year],Calculations!AH$4,Vehicle_Stock_Projections[Technology Type], $B18, Vehicle_Stock_Projections[Vehicle Type], $A18, Vehicle_Stock_Projections[Scenario], Input_Scenario_Modeled)) -> 0.9518829584 | AI18: =IF(Input_Scenario_Modeled="Custom", SUMIFS(Custom_Stock_MPG[Vehicle Stock],Custom_Stock_MPG[Year],Calculations!AI$4, Custom_Stock_MPG[[ Technology Type]], $B18, Custom_Stock_MPG[Vehicle Type], $A18, Custom_Stock_MPG[Scenario], Input_Scenario_Modeled), SUMIFS(Vehicle_Stock_Projections[Vehicle Stock],Vehicle_Stock_Projections[Year],Calculations!AI$4,Vehicle_Stock_Projections[Technology Type], $B18, Vehicle_Stock_Projections[Vehicle Type], $A18, Vehicle_Stock_Projections[Scenario], Input_Scenario_Modeled)) -> 0.9518829584 | AJ18: =IF(Input_Scenario_Modeled="Custom", SUMIFS(Custom_Stock_MPG[Vehicle Stock],Custom_Stock_MPG[Year],Calculations!AJ$4, Custom_Stock_MPG[[ Technology Type]], $B18, Custom_Stock_MPG[Vehicle Type], $A18, Custom_Stock_MPG[Scenario], Input_Scenario_Modeled), SUMIFS(Vehicle_Stock_Projections[Vehicle Stock],Vehicle_Stock_Projections[Year],Calculations!AJ$4,Vehicle_Stock_Projections[Technology Type], $B18, Vehicle_Stock_Projections[Vehicle Type], $A18, Vehicle_Stock_Projections[Scenario], Input_Scenario_Modeled)) -> 0.9518829584
A19: Light Trucks | B19: Electric-Diesel Hybrid | C19: Diesel | D19: Stock | E19: =IF(Input_Scenario_Modeled="Custom", SUMIFS(Custom_Stock_MPG[Vehicle Stock],Custom_Stock_MPG[Year],Calculations!E$4, Custom_Stock_MPG[[ Technology Type]], $B19, Custom_Stock_MPG[Vehicle Type], $A19, Custom_Stock_MPG[Scenario], Input_Scenario_Modeled), SUMIFS(Vehicle_Stock_Projections[Vehicle Stock],Vehicle_Stock_Projections[Year],Calculations!E$4,Vehicle_Stock_Projections[Technology Type], $B19, Vehicle_Stock_Projections[Vehicle Type], $A19, Vehicle_Stock_Projections[Scenario], Input_Scenario_Modeled)) -> 0 | F19: =IF(Input_Scenario_Modeled="Custom", SUMIFS(Custom_Stock_MPG[Vehicle Stock],Custom_Stock_MPG[Year],Calculations!F$4, Custom_Stock_MPG[[ Technology Type]], $B19, Custom_Stock_MPG[Vehicle Type], $A19, Custom_Stock_MPG[Scenario], Input_Scenario_Modeled), SUMIFS(Vehicle_Stock_Projections[Vehicle Stock],Vehicle_Stock_Projections[Year],Calculations!F$4,Vehicle_Stock_Projections[Technology Type], $B19, Vehicle_Stock_Projections[Vehicle Type], $A19, Vehicle_Stock_Projections[Scenario], Input_Scenario_Modeled)) -> 0 | G19: =IF(Input_Scenario_Modeled="Custom", SUMIFS(Custom_Stock_MPG[Vehicle Stock],Custom_Stock_MPG[Year],Calculations!G$4, Custom_Stock_MPG[[ Technology Type]], $B19, Custom_Stock_MPG[Vehicle Type], $A19, Custom_Stock_MPG[Scenario], Input_Scenario_Modeled), SUMIFS(Vehicle_Stock_Projections[Vehicle Stock],Vehicle_Stock_Projections[Year],Calculations!G$4,Vehicle_Stock_Projections[Technology Type], $B19, Vehicle_Stock_Projections[Vehicle Type], $A19, Vehicle_Stock_Projections[Scenario], Input_Scenario_Modeled)) -> 0 | H19: =IF(Input_Scenario_Modeled="Custom", SUMIFS(Custom_Stock_MPG[Vehicle Stock],Custom_Stock_MPG[Year],Calculations!H$4, Custom_Stock_MPG[[ Technology Type]], $B19, Custom_Stock_MPG[Vehicle Type], $A19, Custom_Stock_MPG[Scenario], Input_Scenario_Modeled), SUMIFS(Vehicle_Stock_Projections[Vehicle Stock],Vehicle_Stock_Projections[Year],Calculations!H$4,Vehicle_Stock_Projections[Technology Type], $B19, Vehicle_Stock_Projections[Vehicle Type], $A19, Vehicle_Stock_Projections[Scenario], Input_Scenario_Modeled)) -> 0 | I19: =IF(Input_Scenario_Modeled="Custom", SUMIFS(Custom_Stock_MPG[Vehicle Stock],Custom_Stock_MPG[Year],Calculations!I$4, Custom_Stock_MPG[[ Technology Type]], $B19, Custom_Stock_MPG[Vehicle Type], $A19, Custom_Stock_MPG[Scenario], Input_Scenario_Modeled), SUMIFS(Vehicle_Stock_Projections[Vehicle Stock],Vehicle_Stock_Projections[Year],Calculations!I$4,Vehicle_Stock_Projections[Technology Type], $B19, Vehicle_Stock_Projections[Vehicle Type], $A19, Vehicle_Stock_Projections[Scenario], Input_Scenario_Modeled)) -> 0 | J19: =IF(Input_Scenario_Modeled="Custom", SUMIFS(Custom_Stock_MPG[Vehicle Stock],Custom_Stock_MPG[Year],Calculations!J$4, Custom_Stock_MPG[[ Technology Type]], $B19, Custom_Stock_MPG[Vehicle Type], $A19, Custom_Stock_MPG[Scenario], Input_Scenario_Modeled), SUMIFS(Vehicle_Stock_Projections[Vehicle Stock],Vehicle_Stock_Projections[Year],Calculations!J$4,Vehicle_Stock_Projections[Technology Type], $B19, Vehicle_Stock_Projections[Vehicle Type], $A19, Vehicle_Stock_Projections[Scenario], Input_Scenario_Modeled)) -> 0 | K19: =IF(Input_Scenario_Modeled="Custom", SUMIFS(Custom_Stock_MPG[Vehicle Stock],Custom_Stock_MPG[Year],Calculations!K$4, Custom_Stock_MPG[[ Technology Type]], $B19, Custom_Stock_MPG[Vehicle Type], $A19, Custom_Stock_MPG[Scenario], Input_Scenario_Modeled), SUMIFS(Vehicle_Stock_Projections[Vehicle Stock],Vehicle_Stock_Projections[Year],Calculations!K$4,Vehicle_Stock_Projections[Technology Type], $B19, Vehicle_Stock_Projections[Vehicle Type], $A19, Vehicle_Stock_Projections[Scenario], Input_Scenario_Modeled)) -> 0 | L19: =IF(Input_Scenario_Modeled="Custom", SUMIFS(Custom_Stock_MPG[Vehicle Stock],Custom_Stock_MPG[Year],Calculations!L$4, Custom_Stock_MPG[[ Technology Type]], $B19, Custom_Stock_MPG[Vehicle Type], $A19, Custom_Stock_MPG[Scenario], Input_Scenario_Modeled), SUMIFS(Vehicle_Stock_Projections[Vehicle Stock],Vehicle_Stock_Projections[Year],Calculations!L$4,Vehicle_Stock_Projections[Technology Type], $B19, Vehicle_Stock_Projections[Vehicle Type], $A19, Vehicle_Stock_Projections[Scenario], Input_Scenario_Modeled)) -> 0 | M19: =IF(Input_Scenario_Modeled="Custom", SUMIFS(Custom_Stock_MPG[Vehicle Stock],Custom_Stock_MPG[Year],Calculations!M$4, Custom_Stock_MPG[[ Technology Type]], $B19, Custom_Stock_MPG[Vehicle Type], $A19, Custom_Stock_MPG[Scenario], Input_Scenario_Modeled), SUMIFS(Vehicle_Stock_Projections[Vehicle Stock],Vehicle_Stock_Projections[Year],Calculations!M$4,Vehicle_Stock_Projections[Technology Type], $B19, Vehicle_Stock_Projections[Vehicle Type], $A19, Vehicle_Stock_Projections[Scenario], Input_Scenario_Modeled)) -> 0 | N19: =IF(Input_Scenario_Modeled="Custom", SUMIFS(Custom_Stock_MPG[Vehicle Stock],Custom_Stock_MPG[Year],Calculations!N$4, Custom_Stock_MPG[[ Technology Type]], $B19, Custom_Stock_MPG[Vehicle Type], $A19, Custom_Stock_MPG[Scenario], Input_Scenario_Modeled), SUMIFS(Vehicle_Stock_Projections[Vehicle Stock],Vehicle_Stock_Projections[Year],Calculations!N$4,Vehicle_Stock_Projections[Technology Type], $B19, Vehicle_Stock_Projections[Vehicle Type], $A19, Vehicle_Stock_Projections[Scenario], Input_Scenario_Modeled)) -> 0 | O19: =IF(Input_Scenario_Modeled="Custom", SUMIFS(Custom_Stock_MPG[Vehicle Stock],Custom_Stock_MPG[Year],Calculations!O$4, Custom_Stock_MPG[[ Technology Type]], $B19, Custom_Stock_MPG[Vehicle Type], $A19, Custom_Stock_MPG[Scenario], Input_Scenario_Modeled), SUMIFS(Vehicle_Stock_Projections[Vehicle Stock],Vehicle_Stock_Projections[Year],Calculations!O$4,Vehicle_Stock_Projections[Technology Type], $B19, Vehicle_Stock_Projections[Vehicle Type], $A19, Vehicle_Stock_Projections[Scenario], Input_Scenario_Modeled)) -> 0 | P19: =IF(Input_Scenario_Modeled="Custom", SUMIFS(Custom_Stock_MPG[Vehicle Stock],Custom_Stock_MPG[Year],Calculations!P$4, Custom_Stock_MPG[[ Technology Type]], $B19, Custom_Stock_MPG[Vehicle Type], $A19, Custom_Stock_MPG[Scenario], Input_Scenario_Modeled), SUMIFS(Vehicle_Stock_Projections[Vehicle Stock],Vehicle_Stock_Projections[Year],Calculations!P$4,Vehicle_Stock_Projections[Technology Type], $B19, Vehicle_Stock_Projections[Vehicle Type], $A19, Vehicle_Stock_Projections[Scenario], Input_Scenario_Modeled)) -> 0 | Q19: =IF(Input_Scenario_Modeled="Custom", SUMIFS(Custom_Stock_MPG[Vehicle Stock],Custom_Stock_MPG[Year],Calculations!Q$4, Custom_Stock_MPG[[ Technology Type]], $B19, Custom_Stock_MPG[Vehicle Type], $A19, Custom_Stock_MPG[Scenario], Input_Scenario_Modeled), SUMIFS(Vehicle_Stock_Projections[Vehicle Stock],Vehicle_Stock_Projections[Year],Calculations!Q$4,Vehicle_Stock_Projections[Technology Type], $B19, Vehicle_Stock_Projections[Vehicle Type], $A19, Vehicle_Stock_Projections[Scenario], Input_Scenario_Modeled)) -> 0 | R19: =IF(Input_Scenario_Modeled="Custom", SUMIFS(Custom_Stock_MPG[Vehicle Stock],Custom_Stock_MPG[Year],Calculations!R$4, Custom_Stock_MPG[[ Technology Type]], $B19, Custom_Stock_MPG[Vehicle Type], $A19, Custom_Stock_MPG[Scenario], Input_Scenario_Modeled), SUMIFS(Vehicle_Stock_Projections[Vehicle Stock],Vehicle_Stock_Projections[Year],Calculations!R$4,Vehicle_Stock_Projections[Technology Type], $B19, Vehicle_Stock_Projections[Vehicle Type], $A19, Vehicle_Stock_Projections[Scenario], Input_Scenario_Modeled)) -> 0 | S19: =IF(Input_Scenario_Modeled="Custom", SUMIFS(Custom_Stock_MPG[Vehicle Stock],Custom_Stock_MPG[Year],Calculations!S$4, Custom_Stock_MPG[[ Technology Type]], $B19, Custom_Stock_MPG[Vehicle Type], $A19, Custom_Stock_MPG[Scenario], Input_Scenario_Modeled), SUMIFS(Vehicle_Stock_Projections[Vehicle Stock],Vehicle_Stock_Projections[Year],Calculations!S$4,Vehicle_Stock_Projections[Technology Type], $B19, Vehicle_Stock_Projections[Vehicle Type], $A19, Vehicle_Stock_Projections[Scenario], Input_Scenario_Modeled)) -> 0 | T19: =IF(Input_Scenario_Modeled="Custom", SUMIFS(Custom_Stock_MPG[Vehicle Stock],Custom_Stock_MPG[Year],Calculations!T$4, Custom_Stock_MPG[[ Technology Type]], $B19, Custom_Stock_MPG[Vehicle Type], $A19, Custom_Stock_MPG[Scenario], Input_Scenario_Modeled), SUMIFS(Vehicle_Stock_Projections[Vehicle Stock],Vehicle_Stock_Projections[Year],Calculations!T$4,Vehicle_Stock_Projections[Technology Type], $B19, Vehicle_Stock_Projections[Vehicle Type], $A19, Vehicle_Stock_Projections[Scenario], Input_Scenario_Modeled)) -> 0 | U19: =IF(Input_Scenario_Modeled="Custom", SUMIFS(Custom_Stock_MPG[Vehicle Stock],Custom_Stock_MPG[Year],Calculations!U$4, Custom_Stock_MPG[[ Technology Type]], $B19, Custom_Stock_MPG[Vehicle Type], $A19, Custom_Stock_MPG[Scenario], Input_Scenario_Modeled), SUMIFS(Vehicle_Stock_Projections[Vehicle Stock],Vehicle_Stock_Projections[Year],Calculations!U$4,Vehicle_Stock_Projections[Technology Type], $B19, Vehicle_Stock_Projections[Vehicle Type], $A19, Vehicle_Stock_Projections[Scenario], Input_Scenario_Modeled)) -> 0 | V19: =IF(Input_Scenario_Modeled="Custom", SUMIFS(Custom_Stock_MPG[Vehicle Stock],Custom_Stock_MPG[Year],Calculations!V$4, Custom_Stock_MPG[[ Technology Type]], $B19, Custom_Stock_MPG[Vehicle Type], $A19, Custom_Stock_MPG[Scenario], Input_Scenario_Modeled), SUMIFS(Vehicle_Stock_Projections[Vehicle Stock],Vehicle_Stock_Projections[Year],Calculations!V$4,Vehicle_Stock_Projections[Technology Type], $B19, Vehicle_Stock_Projections[Vehicle Type], $A19, Vehicle_Stock_Projections[Scenario], Input_Scenario_Modeled)) -> 0 | W19: =IF(Input_Scenario_Modeled="Custom", SUMIFS(Custom_Stock_MPG[Vehicle Stock],Custom_Stock_MPG[Year],Calculations!W$4, Custom_Stock_MPG[[ Technology Type]], $B19, Custom_Stock_MPG[Vehicle Type], $A19, Custom_Stock_MPG[Scenario], Input_Scenario_Modeled), SUMIFS(Vehicle_Stock_Projections[Vehicle Stock],Vehicle_Stock_Projections[Year],Calculations!W$4,Vehicle_Stock_Projections[Technology Type], $B19, Vehicle_Stock_Projections[Vehicle Type], $A19, Vehicle_Stock_Projections[Scenario], Input_Scenario_Modeled)) -> 0 | X19: =IF(Input_Scenario_Modeled="Custom", SUMIFS(Custom_Stock_MPG[Vehicle Stock],Custom_Stock_MPG[Year],Calculations!X$4, Custom_Stock_MPG[[ Technology Type]], $B19, Custom_Stock_MPG[Vehicle Type], $A19, Custom_Stock_MPG[Scenario], Input_Scenario_Modeled), SUMIFS(Vehicle_Stock_Projections[Vehicle Stock],Vehicle_Stock_Projections[Year],Calculations!X$4,Vehicle_Stock_Projections[Technology Type], $B19, Vehicle_Stock_Projections[Vehicle Type], $A19, Vehicle_Stock_Projections[Scenario], Input_Scenario_Modeled)) -> 0 | Y19: =IF(Input_Scenario_Modeled="Custom", SUMIFS(Custom_Stock_MPG[Vehicle Stock],Custom_Stock_MPG[Year],Calculations!Y$4, Custom_Stock_MPG[[ Technology Type]], $B19, Custom_Stock_MPG[Vehicle Type], $A19, Custom_Stock_MPG[Scenario], Input_Scenario_Modeled), SUMIFS(Vehicle_Stock_Projections[Vehicle Stock],Vehicle_Stock_Projections[Year],Calculations!Y$4,Vehicle_Stock_Projections[Technology Type], $B19, Vehicle_Stock_Projections[Vehicle Type], $A19, Vehicle_Stock_Projections[Scenario], Input_Scenario_Modeled)) -> 0 | Z19: =IF(Input_Scenario_Modeled="Custom", SUMIFS(Custom_Stock_MPG[Vehicle Stock],Custom_Stock_MPG[Year],Calculations!Z$4, Custom_Stock_MPG[[ Technology Type]], $B19, Custom_Stock_MPG[Vehicle Type], $A19, Custom_Stock_MPG[Scenario], Input_Scenario_Modeled), SUMIFS(Vehicle_Stock_Projections[Vehicle Stock],Vehicle_Stock_Projections[Year],Calculations!Z$4,Vehicle_Stock_Projections[Technology Type], $B19, Vehicle_Stock_Projections[Vehicle Type], $A19, Vehicle_Stock_Projections[Scenario], Input_Scenario_Modeled)) -> 0 | AA19: =IF(Input_Scenario_Modeled="Custom", SUMIFS(Custom_Stock_MPG[Vehicle Stock],Custom_Stock_MPG[Year],Calculations!AA$4, Custom_Stock_MPG[[ Technology Type]], $B19, Custom_Stock_MPG[Vehicle Type], $A19, Custom_Stock_MPG[Scenario], Input_Scenario_Modeled), SUMIFS(Vehicle_Stock_Projections[Vehicle Stock],Vehicle_Stock_Projections[Year],Calculations!AA$4,Vehicle_Stock_Projections[Technology Type], $B19, Vehicle_Stock_Projections[Vehicle Type], $A19, Vehicle_Stock_Projections[Scenario], Input_Scenario_Modeled)) -> 0 | AB19: =IF(Input_Scenario_Modeled="Custom", SUMIFS(Custom_Stock_MPG[Vehicle Stock],Custom_Stock_MPG[Year],Calculations!AB$4, Custom_Stock_MPG[[ Technology Type]], $B19, Custom_Stock_MPG[Vehicle Type], $A19, Custom_Stock_MPG[Scenario], Input_Scenario_Modeled), SUMIFS(Vehicle_Stock_Projections[Vehicle Stock],Vehicle_Stock_Projections[Year],Calculations!AB$4,Vehicle_Stock_Projections[Technology Type], $B19, Vehicle_Stock_Projections[Vehicle Type], $A19, Vehicle_Stock_Projections[Scenario], Input_Scenario_Modeled)) -> 0 | AC19: =IF(Input_Scenario_Modeled="Custom", SUMIFS(Custom_Stock_MPG[Vehicle Stock],Custom_Stock_MPG[Year],Calculations!AC$4, Custom_Stock_MPG[[ Technology Type]], $B19, Custom_Stock_MPG[Vehicle Type], $A19, Custom_Stock_MPG[Scenario], Input_Scenario_Modeled), SUMIFS(Vehicle_Stock_Projections[Vehicle Stock],Vehicle_Stock_Projections[Year],Calculations!AC$4,Vehicle_Stock_Projections[Technology Type], $B19, Vehicle_Stock_Projections[Vehicle Type], $A19, Vehicle_Stock_Projections[Scenario], Input_Scenario_Modeled)) -> 0 | AD19: =IF(Input_Scenario_Modeled="Custom", SUMIFS(Custom_Stock_MPG[Vehicle Stock],Custom_Stock_MPG[Year],Calculations!AD$4, Custom_Stock_MPG[[ Technology Type]], $B19, Custom_Stock_MPG[Vehicle Type], $A19, Custom_Stock_MPG[Scenario], Input_Scenario_Modeled), SUMIFS(Vehicle_Stock_Projections[Vehicle Stock],Vehicle_Stock_Projections[Year],Calculations!AD$4,Vehicle_Stock_Projections[Technology Type], $B19, Vehicle_Stock_Projections[Vehicle Type], $A19, Vehicle_Stock_Projections[Scenario], Input_Scenario_Modeled)) -> 0 | AE19: =IF(Input_Scenario_Modeled="Custom", SUMIFS(Custom_Stock_MPG[Vehicle Stock],Custom_Stock_MPG[Year],Calculations!AE$4, Custom_Stock_MPG[[ Technology Type]], $B19, Custom_Stock_MPG[Vehicle Type], $A19, Custom_Stock_MPG[Scenario], Input_Scenario_Modeled), SUMIFS(Vehicle_Stock_Projections[Vehicle Stock],Vehicle_Stock_Projections[Year],Calculations!AE$4,Vehicle_Stock_Projections[Technology Type], $B19, Vehicle_Stock_Projections[Vehicle Type], $A19, Vehicle_Stock_Projections[Scenario], Input_Scenario_Modeled)) -> 0 | AF19: =IF(Input_Scenario_Modeled="Custom", SUMIFS(Custom_Stock_MPG[Vehicle Stock],Custom_Stock_MPG[Year],Calculations!AF$4, Custom_Stock_MPG[[ Technology Type]], $B19, Custom_Stock_MPG[Vehicle Type], $A19, Custom_Stock_MPG[Scenario], Input_Scenario_Modeled), SUMIFS(Vehicle_Stock_Projections[Vehicle Stock],Vehicle_Stock_Projections[Year],Calculations!AF$4,Vehicle_Stock_Projections[Technology Type], $B19, Vehicle_Stock_Projections[Vehicle Type], $A19, Vehicle_Stock_Projections[Scenario], Input_Scenario_Modeled)) -> 0 | AG19: =IF(Input_Scenario_Modeled="Custom", SUMIFS(Custom_Stock_MPG[Vehicle Stock],Custom_Stock_MPG[Year],Calculations!AG$4, Custom_Stock_MPG[[ Technology Type]], $B19, Custom_Stock_MPG[Vehicle Type], $A19, Custom_Stock_MPG[Scenario], Input_Scenario_Modeled), SUMIFS(Vehicle_Stock_Projections[Vehicle Stock],Vehicle_Stock_Projections[Year],Calculations!AG$4,Vehicle_Stock_Projections[Technology Type], $B19, Vehicle_Stock_Projections[Vehicle Type], $A19, Vehicle_Stock_Projections[Scenario], Input_Scenario_Modeled)) -> 0 | AH19: =IF(Input_Scenario_Modeled="Custom", SUMIFS(Custom_Stock_MPG[Vehicle Stock],Custom_Stock_MPG[Year],Calculations!AH$4, Custom_Stock_MPG[[ Technology Type]], $B19, Custom_Stock_MPG[Vehicle Type], $A19, Custom_Stock_MPG[Scenario], Input_Scenario_Modeled), SUMIFS(Vehicle_Stock_Projections[Vehicle Stock],Vehicle_Stock_Projections[Year],Calculations!AH$4,Vehicle_Stock_Projections[Technology Type], $B19, Vehicle_Stock_Projections[Vehicle Type], $A19, Vehicle_Stock_Projections[Scenario], Input_Scenario_Modeled)) -> 0 | AI19: =IF(Input_Scenario_Modeled="Custom", SUMIFS(Custom_Stock_MPG[Vehicle Stock],Custom_Stock_MPG[Year],Calculations!AI$4, Custom_Stock_MPG[[ Technology Type]], $B19, Custom_Stock_MPG[Vehicle Type], $A19, Custom_Stock_MPG[Scenario], Input_Scenario_Modeled), SUMIFS(Vehicle_Stock_Projections[Vehicle Stock],Vehicle_Stock_Projections[Year],Calculations!AI$4,Vehicle_Stock_Projections[Technology Type], $B19, Vehicle_Stock_Projections[Vehicle Type], $A19, Vehicle_Stock_Projections[Scenario], Input_Scenario_Modeled)) -> 0 | AJ19: =IF(Input_Scenario_Modeled="Custom", SUMIFS(Custom_Stock_MPG[Vehicle Stock],Custom_Stock_MPG[Year],Calculations!AJ$4, Custom_Stock_MPG[[ Technology Type]], $B19, Custom_Stock_MPG[Vehicle Type], $A19, Custom_Stock_MPG[Scenario], Input_Scenario_Modeled), SUMIFS(Vehicle_Stock_Projections[Vehicle Stock],Vehicle_Stock_Projections[Year],Calculations!AJ$4,Vehicle_Stock_Projections[Technology Type], $B19, Vehicle_Stock_Projections[Vehicle Type], $A19, Vehicle_Stock_Projections[Scenario], Input_Scenario_Modeled)) -> 0
A20: Light Trucks | B20: 100-Mile Electric Vehicle | C20: Electricity | D20: Stock | E20: =IF(Input_Scenario_Modeled="Custom", SUMIFS(Custom_Stock_MPG[Vehicle Stock],Custom_Stock_MPG[Year],Calculations!E$4, Custom_Stock_MPG[[ Technology Type]], $B20, Custom_Stock_MPG[Vehicle Type], $A20, Custom_Stock_MPG[Scenario], Input_Scenario_Modeled), SUMIFS(Vehicle_Stock_Projections[Vehicle Stock],Vehicle_Stock_Projections[Year],Calculations!E$4,Vehicle_Stock_Projections[Technology Type], $B20, Vehicle_Stock_Projections[Vehicle Type], $A20, Vehicle_Stock_Projections[Scenario], Input_Scenario_Modeled)) -> 0.0005356958136 | F20: =IF(Input_Scenario_Modeled="Custom", SUMIFS(Custom_Stock_MPG[Vehicle Stock],Custom_Stock_MPG[Year],Calculations!F$4, Custom_Stock_MPG[[ Technology Type]], $B20, Custom_Stock_MPG[Vehicle Type], $A20, Custom_Stock_MPG[Scenario], Input_Scenario_Modeled), SUMIFS(Vehicle_Stock_Projections[Vehicle Stock],Vehicle_Stock_Projections[Year],Calculations!F$4,Vehicle_Stock_Projections[Technology Type], $B20, Vehicle_Stock_Projections[Vehicle Type], $A20, Vehicle_Stock_Projections[Scenario], Input_Scenario_Modeled)) -> 0.0004831425613 | G20: =IF(Input_Scenario_Modeled="Custom", SUMIFS(Custom_Stock_MPG[Vehicle Stock],Custom_Stock_MPG[Year],Calculations!G$4, Custom_Stock_MPG[[ Technology Type]], $B20, Custom_Stock_MPG[Vehicle Type], $A20, Custom_Stock_MPG[Scenario], Input_Scenario_Modeled), SUMIFS(Vehicle_Stock_Projections[Vehicle Stock],Vehicle_Stock_Projections[Year],Calculations!G$4,Vehicle_Stock_Projections[Technology Type], $B20, Vehicle_Stock_Projections[Vehicle Type], $A20, Vehicle_Stock_Projections[Scenario], Input_Scenario_Modeled)) -> 0.000436894421 | H20: =IF(Input_Scenario_Modeled="Custom", SUMIFS(Custom_Stock_MPG[Vehicle Stock],Custom_Stock_MPG[Year],Calculations!H$4, Custom_Stock_MPG[[ Technology Type]], $B20, Custom_Stock_MPG[Vehicle Type], $A20, Custom_Stock_MPG[Scenario], Input_Scenario_Modeled), SUMIFS(Vehicle_Stock_Projections[Vehicle Stock],Vehicle_Stock_Projections[Year],Calculations!H$4,Vehicle_Stock_Projections[Technology Type], $B20, Vehicle_Stock_Projections[Vehicle Type], $A20, Vehicle_Stock_Projections[Scenario], Input_Scenario_Modeled)) -> 0.0003974909196 | I20: =IF(Input_Scenario_Modeled="Custom", SUMIFS(Custom_Stock_MPG[Vehicle Stock],Custom_Stock_MPG[Year],Calculations!I$4, Custom_Stock_MPG[[ Technology Type]], $B20, Custom_Stock_MPG[Vehicle Type], $A20, Custom_Stock_MPG[Scenario], Input_Scenario_Modeled), SUMIFS(Vehicle_Stock_Projections[Vehicle Stock],Vehicle_Stock_Projections[Year],Calculations!I$4,Vehicle_Stock_Projections[Technology Type], $B20, Vehicle_Stock_Projections[Vehicle Type], $A20, Vehicle_Stock_Projections[Scenario], Input_Scenario_Modeled)) -> 0.0003616504546 | J20: =IF(Input_Scenario_Modeled="Custom", SUMIFS(Custom_Stock_MPG[Vehicle Stock],Custom_Stock_MPG[Year],Calculations!J$4, Custom_Stock_MPG[[ Technology Type]], $B20, Custom_Stock_MPG[Vehicle Type], $A20, Custom_Stock_MPG[Scenario], Input_Scenario_Modeled), SUMIFS(Vehicle_Stock_Projections[Vehicle Stock],Vehicle_Stock_Projections[Year],Calculations!J$4,Vehicle_Stock_Projections[Technology Type], $B20, Vehicle_Stock_Projections[Vehicle Type], $A20, Vehicle_Stock_Projections[Scenario], Input_Scenario_Modeled)) -> 0.000328540802 | K20: =IF(Input_Scenario_Modeled="Custom", SUMIFS(Custom_Stock_MPG[Vehicle Stock],Custom_Stock_MPG[Year],Calculations!K$4, Custom_Stock_MPG[[ Technology Type]], $B20, Custom_Stock_MPG[Vehicle Type], $A20, Custom_Stock_MPG[Scenario], Input_Scenario_Modeled), SUMIFS(Vehicle_Stock_Projections[Vehicle Stock],Vehicle_Stock_Projections[Year],Calculations!K$4,Vehicle_Stock_Projections[Technology Type], $B20, Vehicle_Stock_Projections[Vehicle Type], $A20, Vehicle_Stock_Projections[Scenario], Input_Scenario_Modeled)) -> 0.000298195082 | L20: =IF(Input_Scenario_Modeled="Custom", SUMIFS(Custom_Stock_MPG[Vehicle Stock],Custom_Stock_MPG[Year],Calculations!L$4, Custom_Stock_MPG[[ Technology Type]], $B20, Custom_Stock_MPG[Vehicle Type], $A20, Custom_Stock_MPG[Scenario], Input_Scenario_Modeled), SUMIFS(Vehicle_Stock_Projections[Vehicle Stock],Vehicle_Stock_Projections[Year],Calculations!L$4,Vehicle_Stock_Projections[Technology Type], $B20, Vehicle_Stock_Projections[Vehicle Type], $A20, Vehicle_Stock_Projections[Scenario], Input_Scenario_Modeled)) -> 0.0002705948718 | M20: =IF(Input_Scenario_Modeled="Custom", SUMIFS(Custom_Stock_MPG[Vehicle Stock],Custom_Stock_MPG[Year],Calculations!M$4, Custom_Stock_MPG[[ Technology Type]], $B20, Custom_Stock_MPG[Vehicle Type], $A20, Custom_Stock_MPG[Scenario], Input_Scenario_Modeled), SUMIFS(Vehicle_Stock_Projections[Vehicle Stock],Vehicle_Stock_Projections[Year],Calculations!M$4,Vehicle_Stock_Projections[Technology Type], $B20, Vehicle_Stock_Projections[Vehicle Type], $A20, Vehicle_Stock_Projections[Scenario], Input_Scenario_Modeled)) -> 0.0002457588853 | N20: =IF(Input_Scenario_Modeled="Custom", SUMIFS(Custom_Stock_MPG[Vehicle Stock],Custom_Stock_MPG[Year],Calculations!N$4, Custom_Stock_MPG[[ Technology Type]], $B20, Custom_Stock_MPG[Vehicle Type], $A20, Custom_Stock_MPG[Scenario], Input_Scenario_Modeled), SUMIFS(Vehicle_Stock_Projections[Vehicle Stock],Vehicle_Stock_Projections[Year],Calculations!N$4,Vehicle_Stock_Projections[Technology Type], $B20, Vehicle_Stock_Projections[Vehicle Type], $A20, Vehicle_Stock_Projections[Scenario], Input_Scenario_Modeled)) -> 0.000223463052 | O20: =IF(Input_Scenario_Modeled="Custom", SUMIFS(Custom_Stock_MPG[Vehicle Stock],Custom_Stock_MPG[Year],Calculations!O$4, Custom_Stock_MPG[[ Technology Type]], $B20, Custom_Stock_MPG[Vehicle Type], $A20, Custom_Stock_MPG[Scenario], Input_Scenario_Modeled), SUMIFS(Vehicle_Stock_Projections[Vehicle Stock],Vehicle_Stock_Projections[Year],Calculations!O$4,Vehicle_Stock_Projections[Technology Type], $B20, Vehicle_Stock_Projections[Vehicle Type], $A20, Vehicle_Stock_Projections[Scenario], Input_Scenario_Modeled)) -> 0.0002034767822 | P20: =IF(Input_Scenario_Modeled="Custom", SUMIFS(Custom_Stock_MPG[Vehicle Stock],Custom_Stock_MPG[Year],Calculations!P$4, Custom_Stock_MPG[[ Technology Type]], $B20, Custom_Stock_MPG[Vehicle Type], $A20, Custom_Stock_MPG[Scenario], Input_Scenario_Modeled), SUMIFS(Vehicle_Stock_Projections[Vehicle Stock],Vehicle_Stock_Projections[Year],Calculations!P$4,Vehicle_Stock_Projections[Technology Type], $B20, Vehicle_Stock_Projections[Vehicle Type], $A20, Vehicle_Stock_Projections[Scenario], Input_Scenario_Modeled)) -> 0.0001855675218 | Q20: =IF(Input_Scenario_Modeled="Custom", SUMIFS(Custom_Stock_MPG[Vehicle Stock],Custom_Stock_MPG[Year],Calculations!Q$4, Custom_Stock_MPG[[ Technology Type]], $B20, Custom_Stock_MPG[Vehicle Type], $A20, Custom_Stock_MPG[Scenario], Input_Scenario_Modeled), SUMIFS(Vehicle_Stock_Projections[Vehicle Stock],Vehicle_Stock_Projections[Year],Calculations!Q$4,Vehicle_Stock_Projections[Technology Type], $B20, Vehicle_Stock_Projections[Vehicle Type], $A20, Vehicle_Stock_Projections[Scenario], Input_Scenario_Modeled)) -> 0.0001702293521 | R20: =IF(Input_Scenario_Modeled="Custom", SUMIFS(Custom_Stock_MPG[Vehicle Stock],Custom_Stock_MPG[Year],Calculations!R$4, Custom_Stock_MPG[[ Technology Type]], $B20, Custom_Stock_MPG[Vehicle Type], $A20, Custom_Stock_MPG[Scenario], Input_Scenario_Modeled), SUMIFS(Vehicle_Stock_Projections[Vehicle Stock],Vehicle_Stock_Projections[Year],Calculations!R$4,Vehicle_Stock_Projections[Technology Type], $B20, Vehicle_Stock_Projections[Vehicle Type], $A20, Vehicle_Stock_Projections[Scenario], Input_Scenario_Modeled)) -> 0.0001570834866 | S20: =IF(Input_Scenario_Modeled="Custom", SUMIFS(Custom_Stock_MPG[Vehicle Stock],Custom_Stock_MPG[Year],Calculations!S$4, Custom_Stock_MPG[[ Technology Type]], $B20, Custom_Stock_MPG[Vehicle Type], $A20, Custom_Stock_MPG[Scenario], Input_Scenario_Modeled), SUMIFS(Vehicle_Stock_Projections[Vehicle Stock],Vehicle_Stock_Projections[Year],Calculations!S$4,Vehicle_Stock_Projections[Technology Type], $B20, Vehicle_Stock_Projections[Vehicle Type], $A20, Vehicle_Stock_Projections[Scenario], Input_Scenario_Modeled)) -> 0.0001450174168 | T20: =IF(Input_Scenario_Modeled="Custom", SUMIFS(Custom_Stock_MPG[Vehicle Stock],Custom_Stock_MPG[Year],Calculations!T$4, Custom_Stock_MPG[[ Technology Type]], $B20, Custom_Stock_MPG[Vehicle Type], $A20, Custom_Stock_MPG[Scenario], Input_Scenario_Modeled), SUMIFS(Vehicle_Stock_Projections[Vehicle Stock],Vehicle_Stock_Projections[Year],Calculations!T$4,Vehicle_Stock_Projections[Technology Type], $B20, Vehicle_Stock_Projections[Vehicle Type], $A20, Vehicle_Stock_Projections[Scenario], Input_Scenario_Modeled)) -> 0.0001339367882 | U20: =IF(Input_Scenario_Modeled="Custom", SUMIFS(Custom_Stock_MPG[Vehicle Stock],Custom_Stock_MPG[Year],Calculations!U$4, Custom_Stock_MPG[[ Technology Type]], $B20, Custom_Stock_MPG[Vehicle Type], $A20, Custom_Stock_MPG[Scenario], Input_Scenario_Modeled), SUMIFS(Vehicle_Stock_Projections[Vehicle Stock],Vehicle_Stock_Projections[Year],Calculations!U$4,Vehicle_Stock_Projections[Technology Type], $B20, Vehicle_Stock_Projections[Vehicle Type], $A20, Vehicle_Stock_Projections[Scenario], Input_Scenario_Modeled)) -> 0.0001237560646 | V20: =IF(Input_Scenario_Modeled="Custom", SUMIFS(Custom_Stock_MPG[Vehicle Stock],Custom_Stock_MPG[Year],Calculations!V$4, Custom_Stock_MPG[[ Technology Type]], $B20, Custom_Stock_MPG[Vehicle Type], $A20, Custom_Stock_MPG[Scenario], Input_Scenario_Modeled), SUMIFS(Vehicle_Stock_Projections[Vehicle Stock],Vehicle_Stock_Projections[Year],Calculations!V$4,Vehicle_Stock_Projections[Technology Type], $B20, Vehicle_Stock_Projections[Vehicle Type], $A20, Vehicle_Stock_Projections[Scenario], Input_Scenario_Modeled)) -> 0.0001143975678 | W20: =IF(Input_Scenario_Modeled="Custom", SUMIFS(Custom_Stock_MPG[Vehicle Stock],Custom_Stock_MPG[Year],Calculations!W$4, Custom_Stock_MPG[[ Technology Type]], $B20, Custom_Stock_MPG[Vehicle Type], $A20, Custom_Stock_MPG[Scenario], Input_Scenario_Modeled), SUMIFS(Vehicle_Stock_Projections[Vehicle Stock],Vehicle_Stock_Projections[Year],Calculations!W$4,Vehicle_Stock_Projections[Technology Type], $B20, Vehicle_Stock_Projections[Vehicle Type], $A20, Vehicle_Stock_Projections[Scenario], Input_Scenario_Modeled)) -> 0.0001057906557 | X20: =IF(Input_Scenario_Modeled="Custom", SUMIFS(Custom_Stock_MPG[Vehicle Stock],Custom_Stock_MPG[Year],Calculations!X$4, Custom_Stock_MPG[[ Technology Type]], $B20, Custom_Stock_MPG[Vehicle Type], $A20, Custom_Stock_MPG[Scenario], Input_Scenario_Modeled), SUMIFS(Vehicle_Stock_Projections[Vehicle Stock],Vehicle_Stock_Projections[Year],Calculations!X$4,Vehicle_Stock_Projections[Technology Type], $B20, Vehicle_Stock_Projections[Vehicle Type], $A20, Vehicle_Stock_Projections[Scenario], Input_Scenario_Modeled)) -> 9.787119052e-05 | Y20: =IF(Input_Scenario_Modeled="Custom", SUMIFS(Custom_Stock_MPG[Vehicle Stock],Custom_Stock_MPG[Year],Calculations!Y$4, Custom_Stock_MPG[[ Technology Type]], $B20, Custom_Stock_MPG[Vehicle Type], $A20, Custom_Stock_MPG[Scenario], Input_Scenario_Modeled), SUMIFS(Vehicle_Stock_Projections[Vehicle Stock],Vehicle_Stock_Projections[Year],Calculations!Y$4,Vehicle_Stock_Projections[Technology Type], $B20, Vehicle_Stock_Projections[Vehicle Type], $A20, Vehicle_Stock_Projections[Scenario], Input_Scenario_Modeled)) -> 9.05807974e-05 | Z20: =IF(Input_Scenario_Modeled="Custom", SUMIFS(Custom_Stock_MPG[Vehicle Stock],Custom_Stock_MPG[Year],Calculations!Z$4, Custom_Stock_MPG[[ Technology Type]], $B20, Custom_Stock_MPG[Vehicle Type], $A20, Custom_Stock_MPG[Scenario], Input_Scenario_Modeled), SUMIFS(Vehicle_Stock_Projections[Vehicle Stock],Vehicle_Stock_Projections[Year],Calculations!Z$4,Vehicle_Stock_Projections[Technology Type], $B20, Vehicle_Stock_Projections[Vehicle Type], $A20, Vehicle_Stock_Projections[Scenario], Input_Scenario_Modeled)) -> 8.386636182e-05 | AA20: =IF(Input_Scenario_Modeled="Custom", SUMIFS(Custom_Stock_MPG[Vehicle Stock],Custom_Stock_MPG[Year],Calculations!AA$4, Custom_Stock_MPG[[ Technology Type]], $B20, Custom_Stock_MPG[Vehicle Type], $A20, Custom_Stock_MPG[Scenario], Input_Scenario_Modeled), SUMIFS(Vehicle_Stock_Projections[Vehicle Stock],Vehicle_Stock_Projections[Year],Calculations!AA$4,Vehicle_Stock_Projections[Technology Type], $B20, Vehicle_Stock_Projections[Vehicle Type], $A20, Vehicle_Stock_Projections[Scenario], Input_Scenario_Modeled)) -> 7.76795423e-05 | AB20: =IF(Input_Scenario_Modeled="Custom", SUMIFS(Custom_Stock_MPG[Vehicle Stock],Custom_Stock_MPG[Year],Calculations!AB$4, Custom_Stock_MPG[[ Technology Type]], $B20, Custom_Stock_MPG[Vehicle Type], $A20, Custom_Stock_MPG[Scenario], Input_Scenario_Modeled), SUMIFS(Vehicle_Stock_Projections[Vehicle Stock],Vehicle_Stock_Projections[Year],Calculations!AB$4,Vehicle_Stock_Projections[Technology Type], $B20, Vehicle_Stock_Projections[Vehicle Type], $A20, Vehicle_Stock_Projections[Scenario], Input_Scenario_Modeled)) -> 7.197627565e-05 | AC20: =IF(Input_Scenario_Modeled="Custom", SUMIFS(Custom_Stock_MPG[Vehicle Stock],Custom_Stock_MPG[Year],Calculations!AC$4, Custom_Stock_MPG[[ Technology Type]], $B20, Custom_Stock_MPG[Vehicle Type], $A20, Custom_Stock_MPG[Scenario], Input_Scenario_Modeled), SUMIFS(Vehicle_Stock_Projections[Vehicle Stock],Vehicle_Stock_Projections[Year],Calculations!AC$4,Vehicle_Stock_Projections[Technology Type], $B20, Vehicle_Stock_Projections[Vehicle Type], $A20, Vehicle_Stock_Projections[Scenario], Input_Scenario_Modeled)) -> 6.671642768e-05 | AD20: =IF(Input_Scenario_Modeled="Custom", SUMIFS(Custom_Stock_MPG[Vehicle Stock],Custom_Stock_MPG[Year],Calculations!AD$4, Custom_Stock_MPG[[ Technology Type]], $B20, Custom_Stock_MPG[Vehicle Type], $A20, Custom_Stock_MPG[Scenario], Input_Scenario_Modeled), SUMIFS(Vehicle_Stock_Projections[Vehicle Stock],Vehicle_Stock_Projections[Year],Calculations!AD$4,Vehicle_Stock_Projections[Technology Type], $B20, Vehicle_Stock_Projections[Vehicle Type], $A20, Vehicle_Stock_Projections[Scenario], Input_Scenario_Modeled)) -> 6.186340033e-05 | AE20: =IF(Input_Scenario_Modeled="Custom", SUMIFS(Custom_Stock_MPG[Vehicle Stock],Custom_Stock_MPG[Year],Calculations!AE$4, Custom_Stock_MPG[[ Technology Type]], $B20, Custom_Stock_MPG[Vehicle Type], $A20, Custom_Stock_MPG[Scenario], Input_Scenario_Modeled), SUMIFS(Vehicle_Stock_Projections[Vehicle Stock],Vehicle_Stock_Projections[Year],Calculations!AE$4,Vehicle_Stock_Projections[Technology Type], $B20, Vehicle_Stock_Projections[Vehicle Type], $A20, Vehicle_Stock_Projections[Scenario], Input_Scenario_Modeled)) -> 5.73837824e-05 | AF20: =IF(Input_Scenario_Modeled="Custom", SUMIFS(Custom_Stock_MPG[Vehicle Stock],Custom_Stock_MPG[Year],Calculations!AF$4, Custom_Stock_MPG[[ Technology Type]], $B20, Custom_Stock_MPG[Vehicle Type], $A20, Custom_Stock_MPG[Scenario], Input_Scenario_Modeled), SUMIFS(Vehicle_Stock_Projections[Vehicle Stock],Vehicle_Stock_Projections[Year],Calculations!AF$4,Vehicle_Stock_Projections[Technology Type], $B20, Vehicle_Stock_Projections[Vehicle Type], $A20, Vehicle_Stock_Projections[Scenario], Input_Scenario_Modeled)) -> 5.73837824e-05 | AG20: =IF(Input_Scenario_Modeled="Custom", SUMIFS(Custom_Stock_MPG[Vehicle Stock],Custom_Stock_MPG[Year],Calculations!AG$4, Custom_Stock_MPG[[ Technology Type]], $B20, Custom_Stock_MPG[Vehicle Type], $A20, Custom_Stock_MPG[Scenario], Input_Scenario_Modeled), SUMIFS(Vehicle_Stock_Projections[Vehicle Stock],Vehicle_Stock_Projections[Year],Calculations!AG$4,Vehicle_Stock_Projections[Technology Type], $B20, Vehicle_Stock_Projections[Vehicle Type], $A20, Vehicle_Stock_Projections[Scenario], Input_Scenario_Modeled)) -> 5.73837824e-05 | AH20: =IF(Input_Scenario_Modeled="Custom", SUMIFS(Custom_Stock_MPG[Vehicle Stock],Custom_Stock_MPG[Year],Calculations!AH$4, Custom_Stock_MPG[[ Technology Type]], $B20, Custom_Stock_MPG[Vehicle Type], $A20, Custom_Stock_MPG[Scenario], Input_Scenario_Modeled), SUMIFS(Vehicle_Stock_Projections[Vehicle Stock],Vehicle_Stock_Projections[Year],Calculations!AH$4,Vehicle_Stock_Projections[Technology Type], $B20, Vehicle_Stock_Projections[Vehicle Type], $A20, Vehicle_Stock_Projections[Scenario], Input_Scenario_Modeled)) -> 5.73837824e-05 | AI20: =IF(Input_Scenario_Modeled="Custom", SUMIFS(Custom_Stock_MPG[Vehicle Stock],Custom_Stock_MPG[Year],Calculations!AI$4, Custom_Stock_MPG[[ Technology Type]], $B20, Custom_Stock_MPG[Vehicle Type], $A20, Custom_Stock_MPG[Scenario], Input_Scenario_Modeled), SUMIFS(Vehicle_Stock_Projections[Vehicle Stock],Vehicle_Stock_Projections[Year],Calculations!AI$4,Vehicle_Stock_Projections[Technology Type], $B20, Vehicle_Stock_Projections[Vehicle Type], $A20, Vehicle_Stock_Projections[Scenario], Input_Scenario_Modeled)) -> 5.73837824e-05 | AJ20: =IF(Input_Scenario_Modeled="Custom", SUMIFS(Custom_Stock_MPG[Vehicle Stock],Custom_Stock_MPG[Year],Calculations!AJ$4, Custom_Stock_MPG[[ Technology Type]], $B20, Custom_Stock_MPG[Vehicle Type], $A20, Custom_Stock_MPG[Scenario], Input_Scenario_Modeled), SUMIFS(Vehicle_Stock_Projections[Vehicle Stock],Vehicle_Stock_Projections[Year],Calculations!AJ$4,Vehicle_Stock_Projections[Technology Type], $B20, Vehicle_Stock_Projections[Vehicle Type], $A20, Vehicle_Stock_Projections[Scenario], Input_Scenario_Modeled)) -> 5.73837824e-05
